Workbook

Sheet BiAmp 1-1
A1: =Calc11!$T$2 -> MG 10.1
A2: Woofer LP
A3: R7 | B3: =Calc11!$T$4 -> 12.7 | C3: KW | H3: =Calc11!$T$4 -> 12.7
A4: C3 | B4: =Calc11!$T$5 -> 33 | C4: nf | H4: =Calc11!$T$5 -> 33
A5: fc | B5: =ROUND(10^6/(2*PI()*B3*B4),-1) -> 380 | C5: Hz
A6: Tweeter HP
A7: R2 | B7: =Calc11!$T$7 -> 14.7 | C7: KW | H7: =Calc11!$T$7 -> 14.7
A8: C2 | B8: =Calc11!$T$8 -> 3.3 | C8: nf | H8: =Calc11!$T$8 -> 3.3
A9: fc | B9: =ROUND(10^6/(2*PI()*B7*B8),-1) -> 3280 | C9: Hz
A10: Stock XO
A11: Woofer LP
A12: R | B12: =Calc11!$T$18 -> 4.3 | C12: W | H12: =Calc11!$T$18 -> 4.3
A13: L | B13: =Calc11!$T$19 -> 1.8 | C13: mH | H13: =Calc11!$T$19 -> 1.8
A14: fc | B14: =ROUND($B$12*10^3/(2*PI()*$B13),-1) -> 380 | C14: Hz
A15: Tweeter HP
A16: R | B16: =Calc11!$T$21 -> 4 | C16: W | H16: =Calc11!$T$21 -> 4
A17: C | B17: =Calc11!$T$22 -> 12 | C17: mf | H17: =Calc11!$T$22 -> 12
A18: fc | B18: =ROUND(10^6/(2*PI()*$B$16*$B$17),-1) -> 3320 | C18: Hz
B26: f | C26: db
A27: XO POINT: | B27: =ROUND(VLOOKUP(MIN(Calc11!$AA5:$AA390),Calc11!$AA5:$AC390,2,0),0) -> 1114 | C27: =ROUND(VLOOKUP(MIN(Calc11!$AA5:$AA390),Calc11!$AA5:$AC390,3,0),1) -> -9.9
A28: Stock XO: | B28: =Pass11!$M$3 -> 1114 | C28: =Pass11!$N$3 -> -9.9

Sheet Calc11 (hidden)
R1: Woofer
B2: 2pf | C2: j2pf | E2: fc=1/[2*pi*(RC)] | J2: fc=1/[2*pi*(RC)] | O2: Network | R2: Tweeter | T2: MG 10.1 | U2: MMG new | V2: MG I | W2: MG I Impr | X2: MG II b/c | Y2: MG 10.1
E3: High Pass Section (1st Order) | J3: Low Pass Section (1st Order) | O3: Lp1 – Hp1 | R3: Output | S3: Woofer LP
A4: f | B4: w | C4: s= jw | E4: R2*C2 | F4: Hhp | G4: Output | H4: Phase Angle | J4: R7C4 | K4: Hlp | L4: Output | M4: Phase Angle | O4: Output | P4: Phase Aligned | R4: Woofer Pass | S4: R2 (kOhm) | T4: 12.7 | U4: 16.2 | V4: 14.7 | W4: 19.6 | X4: 13.3 | Y4: 12.7
A5: 10 | B5: =2*PI()*A5 -> 62.83185307 | C5: =COMPLEX(0,$B5) -> 62.8318530717959i | E5: =$T$7*$T$8*10^-6 -> 4.851e-05 | F5: =IMDIV(IMPRODUCT($C5,$E$5),IMSUM(1,IMPRODUCT($C5,$E$5))) -> 9.29005427636655E-06+0.00304794487667643i | G5: =20*LOG(IMABS($F5)) -> -50.31981749 | H5: =IMARGUMENT($F5)*180/PI() -> 89.82536454 | J5: =$T$4*$T$5*10^-6 -> 0.0004191 | K5: =IMDIV(1,IMSUM(IMPRODUCT($C5,$J$5),1)) -> 0.9993070625793-0.0263145826193514i | L5: =20*LOG(IMABS($K5)) -> -0.003010432122 | M5: =IMARGUMENT($K5)*180/PI() -> -1.508411411 | O5: =20*LOG(IMABS(IMSUB($K5,$F5))) -> -0.002353661699 | P5: -0.002353661699 | R5: Tweeter Pass | S5: C2 (nf) | T5: 33 | U5: 33 | V5: 5.6 | W5: 6.8 | X5: 33 | Y5: 33 | AA5: =ABS($G5-$L5) -> 50.31680705 | AB5: 10 | AC5: =$G5 -> -50.31981749
A6: =A5*1.02 -> 10.2 | B6: 64.08849013 | C6: 64.0884901332318i | E6: =1/(2*PI()*$E$5) -> 3280.868751 | F6: 9.66536884154295E-06+0.00310890260738224i | G6: -50.14781568 | H6: 89.82187185 | J6: =1/(2*PI()*$J$5) -> 379.7540995 | K6: 0.999279088089196-0.0268401228913071i | L6: -0.003132009735 | M6: -1.538565281 | O6: -0.002448706955 | P6: -0.002448706955 | R6: Output Pass | S6: Tweeter HP | AA6: 50.14468367 | AB6: =AB5*1.02 -> 10.2 | AC6: -50.14781568
A7: 10.404 | B7: 65.37025994 | C7: 65.3702599358964i | F7: 0.0000100558458161255+0.00317107942128394i | G7: -49.97581394 | H7: 89.81830931 | K7: 0.999249985092065-0.027376128023752i | L7: -0.003258495472 | M7: -1.56932135 | O7: -0.002547588523 | P7: -0.002547588523 | S7: R7 | T7: 14.7 | U7: 14.3 | V7: 19.6 | W7: 30.1 | X7: 30.1 | Y7: 14.7 | AA7: 49.97255545 | AB7: 10.404 | AC7: -49.97581394
A8: 10.61208 | B8: 66.67766513 | C8: 66.6776651346143i | F8: 0.0000104620977368053+0.00323449969567416i | G8: -49.80381227 | H8: 89.81467553 | K8: 0.999219708133098-0.027922804506433i | L8: -0.003390087322 | M8: -1.600691608 | O8: -0.002650461101 | P8: -0.002650461101 | S8: C4 | T8: 3.3 | U8: 3.3 | V8: 3.3 | W8: 3.3 | X8: 3.3 | Y8: 3.3 | AA8: 49.80042218 | AB8: 10.61208 | AC8: -49.80381227
A9: 10.8243216 | B9: 68.01121844 | C9: 68.0112184373066i | F9: 0.0000108847618847235+0.00329918829512385i | G9: -49.63181067 | H9: 89.81096906 | K9: 0.999188209932376-0.0284803627875456i | L9: -0.00352699125 | M9: -1.632688282 | O9: -0.002757485612 | P9: -0.002757485612 | S9: Active | AA9: 49.62828368 | AB9: 10.8243216 | AC9: -49.63181067
A10: 11.04080803 | B10: 69.37144281 | C10: 69.3714428060528i | F10: 0.0000113245012849806+0.00336517058121148i | G10: -49.45980915 | H10: 89.80718847 | K10: 0.99915544131206-0.0290490173424649i | L10: -0.003669421517 | M10: -1.665323841 | O10: -0.002868829454 | P10: -0.002868829454 | S10: Woofer | T10: =10^6/(2*PI()*T$4*T$5) -> 379.7540995 | U10: 297.7084607 | V10: 1933.369085 | W10: 1194.139729 | X10: 362.6223356 | Y10: 379.7540995 | AA10: 49.45613972 | AB10: 11.04080803 | AC10: -49.45980915
A11: 11.26162419 | B11: 70.75887166 | C11: 70.7588716621738i | F11: 0.0000117820057465101+0.00343247242244576i | G11: -49.2878077 | H11: 89.80333227 | K11: 0.999121351120717-0.0296289867432201i | L11: -0.003817601009 | M11: -1.698610997 | O11: -0.002984666762 | P11: -0.002984666762 | S11: Tweeter | T11: =10^6/(2*PI()*T$7*T$8) -> 3280.868751 | U11: 3372.641303 | V11: 2460.651563 | W11: 1602.284739 | X11: 1602.284739 | Y11: 3280.868751 | AA11: 49.2839901 | AB11: 11.26162419 | AC11: -49.2878077
A12: 11.48685668 | B12: 72.1740491 | C12: 72.1740490954173i | F12: 0.0000122579929439498+0.00350112020438585i | G12: -49.11580633 | H12: 89.79939895 | K12: 0.999085886154672-0.0302204937286856i | L12: -0.003971761586 | M12: -1.732562714 | O12: -0.003105178674 | P12: -0.003105178674 | S12: Passive | AA12: 49.11183457 | AB12: 11.48685668 | AC12: -49.11580633
A13: 11.71659381 | B13: 73.61753008 | C13: 73.6175300773256i | F13: 0.0000127532095432038+0.00357114083996279i | G13: -48.94380505 | H13: 89.79538696 | K13: 0.99904899107627-0.0308237652754629i | L13: -0.004132144443 | M13: -1.767192211 | O13: -0.003230553615 | P13: -0.003230553615 | S13: Woofer | T13: =T$18*10^3/(2*PI()*T$19) -> 380.2034752 | U13: 289.3726238 | V13: 1929.150825 | W13: 1187.723456 | X13: 361.7157798 | Y13: 380.2034752 | AA13: 48.9396729 | AB13: 11.71659381 | AC13: -48.94380505
A14: 11.95092569 | B14: 75.08988068 | C14: 75.0898806788722i | F14: 0.0000132684323724593+0.00364256178000616i | G14: -48.77180385 | H14: 89.79129474 | K14: 0.999010608328932-0.031439032669427i | L14: -0.00429900048 | M14: -1.802512968 | O14: -0.003360987584 | P14: -0.003360987584 | S14: Tweeter | T14: =10^6/(2*PI()*T$21*T$22) -> 3315.727981 | U14: 3315.727981 | V14: 2448.537586 | W14: 1591.549431 | X14: 1591.549431 | Y14: 3315.727981 | AA14: 48.76750485 | AB14: 11.95092569 | AC14: -48.77180385
A15: 12.1899442 | B15: 76.59167829 | C15: 76.5916782924496i | F15: 0.0000138044696404943+0.00371541102398002i | G15: -48.59980274 | H15: 89.78712067 | K15: 0.998970678048884-0.0320665315779013i | L15: -0.004472590698 | M15: -1.838538728 | O15: -0.003496684462 | P15: -0.003496684462 | AA15: 48.59533015 | AB15: 12.1899442 | AC15: -48.59980274
A16: 12.43374308 | B16: 78.12351186 | C16: 78.1235118582986i | F16: 0.0000143621622041841+0.00378971713093219i | G16: -48.42780173 | H16: 89.78286312 | K16: 0.998929137973436-0.0327065021224279i | L16: -0.004653186595 | M16: -1.875283505 | O16: -0.003637856327 | P16: -0.003637856327 | S16: Passive | AA16: 48.42314854 | AB16: 12.43374308 | AC16: -48.42780173
A17: 12.68241795 | B17: 79.6859821 | C17: 79.6859820954646i | F17: 0.000014942384887193+0.0038655092306612i | G17: -48.25580081 | H17: 89.77852043 | K17: 0.998885923345667-0.0333591889520936i | L17: -0.004841070597 | M17: -1.912761588 | O17: -0.003784723776 | P17: -0.003784723776 | S17: Woofer LP | AA17: 48.25095974 | AB17: 12.68241795 | AC17: -48.25580081
A18: 12.9360663 | B18: 81.27970174 | C18: 81.2797017373739i | F18: 0.0000155460478519164+0.0039428170351048i | G18: -48.0838 | H18: 89.77409088 | K18: 0.998840966815405-0.0340248413173678i | L18: -0.005036536485 | M18: -1.950987545 | O18: -0.003937516274 | P18: -0.003937516274 | S18: R | T18: 4.3 | U18: 4 | V18: 4 | W18: 5 | X18: 5 | Y18: 4.3 | AA18: 48.07876346 | AB18: 12.9360663 | AC18: -48.0838
A19: 13.19478763 | B19: 82.90529577 | C19: 82.9052957721213i | F19: 0.0000161740980268243+0.00402167084995495i | G19: -47.91179929 | H19: 89.76957275 | K19: 0.998794198336339-0.0347037131444065i | L19: -0.005239889857 | M19: -1.989976232 | O19: -0.0040964725 | P19: -0.0040964725 | S19: L (mH) | T19: 1.8 | U19: 2.2 | V19: 0.33 | W19: 0.67 | X19: 2.2 | Y19: 1.8 | AA19: 47.9065594 | AB19: 13.19478763 | AC19: -47.91179929
A20: 13.45868338 | B20: 84.56340169 | C20: 84.5634016875638i | F20: 0.0000168275205914414+0.00410210158650321i | G20: -47.73979869 | H20: 89.76496426 | K20: 0.99874554505913-0.0353960631097706i | L20: -0.0054514486 | M20: -2.029742792 | O20: -0.004261840722 | P20: -0.004261840722 | S20: Tweeter HP | AA20: 47.73434724 | AB20: 13.45868338 | AC20: -47.73979869
A21: 13.72785705 | B21: 86.25466972 | C21: 86.254669721315i | F21: 0.0000175073405212882+0.00418414077372118i | G21: -47.56779821 | H21: 89.76026359 | K21: 0.998694931220379-0.0361021547155011i | L21: -0.005671543378 | M21: -2.070302668 | O21: -0.004433879173 | P21: -0.004433879173 | S21: R | T21: 4 | U21: 4 | V21: 5 | W21: 5 | X21: 5 | Y21: 4 | AA21: 47.56212667 | AB21: 13.72785705 | AC21: -47.56779821
A22: 14.00241419 | B22: 87.97976312 | C22: 87.9797631157413i | F22: 0.0000182146241952073+0.00426782057058081i | G22: -47.39579785 | H22: 89.75546892 | K22: 0.998642278027272-0.0368222563644932i | L22: -0.005900518146 | M22: -2.111671603 | O22: -0.004612856455 | P22: -0.004612856455 | S22: C (mf) | T22: 12 | U22: 12 | V22: 13 | W22: 20 | X22: 20 | Y22: 12 | AA22: 47.38989733 | AB22: 14.00241419 | AC22: -47.39579785
A23: 14.28246248 | B23: 89.73935838 | C23: 89.7393583780562i | F23: 0.0000189504810675878+0.00435317377861889i | G23: -47.22379761 | H23: 89.75057836 | K23: 0.998587503537785-0.0375566414361001i | L23: -0.006138730682 | M23: -2.153865648 | O23: -0.004799051947 | P23: -0.004799051947 | AA23: 47.21765888 | AB23: 14.28246248 | AC23: -47.22379761
A24: 14.56811173 | B24: 91.53414555 | C24: 91.5341455456173i | F24: 0.0000197160654081097+0.00444023385475073i | G24: -47.0517975 | H24: 89.74559 | K24: 0.998530522536232-0.0383055883618972i | L24: -0.006386553136 | M24: -2.196901165 | O24: -0.00499275624 | P24: -0.00499275624 | AA24: 47.04541094 | AB24: 14.56811173 | AC24: -47.0517975
A25: 14.85947396 | B25: 93.36482846 | C25: 93.3648284565297i | F25: 0.0000205125781117331+0.00452903492433789i | G25: -46.87979752 | H25: 89.74050186 | K25: 0.998471246404042-0.0390693807015268i | L25: -0.006644372608 | M25: -2.240794837 | O25: =20*LOG(IMABS(IMSUB($K25,$F25))) -> -0.005194271578 | P25: -0.005194271578 | AA25: 46.87315315 | AB25: 14.85947396 | AC25: -46.87979752
A26: 15.15666344 | B26: 95.23212503 | C26: 95.2321250256602i | F26: 0.0000213412685817639+0.00461961179451468i | G26: -46.70779769 | H26: 89.73531198 | K26: 0.998409582985537-0.039848307218542i | L26: -0.006912591743 | M26: -2.285563672 | O26: -0.005403912325 | P26: -0.005403912325 | AA26: 46.70088509 | AB26: 15.15666344 | AC26: -46.70779769
A27: 15.45979671 | B27: 97.13676753 | C27: 97.1367675261734i | F27: 0.000022203436688947+0.00471199996777867i | G27: -46.53579799 | H27: 89.73001829 | K27: 0.998345436448572-0.0406426619561569i | L27: -0.007191629349 | M27: -2.331225006 | O27: -0.005622005445 | P27: -0.005622005445 | AA27: 46.52860637 | AB27: 15.45979671 | AC27: -46.53579799
A28: 15.76899264 | B28: 99.07950288 | C28: 99.0795028766969i | F28: 0.0000231004348096553+0.00480623565585031i | G28: -46.36379845 | H28: 89.72461874 | K28: 0.998278707139827-0.0414527443128062i | L28: -0.007481921047 | M28: -2.377796515 | O28: -0.005848891007 | P28: -0.005848891007 | AA28: 46.35631653 | AB28: 15.76899264 | AC28: -46.36379845
A29: 16.08437249 | B29: 101.0610929 | C29: 101.061092934231i | F29: 0.0000240336699463611+0.00490235579380669i | G29: -46.19179907 | H29: 89.7191112 | K29: 0.998209291434564-0.0422788591174096i | L29: -0.007783919935 | M29: -2.425296214 | O29: -0.006084922702 | P29: -0.006084922702 | AA29: 46.18401515 | AB29: 16.08437249 | AC29: -46.19179907
A30: 16.40605994 | B30: 103.0823148 | C30: 103.082314792915i | F30: 0.000025004605933715+0.00500039805449497i | G30: -46.01979985 | H30: 89.71349352 | K30: 0.998137081580657-0.0431213167042261i | L30: -0.008098097289 | M30: -2.473742472 | O30: -0.006330468384 | P30: -0.006330468384 | AA30: 46.01170176 | AB30: 16.40605994 | AC30: -46.01979985
A31: 16.73418114 | B31: 105.1439611 | C31: 105.143961088774i | F31: 0.0000260147657336832+0.00510040086323095i | G31: -45.84780081 | H31: 89.70776349 | K31: 0.998061965536679-0.0439804329871793i | L31: -0.008424943286 | M31: -2.523154007 | O31: -0.006585910633 | P31: -0.006585910633 | AA31: 45.83937586 | AB31: 16.73418114 | AC31: -45.84780081
A32: 17.06886477 | B32: 107.2468403 | C32: 107.246840310549i | F32: 0.0000270657338233312+0.00520240341278757i | G32: -45.67580194 | H32: 89.70191886 | K32: 0.997983826803852-0.044856529533517i | L32: -0.008764967755 | M32: -2.573549905 | O32: -0.006851647339 | P32: -0.006851647339 | AA32: 45.66703697 | AB32: 17.06886477 | AC32: -45.67580194
A33: 17.41024206 | B33: 109.3917771 | C33: 109.39177711676i | F33: 0.0000281591586790028+0.00530644567868034i | G33: -45.50380325 | H33: 89.69595735 | K33: 0.997902544251623-0.0457499336366744i | L33: -0.009118700958 | M33: -2.624949615 | O33: -0.007128092309 | P33: -0.007128092309 | AA33: 45.49468455 | AB33: 17.41024206 | AC33: -45.50380325
A34: 17.7584469 | B34: 111.5796127 | C34: 111.579612659095i | F34: 0.0000292967553607663+0.00541256843475365i | G34: -45.33180475 | H34: 89.68987662 | K34: 0.99781799193667-0.0466609783881791i | L34: -0.009486694404 | M34: -2.677372963 | O34: -0.007415675894 | P34: -0.007415675894 | AA34: 45.32231806 | AB34: 17.7584469 | AC34: -45.33180475
A35: 18.11361584 | B35: 113.8112049 | C35: 113.811204912277i | F35: 0.0000304803082011863+0.00552081326907533i | G35: -45.15980646 | H35: 89.68367427 | K35: 0.997730038915076-0.0475900027484456i | L35: -0.009869521691 | M35: -2.730840157 | O35: -0.007714845646 | P35: -0.007714845646 | AA35: 45.14993694 | AB35: 18.11361584 | AC35: -45.15980646
A36: 18.47588816 | B36: 116.087429 | C36: 116.087429010523i | F36: 0.0000317116736026184+0.00563122260014428i | G36: -44.98780837 | H36: 89.67734789 | K36: 0.997638549047476-0.0485373516162816i | L36: -0.01026777939 | M36: -2.785371791 | O36: -0.008026066998 | P36: -0.008026066998 | AA36: 44.97754059 | AB36: 18.47588816 | AC36: -44.98780837
A37: 18.84540592 | B37: 118.4091776 | C37: 118.409177590733i | F37: 0.0000329927829474069+0.00574383969341766i | G37: -44.8158105 | H37: 89.67089499 | K37: 0.997543380796899-0.0495033758969228i | L37: -0.01068208793 | M37: -2.840988855 | O37: -0.008349823968 | P37: -0.008349823968 | AA37: 44.80512841 | AB37: 18.84540592 | AC37: -44.8158105
A38: 19.22231404 | B38: 120.7773611 | C38: 120.777361142548i | F38: 0.0000343256456255398+0.00585870867816383i | G38: -44.64381285 | H38: 89.66431304 | K38: 0.997444387019078-0.0504884325684009i | L38: -0.01111309259 | M38: -2.89771274 | O38: -0.008686619894 | P38: -0.008686619894 | AA38: 44.63269976 | AB38: 19.22231404 | AC38: -44.64381285
A39: 19.60676032 | B39: 123.1929084 | C39: 123.192908365399i | F39: 0.0000357123521844901+0.00597587456464671i | G39: -44.47181544 | H39: 89.65759946 | K39: 0.997341414744974-0.0514928847460278i | L39: -0.01156146445 | M39: -2.955565245 | O39: -0.009036978192 | P39: -0.009036978192 | AA39: 44.46025398 | AB39: 19.60676032 | AC39: -44.47181544
A40: 19.99889553 | B40: 125.6567665 | C40: 125.656766532707i | F40: 0.0000371550776061767+0.00609538326164851i | G40: -44.29981827 | H40: 89.65075161 | K40: 0.997234304955248-0.052517101744778i | L40: -0.0120279014 | M40: -3.014568586 | O40: -0.009401443151 | P40: -0.009401443151 | AA40: 44.28779037 | AB40: 19.99889553 | AC40: -44.29981827
A41: 20.39887344 | B41: 128.1699019 | C41: 128.169901863361i | F41: 0.0000386560847161651+0.00621728159433683i | G41: -44.12782136 | H41: 89.64376682 | K41: 0.997122892346416-0.0535614591393234i | L41: -0.01251312923 | M41: -3.074745401 | O41: -0.00978058075 | P41: -0.00978058075 | AA41: 44.11530823 | AB41: 20.39887344 | AC41: -44.12782136
A42: 20.80685091 | B42: 130.7332999 | C42: 130.733299900628i | F42: 0.0000402177277304384+0.00634161732248285i | G42: -43.9558247 | H42: 89.63664235 | K42: 0.997007005088422-0.0546263388214663i | L42: -0.01301790274 | M42: -3.136118757 | O42: -0.01017497951 | P42: -0.01017497951 | AA42: 43.9428068 | AB42: 20.80685091 | AC42: -43.9558247
A43: 21.22298792 | B43: 133.3479659 | C43: 133.347965898641i | F43: 0.0000418424559452849+0.00646843915903716i | G43: -43.78382832 | H43: 89.6293754 | K43: 0.99688646457334-0.0557121290546973i | L43: -0.01354300682 | M43: -3.198712159 | O43: -0.01058525138 | P43: -0.01058525138 | AA43: 43.77028532 | AB43: 21.22298792 | AC43: -43.78382832
A44: 21.64744768 | B44: 136.0149252 | C44: 136.014925216614i | F44: 0.0000435328175760665+0.00659779678906985i | G44: -43.61183223 | H44: 89.62196312 | K44: 0.996761085154938-0.0568192245255849i | L44: -0.01408925774 | M44: -3.262549554 | O44: -0.01101203266 | P44: -0.01101203266 | AA44: 43.59774297 | AB44: 21.64744768 | AC44: -43.61183223
A45: 22.08039664 | B45: 138.7352237 | C45: 138.735223720946i | F45: 0.0000452914637508723+0.0067297408890821i | G45: -43.43983643 | H45: 89.61440261 | K45: 0.996630673878797-0.0579480263916905i | L45: -0.01465750427 | M45: -3.327655344 | O45: =20*LOG(IMABS(IMSUB($K45,$F45))) -> -0.01145598494 | P45: -0.01145598494 | AA45: 43.42517893 | AB45: 22.08039664 | AC45: -43.43983643
A46: 22.52200457 | B46: 141.5099282 | C46: 141.509928195365i | F46: 0.0000471211526652941+0.00686432314669594i | G46: -43.26784094 | H46: 89.6066909 | K46: 0.996495030202706-0.0590989423256758i | L46: -0.01524862905 | M46: -3.394054387 | O46: -0.01191779609 | P46: -0.01191779609 | AA46: 43.25259232 | AB46: 22.52200457 | AC46: -43.26784094
A47: 22.97244466 | B47: 144.3401268 | C47: 144.340126759272i | F47: 0.000049024753904814+0.00700159628072903i | G47: -43.09584578 | H47: 89.59882497 | K47: 0.996353945707027-0.0602723865552519i | L47: -0.01586354989 | M47: -3.461772008 | O47: -0.01239818131 | P47: -0.01239818131 | AA47: 43.07998223 | AB47: 22.97244466 | AC47: -43.09584578
A48: 23.43189355 | B48: 147.2269293 | C48: 147.226929294458i | F48: 0.0000510052529415621+0.00714161406166242i | G48: -42.92385094 | H48: 89.59080174 | K48: 0.996207203794723-0.0614687798986003i | L48: -0.01650322113 | M48: -3.530834006 | O48: -0.01289788417 | P48: -0.01289788417 | AA48: 42.90734772 | AB48: 23.43189355 | AC48: -42.92385094
A49: 23.90053142 | B49: 150.1714679 | C49: 150.171467880347i | F49: 0.0000530657558124561+0.00728443133250745i | G49: -42.75185646 | H49: 89.58261806 | K49: 0.996054579380754-0.0626885497948636i | L49: -0.0171686351 | M49: -3.601266661 | O49: -0.01341767772 | P49: -0.01341767772 | AA49: 42.73468782 | AB49: 23.90053142 | AC49: -42.75185646
A50: 24.37854205 | B50: 153.1748972 | C50: 153.174897237954i | F50: 0.000055209493986045+0.00743010403008052i | G50: -42.57986233 | H50: 89.57427073 | K50: 0.995895838570519-0.0639321303292935i | L50: -0.01786082359 | M50: -3.673096741 | O50: -0.01395836562 | P50: -0.01395836562 | AA50: 42.56200151 | AB50: 24.37854205 | AC50: -42.57986233
A51: 24.86611289 | B51: 156.2383952 | C51: 156.238395182713i | F51: 0.0000574398294256349+0.00757868920669204i | G51: -42.40786858 | H51: 89.56575647 | K51: 0.995730738327027-0.0651999622526i | L51: -0.01858085942 | M51: -3.746351513 | O51: -0.01452078338 | P51: -0.01452078338 | AA51: 42.38928773 | AB51: 24.86611289 | AC51: -42.40786858
A52: 25.36343515 | B52: 159.3631631 | C52: 159.363163086367i | F52: 0.0000597602598566174+0.007730245052258i | G52: -42.23587523 | H52: 89.55707194 | K52: 0.995559026126493-0.066492492994036i | L52: -0.01932985801 | M52: -3.821058745 | O52: -0.01510579953 | P52: -0.01510579953 | AA52: 42.21654537 | AB52: 25.36343515 | AC52: -42.23587523
A53: 25.87070385 | B53: 162.5504263 | C53: 162.550426348094i | F53: 0.0000621744242462106+0.00788483091684154i | G53: -42.06388228 | H53: 89.54821374 | K53: 0.995380439602023-0.0678101766677098i | L53: -0.02010897906 | M53: -3.897246718 | O53: -0.01571431692 | P53: -0.01571431692 | AA53: 42.0437733 | AB53: 25.87070385 | AC53: -42.06388228
A54: 26.38811793 | B54: 165.8014349 | C54: 165.801434875056i | F54: 0.0000646861085041669+0.00804250733363256i | G54: -41.89188975 | H54: 89.5391784 | K54: 0.995194706175085-0.0691534740715959i | L54: -0.02091942827 | M54: -3.97494423 | O54: -0.01634727407 | P54: -0.01634727407 | AA54: 41.87097032 | AB54: 26.38811793 | AC54: -41.89188975
A55: 26.91588029 | B55: 169.1174636 | C55: 169.117463572557i | F55: 0.0000672992514133373+0.00820333604237304i | G55: -41.71989767 | H55: 89.52996238 | K55: 0.995001542674426-0.0705228526786766i | L55: -0.02176245913 | M55: -4.054180609 | O55: -0.01700564649 | P55: -0.01700564649 | AA55: 41.69813521 | AB55: 26.91588029 | AC55: -41.71989767
A56: 27.4541979 | B56: 172.4998128 | C56: 172.499812844009i | F56: 0.0000700179507993476+0.00836738001323673i | G56: -41.54790604 | H56: 89.52056206 | K56: 0.99480065494213-0.0719187866196232i | L56: -0.02263937478 | M56: -4.134985714 | O56: -0.01769044816 | P56: -0.01769044816 | AA56: 41.52526666 | AB56: 27.4541979 | AC56: -41.54790604
A57: 28.00328185 | B57: 175.9498091 | C57: 175.949809100889i | F57: 0.000072846469948995+0.00853470347117057i | G57: -41.37591489 | H57: 89.51097376 | K57: 0.994591737426493-0.0733417566563753i | L57: -0.02355152991 | M57: -4.217389947 | O57: -0.01840273297 | P57: -0.01840273297 | AA57: 41.35236336 | AB57: 28.00328185 | AC57: -41.37591489
A58: 28.56334749 | B58: 179.4688053 | C58: 179.468805282907i | F58: 0.0000757892442873867+0.00870537192070718i | G58: -41.20392423 | H58: 89.50119373 | K58: 0.994374472761392-0.0747922501459618i | L58: -0.02450033282 | M58: -4.301424259 | O58: -0.01914359624 | P58: -0.01914359624 | AA58: 41.1794239 | AB58: 28.56334749 | AC58: -41.20392423
A59: 29.13461444 | B59: 183.0581814 | C59: 183.058181388565i | F59: 0.0000788508883242078+0.00887945217125574i | G59: -41.0319341 | H59: 89.49121812 | K59: 0.994148531331845-0.0762707609938445i | L59: -0.02548724739 | M59: -4.387120159 | O59: -0.01991417633 | P59: -0.01991417633 | AA59: 41.00644685 | AB59: 29.13461444 | AC59: -41.0319341
A60: 29.71730673 | B60: 186.719345 | C60: 186.719345016336i | F60: 0.0000820362028799556+0.00905701236288063i | G60: -40.8599445 | H60: 89.48104303 | K60: 0.993913570825456-0.0777777895960456i | L60: -0.02651379532 | M60: -4.474509718 | O60: -0.02071565627 | P60: -0.02071565627 | AA60: 40.8334307 | AB60: 29.71730673 | AC60: -40.8599445
A61: 30.31165286 | B61: 190.4537319 | C61: 190.453731916663i | F61: 0.0000853501826033882+0.00923812199257608i | G61: -40.68795545 | H61: 89.47066448 | K61: 0.993669235769429-0.0793138427692691i | L61: -0.0275815583 | M61: -4.56362558 | O61: -0.02154926545 | P61: -0.02154926545 | AA61: 40.6603739 | AB61: 30.31165286 | AC61: -40.68795545
A62: 30.91788592 | B62: 194.2628066 | C62: 194.262806554996i | F62: 0.000088798023791892+0.00942285194104538i | G62: -40.51596699 | H62: 89.46007839 | K62: 0.993415157052876-0.0808794336681778i | L62: -0.02869218033 | M62: -4.654500967 | O62: -0.02241628135 | P62: -0.02241628135 | AA62: 40.48727481 | AB62: 30.91788592 | AC62: -40.51596699
A63: 31.53624364 | B63: 198.1480627 | C63: 198.148062686096i | F63: 0.0000923851325269499+0.00961127449999416i | G63: -40.34397914 | H63: 89.44928062 | K63: 0.993150951434142-0.0824750816889585i | L63: -0.02984737011 | M63: -4.747169686 | O63: -0.02331803143 | P63: -0.02331803143 | AA63: 40.31413177 | AB63: 31.53624364 | AC63: -40.34397914
A64: 32.16696851 | B64: 202.1110239 | C64: 202.111023939818i | F64: 0.0000961171331373578+0.00980346339994572i | G64: -40.17199191 | H64: 89.43826693 | K64: 0.992876221032849-0.0841013123582368i | L64: -0.0310489035 | M64: -4.841666138 | O64: -0.02425589495 | P64: -0.02425589495 | AA64: 40.14094301 | AB64: 32.16696851 | AC64: -40.17199191
A65: 32.81030788 | B65: 206.1532444 | C65: 206.153244418614i | F65: 0.0000999998770033671+0.00999949383858835i | G65: -40.00000534 | H65: 89.42703301 | K65: 0.992590552806445-0.0857586572063757i | L65: -0.0322986261 | M65: -4.938025323 | O65: =20*LOG(IMABS(IMSUB($K65,$F65))) -> -0.02523130492 | P65: -0.02523130492 | AA65: 39.96770672 | AB65: 32.81030788 | AC65: -40.00000534
A66: 33.46651404 | B66: 210.2763093 | C66: 210.276309306987i | F66: 0.000104039451715434+0.010199442509663i | G66: -39.82801945 | H66: 89.41557445 | K66: 0.992293518010988-0.0874476536241257i | L66: -0.0335984559 | M66: -5.036282848 | O66: -0.02624575015 | P66: -0.02624575015 | AA66: 39.794421 | AB66: 33.46651404 | AC66: -39.82801945
A67: 34.13584432 | B67: 214.4818355 | C67: 214.481835493126i | F67: 0.000108242190601827+0.0104033876324013i | G67: -39.65603427 | H67: 89.40388678 | K67: 0.991984671645969-0.0891688447015427i | L67: -0.03495038603 | M67: -5.136474933 | O67: -0.02730077731 | P67: -0.02730077731 | AA67: 39.62108388 | AB67: 34.13584432 | AC67: -39.65603427
A68: 34.81856121 | B68: 218.7714722 | C68: 218.771472202989i | F68: 0.000112614682639881+0.0106114089815224i | G68: -39.48404983 | H68: 89.3919654 | K68: 0.991663551882973-0.090922779048045i | L68: -0.03635648758 | M68: -5.238638417 | O68: -0.02839799306 | P68: -0.02839799306 | AA68: 39.44769334 | AB68: 34.81856121 | AC68: -39.48404983
A69: 35.51493243 | B69: =2*PI()*A69 -> 223.1469016 | C69: =COMPLEX(0,$B69) -> 223.146901647049i | F69: =IMDIV(IMPRODUCT($C69,$E$5),IMSUM(1,IMPRODUCT($C69,$E$5))) -> 0.000117163782766298+0.0108235879177981i | G69: =20*LOG(IMABS($F69)) -> -39.31206615 | H69: =IMARGUMENT($F69)*180/PI() -> 89.37980565 | K69: =IMDIV(1,IMSUM(IMPRODUCT($C69,$J$5),1)) -> 0.991329679478003-0.0927100105923993i | L69: =20*LOG(IMABS($K69)) -> -0.03781891259 | M69: =IMARGUMENT($K69)*180/PI() -> -5.342810763 | O69: -0.02953906634 | P69: -0.02953906634 | AA69: =ABS($G69-$L69) -> 39.27424724 | AB69: 35.51493243 | AC69: =$G69 -> -39.31206615
A70: =A69*1.02 -> 36.22523108 | B70: 227.6098397 | C70: 227.60983967999i | F70: 0.000121896622602533+0.0110400074191973i | G70: -39.14008327 | H70: 89.36740276 | K70: 0.990982557167348-0.0945310983613949i | L70: -0.03933989705 | M70: -5.449030069 | O70: -0.03072573058 | P70: -0.03072573058 | AA70: 39.10074338 | AB70: =AB69*1.02 -> 36.22523108 | AC70: -39.14008327
A71: 36.9497357 | B71: 232.1620365 | C71: 232.162036473589i | F71: 0.000126820621611854+0.0112607521126161i | G71: -38.96810122 | H71: 89.35475188 | K71: 0.990621669046864-0.0963866062358752i | L71: -0.0409217641 | M71: -5.557335067 | O71: -0.03195978616 | P71: -0.03195978616 | AA71: 38.92717946 | AB71: 36.9497357 | AC71: -38.96810122
A72: 37.68873042 | B72: 236.8052772 | C72: 236.805277203061i | F72: 0.00013194349870545+0.0114859083062072i | G72: -38.79612004 | H72: 89.34184804 | K72: 0.990246479934618-0.0982771026827523i | L72: -0.04256692723 | M72: -5.667765132 | O72: -0.03324310279 | P72: -0.03324310279 | AA72: 38.75355311 | AB72: 37.68873042 | AC72: -38.79612004
A73: 38.44250503 | B73: 241.5413827 | C73: 241.541382747122i | F73: 0.000137273284315527+0.0117155640223141i | G73: -38.62413976 | H73: 89.32868619 | K73: 0.989856434716864-0.100203160461546i | L73: -0.04427789374 | M73: -5.780360287 | O73: -0.03457762209 | P73: -0.03457762209 | AA73: 38.57986186 | AB73: 38.44250503 | AC73: -38.62413976
A74: 39.21135513 | B74: 246.3722104 | C74: 246.372210402065i | F74: 0.000142818332954154+0.0119498090310233i | G74: -38.45216041 | H74: 89.31526118 | K74: 0.989450957677365-0.102165356303938i | L74: -0.04605726812 | M74: -5.895161207 | O74: -0.03596536018 | P74: -0.03596536018 | AA74: 38.40610314 | AB74: 39.21135513 | AC74: -38.45216041
A75: 39.99558223 | B75: 251.2996546 | C75: 251.299654610106i | F75: 0.000148587336277274+0.0121887348843419i | G75: -38.28018203 | H75: 89.30156775 | K75: 0.989029451810127-0.10416427056475i | L75: -0.04790775574 | M75: -6.012209224 | O75: -0.03740841038 | P75: -0.03740841038 | AA75: 38.23227427 | AB75: 39.99558223 | AC75: -38.28018203
A76: 40.79549387 | B76: 256.3256477 | C76: 256.325647702308i | F76: 0.000154589336674161+0.0124324349510121i | G76: -38.10820466 | H76: 89.28760053 | K76: 0.988591298115694-0.106200486842673i | L76: -0.04983216652 | M76: -6.131546329 | O76: -0.03890894598 | P76: -0.03890894598 | AA76: 38.0583725 | AB76: 40.79549387 | AC76: -38.10820466
A77: 41.61140375 | B77: 261.4521607 | C77: 261.452160656354i | F77: 0.000160833741403267+0.0126810044519704i | G77: -37.93622835 | H77: 89.27335405 | K77: 0.988135854881157-0.108274591569038i | L77: -0.05183341881 | M77: -6.253215178 | O77: -0.0404692231 | P77: -0.0404692231 | AA77: 37.88439493 | AB77: 41.61140375 | AC77: -37.93622835
A78: 42.44363183 | B78: 266.6812039 | C78: 266.681203869481i | F78: 0.000167330337296445+0.0129345404964639i | G78: -37.76425314 | H78: 89.25882274 | K78: 0.987662456944165-0.110387173562783i | L78: -0.05391454333 | M78: -6.377259093 | O78: -0.04209158365 | P78: -0.04209158365 | AA78: 37.71033859 | AB78: 42.44363183 | AC78: -37.76425314
A79: 43.29250446 | B79: 272.0148279 | C79: 272.014827946871i | F79: 0.000174089306054161+0.0131931421188312i | G79: -37.59227906 | H79: 89.2440009 | K79: 0.987170414941255-0.112538823549768i | L79: -0.05607868728 | M79: -6.503722066 | O79: -0.04377845835 | P79: -0.04377845835 | AA79: 37.53620037 | AB79: 43.29250446 | AC79: -37.59227906
A80: 44.15835455 | B80: 277.4551245 | C80: 277.455124505809i | F80: 0.000181121240155402+0.0134569103159591i | G80: -37.42030617 | H80: 89.22888272 | K80: 0.986659014540913-0.114730133644424i | L80: -0.05832911859 | M80: -6.632648759 | O80: -0.04553236987 | P80: -0.04553236987 | AA80: 37.36197705 | AB80: 44.15835455 | AC80: -37.42030617
A81: 45.04152164 | B81: 283.004227 | C81: 283.004226995925i | F81: 0.00018843715940681+0.0137259480854244i | G81: -37.24833451 | H81: 89.21346229 | K81: 0.986127515661884-0.116961696791747i | L81: -0.06066923023 | M81: -6.764084508 | O81: -0.04735593605 | P81: -0.04735593605 | AA81: 37.18766528 | AB81: 45.04152164 | AC81: -37.24833451
A82: 45.94235208 | B82: 288.6643115 | C82: 288.664311535843i | F82: 0.000196048528156603+0.0140003604643313i | G82: -37.07636414 | H82: 89.19773358 | K82: 0.985575151677315-0.119234106167459i | L82: -0.06310254475 | M82: -6.89807532 | O82: -0.04925187316 | P82: -0.04925187316 | AA82: 37.01326159 | AB82: 45.94235208 | AC82: -37.07636414
A83: 46.86119912 | B83: 294.4375978 | C83: 294.43759776656i | F83: 0.000203967273199789+0.0142802545688532i | G83: -36.9043951 | H83: 89.18169041 | K83: 0.985001128605451-0.121547954534161i | L83: -0.06563271891 | M83: -7.034667875 | O83: -0.05122299937 | P83: -0.05122299937 | AA83: 36.83876238 | AB83: 46.86119912 | AC83: -36.9043951
A84: 47.7984231 | B84: 300.3263497 | C84: 300.326349721891i | F84: 0.000212205802402289+0.0145657396344887i | G84: -36.73242745 | H84: 89.16532651 | K84: 0.984404624287712-0.123903833551189i | L84: -0.06826354845 | M84: -7.173909528 | O84: -0.05327223816 | P84: -0.05327223816 | AA84: 36.6641639 | AB84: 47.7984231 | AC84: -36.73242745
A85: 48.75439156 | B85: 306.3328767 | C85: 306.332876716329i | F85: 0.000220777024072654+0.014856927057043i | G85: -36.56046125 | H85: 89.14863547 | K85: 0.983784787555081-0.126302333035797i | L85: -0.070998973 | M85: -7.3158483 | O85: =20*LOG(IMABS(IMSUB($K85,$F85))) -> -0.05540262194 | P85: -0.05540262194 | AA85: 36.48946228 | AB85: 48.75439156 | AC85: -36.56046125
A86: 49.72947939 | B86: 312.4595343 | C86: 312.459534250656i | F86: 0.000229694367111142+0.0151539304343414i | G86: -36.38849655 | H86: 89.13161076 | K86: 0.983140737383915-0.128744040173231i | L86: -0.07384308115 | M86: -7.460532883 | O86: -0.05761729575 | P86: -0.05761729575 | AA86: 36.31465347 | AB86: 49.72947939 | AC86: -36.38849655
A87: 50.72406898 | B87: 318.7087249 | C87: 318.708724935669i | F87: 0.000238971801967169+0.0154568656086877i | G87: -36.21653342 | H87: 89.11424572 | K87: 0.982471562042392-0.131229538673174i | L87: -0.07680011565 | M87: -7.608012632 | O87: -0.05991952095 | P87: -0.05991952095 | AA87: 36.1397333 | AB87: 50.72406898 | AC87: -36.21653342
A88: 51.73855036 | B88: 325.0828994 | C88: 325.082899434382i | F88: 0.00024862386243731+0.0157658507100739i | G88: -36.04457191 | H88: 89.09653354 | K88: 0.981776318228986-0.133759407869961i | L88: -0.07987447879 | M88: -7.758337562 | O88: -0.06231267914 | P88: -0.06231267914 | AA88: 35.96469743 | AB88: 51.73855036 | AC88: -36.04457191
A89: 52.77332137 | B89: 331.5845574 | C89: 331.58455742307i | F89: 0.000258665668337291+0.0160810062001516i | G89: -35.8726121 | H89: 89.0784673 | K89: 0.981054030204543-0.136334221763895i | L89: -0.08307073789 | M89: -7.911558343 | O89: -0.06480027607 | P89: -0.06480027607 | AA89: 35.78954136 | AB89: 52.77332137 | AC89: -35.8726121
A90: 53.82878779 | B90: 338.2162486 | C90: 338.216248571531i | F90: 0.000269112949082773+0.0164024549169754i | G90: -35.70065405 | H90: 89.06003992 | K90: 0.980303688919685-0.13895454800093i | L90: -0.08639363092 | M90: -8.067726291 | O90: -0.06738594567 | P90: -0.06738594567 | AA90: 35.61426041 | AB90: 53.82878779 | AC90: -35.70065405
A91: 54.90536355 | B91: 344.9805735 | C91: 344.980573542962i | F91: 0.000279982068214995+0.0167303221205233i | G91: -35.52869783 | H91: 89.04124419 | K91: 0.979524251139494-0.141620946787922i | L91: -0.08984807239 | M91: -8.226893364 | O91: -0.0700734542 | P91: -0.0700734542 | AA91: 35.43884975 | AB91: 54.90536355 | AC91: -35.52869783
A92: 56.00347082 | B92: 351.880185 | C92: 351.880185013821i | F92: 0.000291290048908871+0.0170647355390079i | G92: -35.35674352 | H92: 89.02207276 | K92: 0.978714638567619-0.144333969740576i | L92: -0.0934391592 | M92: -8.38911215 | O92: -0.07286670444 | P92: -0.07286670444 | AA92: 35.26330436 | AB92: 56.00347082 | AC92: -35.35674352
A93: 57.12354024 | B93: 358.9177887 | C93: 358.917788714097i | F93: 0.000303054600502494+0.0174058254159809i | G93: -35.18479119 | H93: 89.00251813 | K93: 0.977873736972181-0.147094158661187i | L93: -0.09717217683 | M93: -8.554435858 | O93: -0.07576973997 | P93: -0.07576973997 | AA93: 35.08761901 | AB93: 57.12354024 | AC93: -35.18479119
A94: 58.26601104 | B94: 366.0961445 | C94: 366.096144488379i | F94: 0.000315294146088601+0.0177537245582453i | G94: -35.01284093 | H94: 88.98257264 | K94: 0.977000395316089-0.149902044243214i | L94: -0.1010526056 | M94: -8.722918304 | O94: -0.07878674953 | P94: -0.07878674953 | AA94: 34.91178832 | AB94: 58.26601104 | AC94: -35.01284093
A95: 59.43133126 | B95: 373.4180674 | C95: 373.418067378147i | F95: 0.000328027851210026+0.0181085683845758i | G95: -34.84089281 | H95: 88.9622285 | K95: 0.976093424894641-0.152758144699688i | L95: -0.1050861269 | M95: -8.894613901 | O95: -0.08192207151 | P95: -0.08192207151 | AA95: 34.73580668 | AB95: 59.43133126 | AC95: -34.84089281
A96: 60.61995789 | B96: 380.8864287 | C96: 380.88642872571i | F96: 0.00034127565370297+0.0184704949752615i | G96: -34.66894693 | H96: 88.94147775 | K96: 0.975151598483539-0.155662964312445i | L96: -0.10927863 | M96: -9.069577641 | O96: -0.0851801984 | P96: -0.0851801984 | AA96: 34.5596683 | AB96: 60.61995789 | AC96: -34.66894693
A97: 61.83235705 | B97: 388.5041573 | C97: 388.504157300224i | F97: 0.000355058294733404+0.0188396451224737i | G97: -34.49700337 | H97: 88.92031227 | K97: 0.974173649500761-0.158616991899131i | L97: -0.1136362187 | M97: -9.247865079 | O97: -0.08856578146 | P97: -0.08856578146 | AA97: 34.38336715 | AB97: 61.83235705 | AC97: -34.49700337
A98: 63.06900419 | B98: 396.2742404 | C98: 396.274240446229i | F98: 0.000369397351073855+0.0192161623814661i | G98: -34.32506223 | H98: 88.89872378 | K98: 0.973158271186005-0.161620699194971i | L98: -0.1181652179 | M98: -9.429532318 | O98: -0.09208363525 | P98: -0.09208363525 | AA98: 34.20689701 | AB98: 63.06900419 | AC98: -34.32506223
A99: 64.33038427 | B99: 404.1997253 | C99: 404.199725255153i | F99: 0.000384315268669532+0.0196001931226149i | G99: -34.15312361 | H99: 88.87670384 | K99: 0.97210411580177-0.164674539146248i | L99: -0.122872181 | M99: -9.614635983 | O99: -0.09573874245 | P99: -0.09573874245 | AA99: 34.03025143 | AB99: 64.33038427 | AC99: -34.15312361
A100: 65.61699196 | B100: 412.2837198 | C100: 412.283719760256i | F100: 0.00039983539754471+0.0199918865843017i | G100: -33.9811876 | H100: 88.85424385 | K100: 0.971009793860469-0.167778944112539i | L100: -0.1277638966 | M100: -9.803233201 | O100: -0.09953625853 | P100: -0.09953625853 | AA100: 33.85342371 | AB100: 65.61699196 | AC100: -33.9811876
A101: 66.9293318 | B101: 420.5293942 | C101: 420.529394155461i | F101: 0.000415982028102198+0.0203913949266472i | G101: -33.80925432 | H101: 88.83133502 | K101: 0.969873873382313-0.170934323974741i | L101: -0.1328473961 | M101: -9.99538158 | O101: -0.1034815165 | P101: -0.1034815165 | AA101: 33.67640692 | AB101: 66.9293318 | AC101: -33.80925432
A102: 68.26791843 | B102: 428.939982 | C102: 428.939982038571i | F102: 0.000432780428870756+0.0207988732860976i | G102: -33.63732387 | H102: 88.8079684 | K102: 0.968694879189105-0.174141064146025i | L102: -0.1381299607 | M102: -10.19113918 | O102: -0.107580032 | P102: -0.107580032 | AA102: 33.49919391 | AB102: 68.26791843 | AC102: -33.63732387
A103: 69.6332768 | B103: 437.5187817 | C103: 437.518781679342i | F103: 0.000450256885757462+0.0212144798308676i | G103: -33.46539637 | H103: 88.78413485 | K103: 0.967471292239447-0.177399523482962i | L103: -0.1436191293 | M103: -10.39056447 | O103: -0.1118375077 | P103: -0.1118375077 | AA103: 33.32177724 | AB103: 69.6332768 | AC103: -33.46539637
A104: 71.02594234 | B104: 446.2691573 | C104: 446.269157312929i | F104: 0.000468438742864174+0.0216383758172456i | G104: -33.29347193 | H104: 88.75982507 | K104: 0.966201549011293-0.180710032094157i | L104: -0.1493227059 | M104: -10.59371633 | O104: -0.1162598384 | P104: -0.1162598384 | AA104: 33.14414923 | AB104: 71.02594234 | AC104: -33.29347193
A105: 72.44646118 | B105: 455.1945405 | C105: 455.194540459188i | F105: 0.000487354444929465+0.0220707256467583i | G105: -33.12155069 | H105: 88.73502955 | K105: 0.964884040938208-0.184072889043884i | L105: -0.1552487671 | M105: -10.80065399 | O105: =20*LOG(IMABS(IMSUB($K105,$F105))) -> -0.1208531159 | P105: -0.1208531159 | AA105: 32.96630192 | AB105: 72.44646118 | AC105: -33.12155069
A106: 73.89539041 | B106: 464.2984313 | C106: 464.298431268371i | F106: 0.000507033581459801+0.0225116969242008i | G106: -32.94963276 | H106: 88.70973861 | K106: 0.963517113906107-0.187488359948432i | L106: -0.1614056704 | M106: -11.011437 | O106: -0.125623634 | P106: -0.125623634 | AA106: 32.78822709 | AB106: 73.89539041 | AC106: -32.94963276
A107: 75.37329821 | B107: 473.5843999 | C107: 473.584399893739i | F107: 0.000527506932616115+0.0229614605165298i | G107: -32.77771828 | H107: 88.68394237 | K107: 0.962099067817737-0.190956674463027i | L107: -0.1678020614 | M107: -11.22612518 | O107: -0.1305778928 | P107: -0.1305778928 | AA107: 32.60991622 | AB107: 75.37329821 | AC107: -32.77771828
A108: 76.88076418 | B108: 483.0560879 | C108: 483.056087891614i | F108: 0.000548806516924415+0.0234201906126188i | G108: -32.6058074 | H108: 88.65763075 | K108: 0.960628156232626-0.19447802365751i | L108: -0.1744468824 | M108: -11.4447786 | O108: -0.1357226039 | P108: -0.1357226039 | AA108: 32.43136052 | AB108: 76.88076418 | AC108: -32.6058074
A109: 78.41837946 | B109: 492.7172096 | C109: 492.717209649446i | F109: 0.000570965640881708+0.0238880647838757i | G109: -32.43390026 | H109: 88.63079349 | K109: 0.959102586090698-0.198052557279207i | L109: -0.1813493799 | M109: -11.66745753 | O109: -0.141064695 | P109: -0.141064695 | AA109: 32.25255088 | AB109: 78.41837946 | AC109: -32.43390026
A110: 79.98674705 | B110: 502.5715538 | C110: 502.571553842435i | F110: 0.000594018950531133+0.0243652640457177i | G110: -32.261997 | H110: 88.6034201 | K110: 0.957520517528245-0.201680380901779i | L110: -0.188519113 | M110: -11.89422238 | O110: -0.1466113142 | P110: -0.1466113142 | AA110: 32.07347789 | AB110: 79.98674705 | AC110: -32.261997
A111: 81.58648199 | B111: 512.6229849 | C111: 512.622984919283i | F111: 0.00061800248508301+0.0248519729199i | G111: -32.09009779 | H111: 88.57549989 | K111: 0.955880063795475-0.205361552959247i | L111: -0.1959659611 | M111: -12.12513364 | O111: -0.1523698351 | P111: -0.1523698351 | AA111: 31.89413182 | AB111: 81.58648199 | AC111: -32.09009779
A112: 83.21821163 | B112: 522.8754446 | C112: 522.875444617669i | F112: 0.000642953732661379+0.0253483794976925i | G112: -31.91820278 | H112: 88.54702199 | K112: 0.954179291285324-0.209096081664772i | L112: -0.2037001324 | M112: -12.36025186 | O112: -0.1583478606 | P112: -0.1583478606 | AA112: 31.71450265 | AB112: 83.21821163 | AC112: -31.91820278
A113: 84.88257586 | B113: 533.3329535 | C113: 533.332953510023i | F113: 0.000668911688258523+0.0258546755038974i | G113: -31.74631215 | H113: 88.51797526 | K113: 0.952416219683762-0.21288392181434i | L113: -0.2117321715 | M113: -12.59963755 | O113: -0.1645532275 | P113: -0.1645532275 | AA113: 31.53457998 | AB113: 84.88257586 | AC113: -31.74631215
A114: 86.58022738 | B114: 543.9996126 | C114: 543.999612580223i | F114: 0.00069591691398307+0.0263710563616989i | G114: -31.57442608 | H114: 88.48834838 | K114: 0.950588822252322-0.216724971475983i | L114: -0.2200729678 | M114: -12.84335114 | O114: -0.1709940104 | P114: -0.1709940104 | AA114: 31.35435311 | AB114: 86.58022738 | AC114: -31.57442608
A115: 88.31183193 | B115: 554.8796048 | C115: 554.879604831828i | F115: 0.00072401160169044+0.0268977212583345i | G115: -31.40254475 | H115: 88.4581298 | K115: 0.94869502625407-0.220619068565841i | L115: -0.228733763 | M115: -13.09145293 | O115: -0.1776785257 | P115: -0.1776785257 | AA115: 31.17381098 | AB115: 88.31183193 | AC115: -31.40254475
A116: 90.07806857 | B116: 565.9771969 | C116: 565.977196928464i | F116: 0.000753239638087564+0.0274348732115747i | G116: -31.23066834 | H116: 88.42730773 | K116: 0.946732713534773-0.224565987312991i | L116: -0.2377261595 | M116: -13.34400299 | O116: -0.1846153348 | P116: -0.1846153348 | AA116: 30.99294218 | AB116: 90.07806857 | AC116: -31.23066834
A117: 91.87962994 | B117: 577.2967409 | C117: 577.296740867033i | F117: 0.000783646672407371+0.0279827191369995i | G117: -31.05879706 | H117: 88.39587016 | K117: 0.944699721271439-0.22856543461579i | L117: -0.2470621278 | M117: -13.60106107 | O117: -0.191813248 | P117: -0.191813248 | AA117: 30.81173493 | AB117: 91.87962994 | AC117: -31.05879706
A118: 93.71722254 | B118: 588.8426757 | C118: 588.842675684374i | F118: 0.000815280186751769+0.0285414699160513i | G118: -30.88693112 | H118: 88.36380483 | K118: 0.942593842900933-0.232617046293225i | L118: -0.2567540141 | M118: -13.86268658 | O118: -0.1992813272 | P118: -0.1992813272 | AA118: 30.63017711 | AB118: 93.71722254 | AC118: -30.88693112
A119: 95.59156699 | B119: 600.6195292 | C119: 600.619529198062i | F119: 0.000848189569205667+0.029111340464849i | G119: -30.71507073 | H119: 88.33109925 | K119: 0.94041282924175-0.236720383235743i | L119: -0.266814548 | M119: -14.12893848 | O119: -0.2070288887 | P119: -0.2070288887 | AA119: 30.44825618 | AB119: 95.59156699 | AC119: -30.71507073
A120: 97.50339833 | B120: 612.6319198 | C120: 612.631919782023i | F120: 0.000882426189828104+0.0296925498037405i | G120: -30.54321611 | H120: 88.29774068 | K120: 0.938154389822462-0.240874927460925i | L120: -0.2772568494 | M120: -14.39987514 | O120: -0.2150655054 | P120: -0.2150655054 | AA120: 30.26595926 | AB120: 97.50339833 | AC120: -30.54321611
A121: 99.4534663 | B121: 624.8845582 | C121: 624.884558177663i | F121: 0.000918043479630521+0.0302853211275699i | G121: -30.3713675 | H121: 88.26371613 | K121: 0.935816194430695-0.245080078080505i | L121: -0.2880944355 | M121: -14.67555436 | O121: -0.2234010091 | P121: -0.2234010091 | AA121: 30.08327306 | AB121: 99.4534663 | AC121: -30.3713675
A122: 101.4425356 | B122: 637.3822493 | C122: 637.382249341217i | F122: 0.000955097012655967+0.0308898818766337i | G122: -30.19952513 | H122: 88.22901235 | K122: 0.933395874896811-0.249335147186327i | L122: -0.2993412279 | M122: -14.95603315 | O122: -0.2320454913 | P122: -0.2320454913 | AA122: 29.90018391 | AB122: 101.4425356 | AC122: -30.19952513
A123: 103.4713863 | B123: 650.1298943 | C123: 650.129894328041i | F123: 0.000993644591277248+0.0315064638082961i | G123: -30.02768927 | H123: 88.19361584 | K123: 0.930891027126713-0.253639355664074i | L123: -0.3110115585 | M123: -15.24136773 | O123: -0.2410093049 | P123: -0.2410093049 | AA123: 29.71667771 | AB123: 103.4713863 | AC123: -30.02768927
A124: 105.5408141 | B124: 663.1324922 | C124: 663.132492214602i | F124: 0.00103374633483609+0.0321353030692306i | G124: -29.85586017 | H124: 88.15751281 | K124: 0.928299213398368-0.257991828944909i | L124: -0.3231201755 | M124: -15.53161337 | O124: -0.2503030639 | P124: -0.2503030639 | AA124: 29.53274 | AB124: 105.5408141 | AC124: -29.85586017
A125: 107.6516303 | B125: 676.3951421 | C125: 676.395142058894i | F125: 0.00107546477174972+0.0327766402682527i | G125: -29.68403811 | H125: 88.12068923 | K125: 0.925617964936755-0.26239159270658i | L125: -0.3356822493 | M125: -15.82682427 | O125: =20*LOG(IMABS(IMSUB($K125,$F125))) -> -0.2599376435 | P125: -0.2599376435 | AA125: 29.34835586 | AB125: 107.6516303 | AC125: -29.68403811
A126: 109.8046629 | B126: 689.9230449 | C126: 689.923044900072i | F126: 0.00111886493521559+0.0334307205497031i | G126: -29.51222337 | H126: 88.08313078 | K126: 0.922844784781915-0.266837568536996i | L126: -0.3487133774 | M126: -16.12705351 | O126: -0.2699241792 | P126: -0.2699241792 | AA126: 29.16350999 | AB126: 109.8046629 | AC126: -29.51222337
A127: 112.0007562 | B127: 703.7215058 | C127: 703.721505798073i | F127: 0.00116401446264966+0.0340977936673387i | G127: -29.34041624 | H127: 88.04482286 | K127: 0.919977150964748-0.271328569574849i | L127: -0.3622295889 | M127: -16.43235283 | O127: -0.2802740651 | P127: -0.2802740651 | AA127: 28.97818665 | AB127: 112.0007562 | AC127: -29.34041624
A128: 114.2407713 | B128: 717.7959359 | C128: 717.795935914035i | F128: 0.00121098369899811+0.0347781140586845i | G128: -29.16861703 | H128: 88.00575058 | K128: 0.917012520004895-0.275863296143519i | L128: -0.3762473485 | M128: -16.74277262 | O128: -0.2909989514 | P128: -0.2909989514 | AA128: 28.79236968 | AB128: 114.2407713 | AC128: -29.16861703
A129: 116.5255868 | B129: 732.1518546 | C129: 732.151854632315i | F129: 0.00125984580406726+0.0354719409197922i | G129: -28.99682606 | H129: 87.96589877 | K129: 0.9139483307448-0.28044033139617i | L129: -0.3907835602 | M129: -17.05836167 | O129: -0.3021107413 | P129: -0.3021107413 | AA129: 28.6060425 | AB129: 116.5255868 | AC129: -28.99682606
A130: 118.8560985 | B130: 746.7948917 | C130: 746.794891724962i | F130: 0.00131067686402137+0.0361795382803525i | G130: -28.82504367 | H130: 87.92525195 | K130: 0.910782008533458-0.285058136991768i | L130: -0.4058555697 | M130: -17.37916714 | O130: -0.3136215869 | P130: -0.3136215869 | AA130: 28.4191881 | AB130: 118.8560985 | AC130: -28.82504367
A131: 121.2332205 | B131: 761.7307896 | C131: 761.730789559461i | F131: 0.00136355600720285+0.0369011750790957i | G131: -28.65327019 | H131: 87.88379435 | K131: 0.907510969772797-0.289715048823555i | L131: -0.4214811661 | M131: -17.70523436 | O131: -0.3255438839 | P131: -0.3255438839 | AA131: 28.23178902 | AB131: 121.2332205 | AC131: -28.65327019
A132: 123.6578849 | B132: 776.9654054 | C132: 776.96540535065i | F132: 0.00141856552443473+0.0376371252394177i | G132: -28.48150599 | H132: 87.84150988 | K132: 0.904132626838732-0.294409272823439i | L132: -0.4376785837 | M132: -18.03660668 | O132: -0.3378902654 | P132: -0.3378902654 | AA132: 28.04382741 | AB132: 123.6578849 | AC132: -28.48150599
A133: 126.1310426 | B133: =2*PI()*A133 -> 792.5047135 | C133: =COMPLEX(0,$B133) -> 792.504713457663i | F133: =IMDIV(IMPRODUCT($C133,$E$5),IMSUM(1,IMPRODUCT($C133,$E$5))) -> 0.00147579099397039+0.0383876677451562i | G133: =20*LOG(IMABS($F133)) -> -28.30975144 | H133: =IMARGUMENT($F133)*180/PI() -> 87.79838214 | K133: =IMDIV(1,IMSUM(IMPRODUCT($C133,$J$5),1)) -> 0.900644393388012-0.299138880867653i | L133: =20*LOG(IMABS($K133)) -> -0.4544665017 | M133: =IMARGUMENT($K133)*180/PI() -> -18.37332537 | O133: -0.3506735949 | P133: -0.3506735949 | AA133: =ABS($G133-$L133) -> 27.85528494 | AB133: 126.1310426 | AC133: =$G133 -> -28.30975144
A134: =A133*1.02 -> 128.6536634 | B134: 808.3548077 | C134: 808.354807726816i | F134: 0.00153532141126093+0.0391530867164397i | G134: -28.13800693 | H134: 87.75439442 | K134: 0.897043690060681-0.303901806811012i | L134: -0.4718640435 | M134: -18.7154294 | O134: -0.3639069574 | P134: -0.3639069574 | AA134: 27.66614289 | AB134: =AB133*1.02 -> 128.6536634 | AC134: -28.13800693
A135: 131.2267367 | B135: 824.5219039 | C135: 824.521903881353i | F135: 0.001597249323716+0.0399336714855257i | G135: -27.96627287 | H135: 87.70952968 | K135: 0.893327950586616-0.308695842679056i | L135: -0.4898907752 | M135: -19.06295535 | O135: -0.3776036501 | P135: -0.3776036501 | AA135: 27.4763821 | AB135: 131.2267367 | AC135: -27.96627287
A136: 133.8512714 | B136: 841.012342 | C136: 841.01234195898i | F136: 0.00166167097063963+0.0407297166725349i | G136: -27.79454967 | H136: 87.66377053 | K136: 0.889494628302908-0.313518635049305i | L136: -0.508566703 | M136: -19.41593719 | O136: -0.3917771712 | P136: -0.3917771712 | AA136: 27.28598297 | AB136: 133.8512714 | AC136: -27.79454967
A137: 136.5282969 | B137: 857.8325888 | C137: 857.83258879816i | F137: 0.00172868642852803+0.0415415222609842i | G137: -27.62283778 | H137: 87.61709927 | K137: 0.885541203086979-0.318367681654789i | L137: -0.5279122684 | M137: -19.77440614 | O137: -0.4064412072 | P137: -0.4064412072 | AA137: 27.09492551 | AB137: 136.5282969 | AC137: -27.62283778
A138: 139.2588628 | B138: 874.9892406 | C138: 874.989240574123i | F138: 0.0017983997619224+0.0423693936730125i | G138: -27.45113764 | H138: 87.56949785 | K138: 0.881465188708161-0.323240328244863i | L138: -0.5479483441 | M138: -20.1383905 | O138: -0.4216096192 | P138: -0.4216096192 | AA138: 26.90318929 | AB138: 139.2588628 | AC138: -27.45113764
A139: 142.04404 | B139: 892.4890254 | C139: 892.489025385605i | F139: 0.0018709191800155+0.0432136418441833i | G139: -27.27944973 | H139: 87.52094786 | K139: 0.877264140598062-0.328133765740141i | L139: -0.5686962267 | M139: -20.50791546 | O139: -0.4372964276 | P139: -0.4372964276 | AA139: 26.7107535 | AB139: 142.04404 | AC139: -27.27944973
A140: 144.8849208 | B140: 910.3388059 | C140: 910.338805893317i | F140: 0.00194635719921671+0.0440745832977439i | G140: -27.10777454 | H140: 87.47143054 | K140: 0.872935664037362-0.333045027719995i | L140: -0.5901776292 | M140: -20.88300295 | O140: -0.4535157944 | P140: -0.4535157944 | AA140: 26.51759691 | AB140: 144.8849208 | AC140: -27.10777454
A141: 147.7826193 | B141: 928.545582 | C141: 928.545582011184i | F141: 0.00202483081188634+0.0449525402182076i | G141: -26.93611259 | H141: 87.42092677 | K141: 0.868477422753724-0.337970988282683i | L141: -0.6124146714 | M141: -21.26367144 | O141: -0.4702820047 | P141: -0.4702820047 | AA141: 26.32369792 | AB141: 147.7826193 | AC141: -26.93611259
A142: 150.7382716 | B142: 947.1164937 | C142: 947.116493651407i | F142: 0.00210646166145611+0.0458478405241177i | G142: -26.76446441 | H142: 87.36941705 | K142: 0.863887147922279-0.342908360319473i | L142: -0.6354298696 | M142: -21.64993575 | O142: -0.4876094464 | P142: -0.4876094464 | AA142: 26.12903454 | AB142: 150.7382716 | AC142: -26.76446441
A143: 153.7530371 | B143: 966.0588235 | C143: 966.058823524435i | F143: 0.00219137622415885+0.0467608179398419i | G143: -26.59283055 | H143: 87.31688152 | K143: 0.859162647556633-0.347853694245311i | L143: -0.6592461236 | M143: -22.04180688 | O143: -0.505512587 | P143: -0.505512587 | AA143: 25.93358442 | AB143: 153.7530371 | AC143: -26.59283055
A144: 156.8280978 | B144: 985.38 | C144: 985.379999994924i | F144: 0.00227970599759662+0.0476918120662357i | G144: -26.42121158 | H144: 87.26329994 | K144: 0.854301816274569-0.352803377229501i | L144: -0.6838867031 | M144: -22.43929184 | O144: -0.5240059498 | P144: -0.5240059498 | AA144: 25.73732488 | AB144: 156.8280978 | AC144: -26.42121158
A145: 159.9646598 | B145: 1005.0876 | C145: 1005.08759999482i | F145: 0.00237158769638262+0.048641168449997i | G145: -26.24960811 | H145: 87.20865166 | K145: 0.849302645418594-0.357753632970473i | L145: -0.7093752317 | M145: -22.84239344 | O145: =20*LOG(IMABS(IMSUB($K145,$F145))) -> -0.5431040874 | P145: -0.5431040874 | AA145: 25.54023288 | AB145: 159.9646598 | AC145: -26.24960811
A146: 163.163953 | B146: 1025.189352 | C146: 1025.18935199472i | F146: 0.0024671634550989+0.0496092386515327i | G146: -26.07802077 | H146: 87.15291564 | K146: 0.844163233507167-0.362700522059028i | L146: -0.7357356693 | M146: -23.2511101 | O146: -0.5628215532 | P146: -0.5628215532 | AA146: 25.3422851 | AB146: 163.163953 | AC146: -26.07802077
A147: 166.427232 | B147: 1045.693139 | C147: 1045.69313903461i | F147: 0.00256658103881715+0.0505963803111283i | G147: -25.90645019 | H147: 87.09607047 | K147: 0.838881796987991-0.36763994297436i | L147: -0.7629922932 | M147: -23.6654357 | O147: -0.5831728711 | P147: -0.5831728711 | AA147: 25.14345789 | AB147: 166.427232 | AC147: -25.90645019
A148: 169.7557767 | B148: 1066.607002 | C148: 1066.60700181531i | F148: 0.00266999406143768+0.0516029572132215i | G148: -25.73489705 | H148: 87.03809428 | K148: 0.833456681259961-0.372567633756735i | L148: -0.7911696762 | M148: -24.08535935 | O148: -0.6041725025 | P148: -0.6041725025 | AA148: 24.94372737 | AB148: 169.7557767 | AC148: -25.73489705
A149: 173.1508922 | B149: 1087.939142 | C149: 1087.93914185161i | F149: 0.00277756221210542+0.0526293393485354i | G149: -25.56336205 | H149: 86.97896483 | K149: 0.827886371925589-0.377479174399694i | L149: -0.8202926639 | M149: -24.51086526 | O149: -0.625834812 | P149: -0.625834812 | AA149: 24.74306939 | AB149: 173.1508922 | AC149: -25.56336205
A150: 176.6139101 | B150: 1109.697925 | C150: 1109.69792468864i | F150: 0.00288945148997106+0.0536759029738501i | G150: -25.39184592 | H150: 86.91865942 | K150: 0.822169506230566-0.382369990003338i | L150: -0.8503863498 | M150: -24.94193252 | O150: -0.6481740302 | P150: -0.6481740302 | AA150: 24.54145957 | AB150: 176.6139101 | AC150: -25.39184592
A151: 180.1461883 | B151: 1131.891883 | C151: 1131.89188318242i | F151: 0.00300583444756788+0.0547430306691335i | G151: -25.22034943 | H151: 86.85715494 | K151: 0.816304884642191-0.38723535472822i | L151: -0.8814760474 | M151: -25.37853494 | O151: -0.6712042143 | P151: -0.6712042143 | AA151: 24.33887338 | AB151: 180.1461883 | AC151: -25.22034943
A152: 183.749112 | B152: 1154.529721 | C152: 1154.52972084607i | F152: 0.00312689044308332+0.0558311113917704i | G152: -25.04887335 | H152: 86.79442785 | K152: 0.810291482513101-0.392070396586917i | L152: -0.9135872621 | M152: -25.82064091 | O152: -0.6949392068 | P152: -0.6949392068 | AA152: 24.13528609 | AB152: 183.749112 | AC152: -25.04887335
A153: 187.4240943 | B153: 1177.620315 | C153: 1177.62031526299i | F153: 0.0032528059018093+0.0569405405275929i | G153: -24.87741851 | H153: 86.73045413 | K153: 0.804128461771692-0.396870103107282i | L153: -0.9467456595 | M153: -26.26821319 | O153: -0.7193925917 | P153: -0.7193925917 | AA153: 23.93067285 | AB153: 187.4240943 | AC153: -24.87741851
A154: 191.1725761 | B154: 1201.172722 | C154: 1201.17272156825i | F154: 0.00338377458705974+0.0580717199383978i | G154: -24.70598576 | H154: 86.66520935 | K154: 0.79781518257556-0.40162932789761i | L154: -0.9809770324 | M154: -26.72120877 | O154: -0.7445776485 | P154: -0.7445776485 | AA154: 23.72500872 | AB154: 191.1725761 | AC154: -24.70598576
A155: 194.9960277 | B155: 1225.196176 | C155: 1225.19617599961i | F155: 0.00351999788085014+0.0592250580056192i | G155: -24.53457598 | H155: 86.5986686 | K155: 0.791351214859405-0.406342798139636i | L155: -1.016307266 | M155: -27.17957875 | O155: -0.7705073042 | P155: -0.7705073042 | AA155: 23.51826871 | AB155: 194.9960277 | AC155: -24.53457598
A156: 198.8959482 | B156: 1249.7001 | C156: 1249.7000995196i | F156: 0.00366168507463887+0.0604009696698078i | G156: -24.3631901 | H156: 86.53080649 | K156: 0.784736349704139-0.411005123030312i | L156: -1.0527623 | M156: -27.64326817 | O156: -0.7971940826 | P156: -0.7971940826 | AA156: 23.3104278 | AB156: 198.8959482 | AC156: -24.3631901
A157: 202.8738672 | B157: 1274.694102 | C157: 1274.69410151i | F157: 0.0038090536704334+0.0615998764655349i | G157: -24.19182908 | H157: 86.46159718 | K157: 0.777970610449634-0.415610803187619i | L157: -1.090368091 | M157: -28.11221588 | O157: -0.8246500523 | P157: -0.8246500523 | AA157: 23.10146099 | AB157: 202.8738672 | AC157: -24.19182908
A158: 206.9313445 | B158: 1300.187984 | C158: 1300.1879835402i | F158: 0.00396232969256997+0.062822206551325i | G158: -24.02049391 | H158: 86.39101433 | K158: 0.771054263469529-0.4201542410294i | L158: -1.129150571 | M158: -28.58635446 | O158: -0.8528867717 | P158: -0.8528867717 | AA158: 22.89134334 | AB158: 206.9313445 | AC158: -24.02049391
A159: 211.0699714 | B159: 1326.191743 | C159: 1326.191743211i | F159: 0.00412174801047887+0.0640683947341978i | G159: -23.84918563 | H159: 86.31903113 | K159: 0.763987828523028-0.424629752127305i | L159: -1.169135603 | M159: -29.06561005 | O159: -0.8819152326 | P159: -0.8819152326 | AA159: 22.68005003 | AB159: 211.0699714 | AC159: -23.84918563
A160: 215.2913708 | B160: 1352.715578 | C160: 1352.71557807522i | F160: 0.00428755267274958+0.065338882488362i | G160: -23.67790532 | H160: 86.24562025 | K160: 0.756772088595745-0.429031577530348i | L160: -1.21034894 | M160: -29.54990234 | O160: -0.9117458021 | P160: -0.9117458021 | AA160: 22.46755638 | AB160: 215.2913708 | AC160: -23.67790532
A161: 219.5971983 | B161: 1379.76989 | C161: 1379.76988963672i | F161: 0.00445999725281372+0.0666341179675893i | G161: -23.50665409 | H161: 86.17075387 | K161: 0.749408099139326-0.433353897044561i | L161: -1.252816176 | M161: -30.03914442 | O161: -0.9423881621 | P161: -0.9423881621 | AA161: 22.25383791 | AB161: 219.5971983 | AC161: -23.50665409
A162: 223.9891422 | B162: 1407.365287 | C162: 1407.36528742946i | F162: 0.00463934520656563+0.0679545560107632i | G162: -23.33543311 | H162: 86.09440365 | K162: 0.741897196618077-0.43759084344661i | L162: -1.2965627 | M162: -30.53324275 | O162: -0.9738512475 | P162: -0.9738512475 | AA162: 22.03887041 | AB162: 223.9891422 | AC162: -23.33543311
A163: 228.4689251 | B163: 1435.512593 | C163: 1435.51259317805i | F163: 0.00482587024224066+0.0693006581400618i | G163: -23.1642436 | H163: 86.01654073 | K163: 0.734241006270195-0.441736517600171i | L163: -1.341613645 | M163: -31.03209714 | O163: -1.006143183 | P163: -1.006143183 | AA163: 21.82262995 | AB163: 228.4689251 | AC163: -23.1642436
A164: 233.0383036 | B164: 1464.222845 | C164: 1464.22284504161i | F164: 0.00501985670287304+0.0706728925512155i | G164: -22.9930868 | H164: 85.93713574 | K164: 0.726441448991298-0.445785004434561i | L164: -1.38799384 | M164: -31.53560066 | O164: -1.03927122 | P164: -1.03927122 | AA164: 21.60509296 | AB164: 233.0383036 | AC164: -22.9930868
A165: 237.6990696 | B165: 1493.507302 | C165: 1493.50730194244i | F165: 0.00522159996165298+0.0720717340952294i | G165: -22.82196404 | H165: 85.85615876 | K165: 0.718500747249324-0.449730389735325i | L165: -1.435727759 | M165: -32.04363969 | O165: =20*LOG(IMABS(IMSUB($K165,$F165))) -> -1.073241668 | P165: -1.073241668 | AA165: 21.38623628 | AB165: 237.6990696 | AC165: -22.82196404
A166: 242.453051 | B166: 1523.377448 | C166: 1523.37744798129i | F166: 0.00543140683050237+0.0734976642509403i | G166: -22.65087666 | H166: 85.77357932 | K166: 0.710421429941988-0.45356677768678i | L166: -1.484839465 | M166: -32.5560939 | O166: -1.10805983 | P166: -1.10805983 | AA166: 21.16603719 | AB166: 242.453051 | AC166: -22.65087666
A167: 247.3021121 | B167: 1553.844997 | C167: 1553.84499694092i | F167: 0.00564959598218472+0.0749511710877342i | G167: -22.47982609 | H167: 85.68936641 | K167: 0.702206336111435-0.457288309096558i | L167: -1.535352561 | M167: -33.0728363 | O167: -1.143729936 | P167: -1.143729936 | AA167: 20.94447352 | AB167: 247.3021121 | AC167: -22.47982609
A168: 252.2481543 | B168: 1584.921897 | C168: 1584.92189687973i | F168: 0.00587649838626136+0.0764327492177119i | G168: -22.30881379 | H168: 85.60348846 | K168: 0.693858617435207-0.460889180222437i | L168: -1.587290136 | M168: -33.59373327 | O168: -1.180255075 | P168: -1.180255075 | AA168: 20.72152365 | AB168: 252.2481543 | AC168: -22.30881379
A169: 257.2931174 | B169: 1616.620335 | C169: 1616.62033481733i | F169: 0.00611245775920078+0.0779428997365556i | G169: -22.13784129 | H169: 85.51591334 | K169: 0.685381739418283-0.464363662112198i | L169: -1.640674706 | M169: -34.11864465 | O169: -1.217637125 | P169: -1.217637125 | AA169: 20.49716658 | AB169: 257.2931174 | AC169: -22.13784129
A170: 262.4389797 | B170: 1648.952742 | C170: 1648.95274151368i | F170: 0.00635783102893889+0.0794821301522949i | G170: -21.96691018 | H170: 85.42660835 | K170: 0.676779481217884-0.467706120358004i | L170: -1.695528168 | M170: -34.64742383 | O170: -1.255876689 | P170: -1.255876689 | AA170: 20.27138202 | AB170: 262.4389797 | AC170: -21.96691018
A171: 267.6877593 | B171: 1681.931796 | C171: 1681.93179634395i | F171: 0.00661298881418273+0.0810509543011446i | G171: -21.79602212 | H171: 85.33554019 | K171: 0.668055934040612-0.470911035158168i | L171: -1.75187174 | M171: -35.17991787 | O171: -1.294973024 | P171: -1.294973024 | AA171: 20.04415038 | AB171: 267.6877593 | AC171: -21.79602212
A172: 273.0415145 | B172: 1715.570432 | C172: 1715.57043227083i | F172: 0.00687831591873598+0.0826498922495247i | G172: -21.62517881 | H172: 85.242675 | K172: 0.659215498060714-0.473973021571142i | L172: -1.80972591 | M172: -35.71596766 | O172: -1.334923981 | P172: -1.334923981 | AA172: 19.8154529 | AB172: 273.0415145 | AC172: -21.62517881
A173: 278.5023448 | B173: 1749.881841 | C173: 1749.88184091625i | F173: 0.00715421184111357+0.084279470181332i | G173: -21.45438204 | H173: 85.14797831 | K173: 0.650262877818456-0.476886849839368i | L173: -1.869110383 | M173: -36.25540802 | O173: -1.37572593 | P173: -1.37572593 | AA173: 19.58527166 | AB173: 278.5023448 | AC173: -21.45438204
A174: 284.0723917 | B174: 1784.879478 | C174: 1784.87947773457i | F174: 0.00744109129969763+0.0859402202694827i | G174: -21.28363367 | H174: 85.05141506 | K174: 0.641203076068705-0.479647465654449i | L174: -1.930044029 | M174: -36.79806799 | O174: -1.417373707 | P174: -1.417373707 | AA174: 19.35358964 | AB174: 284.0723917 | AC174: -21.28363367
A175: 289.7538395 | B175: 1820.577067 | C175: 1820.57706728926i | F175: 0.00773938477366975+0.0876326805306949i | G175: -21.11293561 | H175: 84.95294958 | K175: 0.632041386062006-0.482250010229989i | L175: -1.992544832 | M175: -37.34377095 | O175: -1.459860541 | P175: -1.459860541 | AA175: 19.12039078 | AB175: 289.7538395 | AC175: -21.11293561
A176: 295.5489163 | B176: 1856.988609 | C176: 1856.98860863505i | F176: 0.00804953905993262+0.0893573946624186i | G176: -20.94228988 | H176: 84.85254557 | K176: 0.622783382253257-0.48468984004459i | L176: -2.056629842 | M176: -37.89233489 | O176: -1.503178005 | P176: -1.503178005 | AA176: 18.88566004 | AB176: 295.5489163 | AC176: -20.94228988
A177: 301.4598947 | B177: 1894.128381 | C177: 1894.12838080775i | F177: 0.00837201784621347+0.0911149118607714i | G177: -20.77169855 | H177: 84.75016613 | K177: 0.613434909446589-0.486962546115042i | L177: -2.122315128 | M177: -38.44357268 | O177: -1.547315947 | P177: -1.547315947 | AA177: 18.64938342 | AB177: 301.4598947 | AC177: -20.77169855
A178: 307.4890925 | B178: 1932.010948 | C178: 1932.0109484239i | F178: 0.00870730230051427+0.0929057866182819i | G178: -20.60116377 | H178: 84.64577372 | K178: 0.604002070399045-0.489063972658702i | L178: -2.189615727 | M178: -38.99729231 | O178: -1.592262446 | P178: -1.592262446 | AA178: 18.41154805 | AB178: 307.4890925 | AC178: -20.60116377
A179: 313.6388744 | B179: 1970.651167 | C179: 1970.65116739238i | F179: 0.00905589167704317+0.0947305785001698i | G179: -20.43068781 | H179: 84.53933019 | K179: 0.594491211919959-0.490990235004625i | L179: -2.25854561 | M179: -39.55329721 | O179: -1.638003753 | P179: -1.638003753 | AA179: 18.1721422 | AB179: 313.6388744 | AC179: -20.43068781
A180: 319.9116519 | B180: 2010.064191 | C180: 2010.06419074023i | F180: 0.00941830393872961+0.0965898518978434i | G180: -20.26027299 | H180: 84.43079673 | K180: 0.584908909517321-0.492737736615108i | L180: -2.329117633 | M180: -40.11138658 | O180: -1.684524243 | P180: -1.684524243 | AA180: 17.93115535 | AB180: 319.9116519 | AC180: -20.26027299
A181: 326.3098849 | B181: 2050.265475 | C181: 2050.26547455503i | F181: 0.00979507639638744+0.098484175758222i | G181: -20.08992172 | H181: 84.3201339 | K181: 0.575261950656706-0.494303185083151i | L181: -2.401343504 | M181: -40.67135569 | O181: -1.731806377 | P181: -1.731806377 | AA181: 17.68857822 | AB181: 326.3098849 | AC181: -20.08992172
A182: 332.8360826 | B182: 2091.270784 | C182: 2091.27078404613i | F182: 0.0101867663645487+0.100414123287428i | G182: -19.91963654 | H182: 84.2073016 | K182: 0.565557316712419-0.495683606976736i | L182: -2.475233747 | M182: -41.23299627 | O182: -1.779830656 | P182: -1.779830656 | AA182: 17.4444028 | AB182: 332.8360826 | AC182: -19.91963654
A183: 339.4928043 | B183: 2133.0962 | C183: 2133.09619972706i | F183: 0.0105939518339433+0.102380271627318i | G183: -19.74942006 | H183: 84.09225908 | K183: 0.555802163704002-0.496876361407898i | L183: -2.550797669 | M183: -41.79609686 | O183: -1.828575585 | P183: -1.828575585 | AA183: 17.19862239 | AB183: 339.4928043 | AC183: -19.74942006
A184: 346.2826604 | B184: 2175.758124 | C184: 2175.7581237216i | F184: 0.0110172321605497+0.10438320150326i | G184: -19.57927499 | H184: 83.97496495 | K184: 0.54600380192407-0.497879152213196i | L184: -2.628043332 | M184: -42.36044319 | O184: -1.878017648 | P184: -1.878017648 | AA184: 16.95123166 | AB184: 346.2826604 | AC184: -19.57927499
A185: 353.2083136 | B185: 2219.273286 | C185: 2219.27328619603i | F185: 0.0114572287710846+0.106423496841495i | G185: -19.40920415 | H185: 83.85537713 | K185: 0.536169674575326-0.498690038642357i | L185: -2.706977531 | M185: -42.92581859 | O185: =20*LOG(IMABS(IMSUB($K185,$F185))) -> -1.928131277 | P185: -1.928131277 | AA185: 16.70222662 | AB185: 353.2083136 | AC185: -19.40920415
A186: 360.2724798 | B186: 2263.658752 | C186: 2263.65875191995i | F186: 0.0119145858847343+0.108501744354317i | G186: -19.23921048 | H186: 83.73345291 | K186: 0.526307335545461-0.499307444463327i | L186: -2.787605768 | M186: -43.49200439 | O186: -1.978888835 | P186: -1.978888835 | AA186: 16.45160471 | AB186: 360.2724798 | AC186: -19.23921048
A187: 367.4779294 | B187: 2308.931927 | C187: 2308.93192695835i | F187: 0.0123899712508639+0.11061853309128i | G187: -19.06929701 | H187: 83.60914889 | K187: 0.516424426458103-0.499730165404814i | L187: -2.869932241 | M187: -44.05878036 | O187: -2.030260599 | P187: -2.030260599 | AA187: 16.19936477 | AB187: 367.4779294 | AC187: -19.06929701
A188: 374.827488 | B188: 2355.110565 | C188: 2355.11056549752i | F188: 0.0128840769023652+0.112774453954516i | G188: -18.89946692 | H188: 83.48242099 | K188: 0.506528653146097-0.499957374871196i | L188: -2.953959826 | M188: -44.6259251 | O188: -2.082214754 | P188: -2.082214754 | AA188: 15.94550709 | AB188: 374.827488 | AC188: -18.89946692
A189: 382.3240378 | B189: 2402.212777 | C189: 2402.21277680747i | F189: 0.013397619924218+0.114970099176195i | G189: -18.72972347 | H189: 83.3532245 | K189: 0.496627761699874-0.499988627879522i | L189: -3.039690069 | M189: -45.19321649 | O189: -2.134717391 | P189: -2.134717391 | AA189: 15.6900334 | AB189: 382.3240378 | AC189: -18.72972347
A190: 389.9705185 | B190: 2450.257032 | C190: 2450.25703234362i | F190: 0.013931343236751+0.117206061756083i | G190: -18.56007008 | H190: 83.22151399 | K190: 0.4867295142485-0.499823863183741i | L190: -3.127123183 | M190: -45.76043212 | O190: -2.187732509 | P190: -2.187732509 | AA190: 15.43294689 | AB190: 389.9705185 | AC190: -18.56007008
A191: 397.7699289 | B191: 2499.262173 | C191: 2499.26217299049i | F191: 0.014486016392989+0.119482934857038i | G191: -18.39051028 | H191: 83.0872434 | K191: 0.476841664634039-0.499463403567346i | L191: -3.216258046 | M191: -46.32734975 | O191: -2.241222026 | P191: -2.241222026 | AA191: 15.17425223 | AB191: 397.7699289 | AC191: -18.39051028
A192: 405.7253275 | B192: 2549.247416 | C192: 2549.2474164503i | F192: 0.0150624363893673+0.121801311156258i | G192: -18.22104774 | H192: 82.95036596 | K192: 0.466971934141032-0.498907954301809i | L192: -3.307092205 | M192: -46.89374769 | O192: -2.295145798 | P192: -2.295145798 | AA192: 14.91395554 | AB192: 405.7253275 | AC192: -18.22104774
A193: 413.839834 | B193: 2600.232365 | C193: 2600.2323647793i | F193: 0.0156614284889743+0.12416178214998i | G193: -18.05168628 | H193: 82.81083425 | K193: 0.45712798744238-0.498158599784506i | L193: -3.399621884 | M193: -47.45940529 | O193: -2.349461643 | P193: -2.349461643 | AA193: 14.6520644 | AB193: 413.839834 | AC193: -18.05168628
A194: 422.1166307 | B194: 2652.237012 | C194: 2652.23701207489i | F194: 0.0162838470563585+0.126564937409235i | G194: -17.88242985 | H194: 82.66860017 | K194: 0.447317408920258-0.4972167983859i | L194: -3.493841994 | M194: -48.02410333 | O194: -2.404125372 | P194: -2.404125372 | AA194: 14.38858786 | AB194: 422.1166307 | AC194: -17.88242985
A195: 430.5589633 | B195: 2705.281752 | C195: 2705.28175231639i | F195: 0.0169305764027999+0.129011363784237i | G195: -17.71328256 | H195: 82.52361496 | K195: 0.437547679516715-0.496084375551431i | L195: -3.58974615 | M195: -48.58762448 | O195: -2.459090824 | P195: -2.459090824 | AA195: 14.12353641 | AB195: 430.5589633 | AC195: -17.71328256
A196: 439.1701426 | B196: 2759.387387 | C196: 2759.38738736272i | F196: 0.0176025316407973+0.131501644554857i | G196: -17.54424866 | H196: 82.3758292 | K196: 0.427826154262292-0.494763515218563i | L196: -3.687326693 | M196: -49.14975364 | O196: -2.514309918 | P196: -2.514309918 | AA196: 13.85692197 | AB196: 439.1701426 | AC196: -17.54424866
A197: 447.9535455 | B197: =2*PI()*A197 -> 2814.575135 | C197: =COMPLEX(0,$B197) -> 2814.57513510997i | F197: =IMDIV(IMPRODUCT($C197,$E$5),IMSUM(1,IMPRODUCT($C197,$E$5))) -> 0.0183006595463615+0.13403635852458i | G197: =20*LOG(IMABS($F197)) -> -17.37533258 | H197: =IMARGUMENT($F197)*180/PI() -> 82.22519279 | K197: =IMDIV(1,IMSUM(IMPRODUCT($C197,$J$5),1)) -> 0.418160040623761-0.493256749623658i | L197: =20*LOG(IMABS($K197)) -> -3.786574707 | M197: =IMARGUMENT($K197)*180/PI() -> -49.71027843 | O197: -2.569732698 | P197: -2.569732698 | AA197: =ABS($G197-$L197) -> 13.58875788 | AB197: 447.9535455 | AC197: =$G197 -> -17.37533258
A198: =A197*1.02 -> 456.9126164 | B198: 2870.866638 | C198: 2870.86663781217i | F198: 0.0190259394275378+0.136616079055276i | G198: -17.2065389 | H198: 82.071655 | K198: 0.408556377802711-0.49156694758643i | L198: -3.887480055 | M198: -50.2689895 | O198: -2.625307399 | P198: -2.625307399 | AA198: 13.31905885 | AB198: =AB197*1.02 -> 456.9126164 | AC198: -17.2065389
A199: 466.0508687 | B199: 2928.283971 | C199: 2928.28397056841i | F199: 0.0197793839973918+0.13924137304004i | G199: -17.03787238 | H199: 81.91516445 | K199: 0.399022017106501-0.489697301371735i | L199: -3.990031403 | M199: -50.82568097 | O199: -2.680980507 | P199: -2.680980507 | AA199: 13.04784098 | AB199: 466.0508687 | AC199: -17.03787238
A200: 475.3718861 | B200: 2986.84965 | C200: 2986.84964997978i | F200: 0.0205620402494958+0.141912799811271i | G200: -16.86933795 | H200: 81.75566909 | K200: 0.389563603501402-0.487651312238986i | L200: -4.094216256 | M200: -51.38015074 | O200: -2.736696837 | P200: -2.736696837 | AA200: 12.7751217 | AB200: 475.3718861 | AC200: -16.86933795
... 190 more rows

Sheet Pass11 (hidden)
A1: PASSIVE CROSSOVER | C1: =Calc11!$T$2 -> MG 10.1
C2: Woofer Low Pass | G2: Tweeter High Pass | M2: fc
C3: =Calc11!$T$19*10^-3 -> 0.0018 | D3: =Calc11!$T$18 -> 4.3 | G3: =Calc11!$T$22*10^-6 -> 1.2e-05 | H3: =Calc11!$T$21 -> 4 | L3: =MIN(L5:L390) -> 0.1240405596 | M3: =ROUND(VLOOKUP(L3,$L$5:$M$390,2,0),0) -> 1114 | N3: =ROUND(VLOOKUP($L$3,$L$5:$N$390,3,0),1) -> -9.9
A4: f | B4: w | C4: XL | D4: Z | E4: Volt Div | F4: Woofer | G4: XC1 | H4: Z | I4: Volt Div | J4: Tweeter | K4: Net Output | N4: =$J4 -> Tweeter
A5: 10 | B5: =2*PI()*$A5 -> 62.83185307 | C5: =COMPLEX(0,$C$3*$B5) -> 0.113097335529233i | D5: =IMSUM($C5,$D$3) -> 4.3+0.113097335529233i | E5: =IMDIV($D$3,$D5) -> 0.999308698493175-0.0262835235280846i | F5: =20*LOG(IMABS($E5)) -> -0.003003322518 | G5: =COMPLEX(0,-1/($B5*$G$3)) -> -1326.29119243246i | H5: =IMSUM($H$3,$G5) -> 4-1326.29119243246i | I5: =IMDIV($H$3,$H5) -> 9.09574468272011E-06+0.00301590151532652i | J5: =20*LOG(IMABS($I5)) -> -50.41161739 | K5: =20*LOG(IMABS(IMSUB($E5,$I5))) -> -0.002353852168 | L5: =ABS(F5-J5) -> 50.40861407 | M5: =A5 -> 10 | N5: -50.41161739
A6: =$A5*1.02 -> 10.2 | B6: 64.08849013 | C6: 0.115359282239817i | D6: 4.3+0.115359282239817i | E6: 0.999280789998814-0.0268084452768141i | F6: -0.00312461311 | G6: -1300.28548277692i | H6: 4-1300.28548277692i | I6: 9.46320929047463E-06+0.00307621841522096i | J6: -50.23961555 | K6: -0.002448905299 | L6: 50.23649094 | M6: 10.2 | N6: -50.23961555
A7: 10.404 | B7: 65.37025994 | C7: 0.117666467884614i | D7: 4.3+0.117666467884614i | E7: 0.999251755655817-0.0273438196780278i | F7: -0.003250800246 | G7: -1274.78968899698i | H7: 4-1274.78968899698i | I7: 9.84551918173339E-06+0.00313774158392393i | J7: -50.06761377 | K7: -0.002547795075 | L7: 50.06436297 | M7: 10.404 | N7: -50.06761377
A8: 10.61208 | B8: 66.67766513 | C8: 0.120019797242306i | D8: 4.3+0.120019797242306i | E8: 0.999221550116129-0.027889852987228i | F8: -0.003382081451 | G8: -1249.79381274214i | H8: 4-1249.79381274214i | I8: 0.0000102432740823212+0.00320049514257673i | J8: -49.89561207 | K8: -0.002650676208 | L8: 49.89222998 | M8: 10.61208 | N8: -49.89561207
A9: 10.8243216 | B9: 68.01121844 | C9: 0.122420193187152i | D9: 4.3+0.122420193187152i | E9: 0.999190126210845-0.0284467554142852i | F9: -0.003518662205 | G9: -1225.28805170798i | H9: 4-1225.28805170798i | I9: 0.0000106570979450385+0.00326450369448434i | J9: -49.72361043 | K9: -0.002757709637 | L9: 49.72009177 | M9: 10.8243216 | N9: -49.72361043
A10: 11.04080803 | B10: 69.37144281 | C10: 0.124868597050895i | D10: 4.3+0.124868597050895i | E10: 0.999157434877569-0.0290147411921239i | F10: -0.003660756263 | G10: -1201.26279579214i | H10: 4-1201.26279579214i | I10: 0.0000110876399282706+0.00332979233474273i | J10: -49.55160886 | K10: -0.002869062776 | L10: 49.54794811 | M10: 11.04080803 | N10: -49.55160886
A11: 11.26162419 | B11: 70.75887166 | C11: 0.127365968991913i | D11: 4.3+0.127365968991913i | E11: 0.999123425084909-0.0295940286461531i | F11: -0.003808585985 | G11: -1177.70862332563i | H11: 4-1177.70862332563i | I11: 0.0000115355754141195+0.00339638666005792i | J11: -49.37960737 | K11: -0.002984909778 | L11: 49.37579879 | M11: 11.26162419 | N11: -49.37960737
A12: 11.48685668 | B12: 72.1740491 | C12: 0.129913288371751i | D12: 4.3+0.129913288371751i | E12: 0.999088043754017-0.0301848402644149i | F12: -0.003962382688 | G12: -1154.61629737806i | H12: 4-1154.61629737806i | I12: 0.0000120016070676542+0.00346431277876031i | J12: -49.20760596 | K12: -0.003105431797 | L12: 49.20364358 | M12: 11.48685668 | N12: -49.20760596
A13: 11.71659381 | B13: 73.61753008 | C13: 0.132511554139186i | D13: 4.3+0.132511554139186i | E13: 0.999051235677034-0.0307874027684274i | F13: -0.004122386997 | G13: -1131.97676213536i | H13: 4-1131.97676213536i | I13: 0.0000124864659389379+0.00353359732101809i | J13: -49.03560463 | K13: -0.003230817276 | L13: 49.03148224 | M13: 11.71659381 | N13: -49.03560463
A14: 11.95092569 | B14: 75.08988068 | C14: 0.13516178522197i | D14: 4.3+0.13516178522197i | E14: 0.999012943432342-0.0314019471846908i | F14: -0.004288849223 | G14: -1109.78113934839i | H14: 4-1109.78113934839i | I14: 0.0000129909126095633+0.00360426744925413i | J14: -48.86360339 | K14: -0.003361262236 | L14: 48.85931454 | M14: 11.95092569 | N14: -48.86360339
A15: 12.1899442 | B15: 76.59167829 | C15: 0.137865020926409i | D15: 4.3+0.137865020926409i | E15: 0.998973107296497-0.0320287089168259i | F15: -0.004462029752 | G15: -1088.02072485136i | H15: 4-1088.02072485136i | I15: 0.000013515738385486+0.00367635086876944i | J15: -48.69160223 | K15: -0.003496970577 | L15: 48.6871402 | M15: 12.1899442 | N15: -48.69160223
A16: 12.43374308 | B16: 78.12351186 | C16: 0.140622321344937i | D16: 4.3+0.140622321344937i | E16: 0.998931665152712-0.0326679278183111i | F16: -0.004642199443 | G16: -1066.68698514839i | H16: 4-1066.68698514839i | I16: 0.0000140617665380313+0.00374987583857827i | J16: -48.51960117 | K16: -0.003638154397 | L16: 48.51495897 | M16: 12.43374308 | N16: -48.51960117
A17: 12.68241795 | B17: 79.6859821 | C17: 0.143434767771836i | D17: 4.3+0.143434767771836i | E17: 0.998888552395769-0.033319848265775i | F17: -0.004829640058 | G17: -1045.77155406705i | H17: 4-1045.77155406705i | I17: 0.0000146298535950156+0.00382487118245823i | J17: -48.3476002 | K17: -0.003785034319 | L17: 48.34277056 | M17: 12.68241795 | N17: -48.3476002
A18: 12.9360663 | B18: 81.27970174 | C18: 0.146303463127273i | D18: 4.3+0.146303463127273i | E18: 0.998843701833217-0.0339847192328058i | F18: -0.005024644687 | G18: -1025.2662294775i | H18: 4-1025.2662294775i | I18: 0.0000152208906840064+0.00390136630022012i | J18: -48.17559933 | K18: -0.003937839827 | L18: 48.17057469 | M18: 12.9360663 | N18: -48.17559933
A19: 13.19478763 | B19: 82.90529577 | C19: 0.149229532389818i | D19: 4.3+0.149229532389818i | E19: 0.998797043582721-0.0346627943642284i | F19: -0.005227518209 | G19: -1005.16297007598i | H19: 4-1005.16297007598i | I19: 0.000015835804929824+0.00397939117920145i | J19: -48.00359857 | K19: -0.004096809628 | L19: 47.99837105 | M19: 13.19478763 | N19: -48.00359857
A20: 13.45868338 | B20: 84.56340169 | C20: 0.152214123037615i | D20: 4.3+0.152214123037615i | E20: 0.99874850496542-0.0353543320508001i | F20: -0.005438577763 | G20: -985.453892231356i | H20: 4-985.453892231356i | I20: 0.0000164755609084766+0.00405897640598825i | J20: -47.83159791 | K20: -0.004262192014 | L20: 47.82615933 | M20: 13.45868338 | N20: -47.83159791
A21: 13.72785705 | B21: 86.25466972 | C21: 0.155258405498367i | D21: 4.3+0.155258405498367i | E21: 0.998698010395138-0.0360595955042653i | F21: -0.005658153237 | G21: -966.131266893486i | H21: 4-966.131266893486i | I21: 0.0000171411621598045+0.00414015317836965i | J21: -47.65959737 | K21: -0.004434245246 | L21: 47.65393921 | M21: 13.72785705 | N21: -47.65959737
A22: 14.00241419 | B22: 87.97976312 | C22: 0.158363573608334i | D22: 4.3+0.158363573608334i | E22: 0.998645481263301-0.0367788528327142i | F22: -0.005886587777 | G22: -947.187516562241i | H22: 4-947.187516562241i | I22: 0.0000178336527612034+0.00422295331752941i | J22: -47.48759694 | K22: -0.004613237955 | L22: 47.48171035 | M22: 14.00241419 | N22: -47.48759694
A23: 14.28246248 | B23: 89.73935838 | C23: 0.161530845080501i | D23: 4.3+0.161530845080501i | E23: 0.998590835819406-0.037512377116175i | F23: -0.00612423832 | G23: -928.615212315923i | H23: 4-928.615212315923i | I23: 0.0000185541189648923+0.0043074092804796i | J23: -47.31559663 | K23: -0.004799449551 | L23: 47.30947239 | M23: 14.28246248 | N23: -47.31559663
A24: 14.56811173 | B24: 91.53414555 | C24: 0.164761461982111i | D24: 4.3+0.164761461982111i | E24: 0.998533989046855-0.0382604464823695i | F24: -0.006371476142 | G24: -910.407070897964i | H24: 4-910.407070897964i | I24: 0.0000193036909012897+0.00439355417274071i | J24: -47.14359645 | K24: -0.004993170654 | L24: 47.13722498 | M24: 14.56811173 | N24: -47.14359645
A25: 14.85947396 | B25: 93.36482846 | C25: 0.168056691221753i | D25: 4.3+0.168056691221753i | E25: 0.998474852534017-0.0390233441825569i | F25: -0.006628687434 | G25: -892.555951860749i | H25: 4-892.555951860749i | I25: 0.0000200835443511659+0.00448142176127311i | J25: -46.9715964 | K25: -0.005194703543 | L25: 46.96496772 | M25: 14.85947396 | N25: -46.9715964
A26: 15.15666344 | B26: 95.23212503 | C26: 0.171417825046188i | D26: 4.3+0.171417825046188i | E26: 0.998413334340315-0.0398013586673789i | F26: -0.006896273895 | G26: -875.05485476544i | H26: 4-875.05485476544i | I26: 0.0000208949025893474+0.00457104648766485i | J26: -46.79959649 | K26: -0.005404362615 | L26: 46.79270022 | M26: 15.15666344 | N26: -46.79959649
A27: 15.45979671 | B27: 97.13676753 | C27: 0.174846181547112i | D27: 4.3+0.174846181547112i | E27: 0.998349338857177-0.0405947836626189i | F27: -0.007174653349 | G27: -857.896916436706i | H27: 4-857.896916436706i | I27: 0.0000217390383028595+0.00466246348158065i | J27: -46.62759672 | K27: -0.005622474875 | L27: 46.62042207 | M27: 15.45979671 | N27: -46.62759672
A28: 15.76899264 | B28: 99.07950288 | C28: 0.178343105178054i | D28: 4.3+0.178343105178054i | E28: 0.998282766663649-0.0414039182447753i | F28: -0.007464260395 | G28: -841.07540827128i | H28: 4-841.07540827128i | I28: 0.0000226172755865111+0.00475570857447722i | J28: -46.4555971 | K28: -0.005849380427 | L28: 46.44813284 | M28: 15.76899264 | N28: -46.4555971
A29: 16.08437249 | B29: 101.0610929 | C29: 0.181909967281616i | D29: 4.3+0.181909967281616i | E29: 0.998213514376492-0.0422290669163476i | F29: -0.007765547069 | G29: -824.583733599294i | H29: 4-824.583733599294i | I29: 0.0000235309920190461+0.00485081831359006i | J29: -46.28359763 | K29: -0.006085433004 | L29: 46.27583209 | M29: 16.08437249 | N29: -46.28359763
A30: 16.40605994 | B30: 103.0823148 | C30: 0.185548166627248i | D30: 4.3+0.185548166627248i | E30: 0.998141474494557-0.043070539680717i | F30: -0.008078983541 | G30: -808.415425097347i | H30: 4-808.415425097347i | I30: 0.0000244816208231119+0.00494782997619702i | J30: -46.11159833 | K30: -0.006331000502 | L30: 46.10351934 | M30: 16.40605994 | N30: -46.11159833
A31: 16.73418114 | B31: 105.1439611 | C31: 0.189259129959793i | D31: 4.3+0.189259129959793i | E31: 0.998066535237238-0.0439286521165081i | F31: -0.008405058838 | G31: -792.564142252301i | H31: 4-792.564142252301i | I31: 0.0000254706531124256+0.00504678158416387i | J31: -45.93959919 | K31: -0.006586465548 | L31: 45.93119413 | M31: 16.73418114 | N31: -45.93959919
A32: 17.06886477 | B32: 107.2468403 | C32: 0.193044312558989i | D32: 4.3+0.193044312558989i | E32: 0.997988580376785-0.0448037254512925i | F32: -0.008744281592 | G32: -777.023668874805i | H32: 4-777.023668874805i | I32: 0.0000264996402296566+0.00514771191877753i | J32: -45.76760022 | K32: -0.006852226079 | L32: 45.75885594 | M32: 17.06886477 | N32: -45.76760022
A33: 17.41024206 | B33: 109.3917771 | C33: 0.196905198810168i | D33: 4.3+0.196905198810168i | E33: 0.997907489064276-0.0456960866345016i | F33: -0.009097180825 | G33: -761.787910661574i | H33: 4-761.787910661574i | I33: 0.0000275701961786834+0.00525066053587223i | J33: -45.59560144 | K33: -0.007128695952 | L33: 45.58650426 | M33: 17.41024206 | N33: -45.59560144
A34: 17.7584469 | B34: 111.5796127 | C34: 0.200843302786372i | D34: 4.3+0.200843302786372i | E34: 0.997823135649016-0.0466060684093959i | F34: -0.009464306752 | G34: -746.850892805464i | H34: 4-746.850892805464i | I34: 0.0000286840001550324+0.0053556677812545i | J34: -45.42360284 | K34: -0.007416305571 | L34: 45.41413853 | M34: 17.7584469 | N34: -45.42360284
A35: 18.11361584 | B35: 113.8112049 | C35: 0.204860168842099i | D35: 4.3+0.204860168842099i | E35: 0.997735389491132-0.0475340093839281i | F35: -0.009846231629 | G35: -732.206757652416i | H35: 4-732.206757652416i | I35: 0.0000298427991784571+0.00546277480643256i | J35: -45.25160444 | K35: -0.007715502545 | L35: 45.2417582 | M35: 18.11361584 | N35: -45.25160444
A36: 18.47588816 | B36: 116.087429 | C36: 0.208957372218941i | D36: 4.3+0.208957372218941i | E36: 0.997644114767137-0.0484802541003331i | F36: -0.01024355062 | G36: -717.849762404329i | H36: 4-717.849762404329i | I36: 0.0000310484108317786+0.00557202358465606i | J36: -45.07960624 | K36: -0.008026752364 | L36: 45.06936269 | M36: 18.47588816 | N36: -45.07960624
A37: 18.84540592 | B37: 118.4091776 | C37: 0.21313651966332i | D37: 4.3+0.21313651966332i | E37: 0.997549170268221-0.0494451531032561i | F37: -0.01065688273 | G37: -703.77427686699i | H37: 4-703.77427686699i | I37: 0.0000323027261102706+0.00568345692727203i | J37: -44.90760825 | K37: -0.008350539111 | L37: 44.89695137 | M37: 18.84540592 | N37: -44.90760825
A38: 19.22231404 | B38: 120.7773611 | C38: 0.217399250056587i | D38: 4.3+0.217399250056587i | E38: 0.997450409191021-0.0504290630062241i | F38: -0.0110868717 | G38: -689.974781242147i | H38: 4-689.974781242147i | I38: 0.0000336077123860481+0.00579711850040313i | J38: -44.73561048 | K38: -0.008687366187 | L38: 44.72452361 | M38: 19.22231404 | N38: -44.73561048
A39: 19.60676032 | B39: 123.1929084 | C39: 0.221747235057718i | D39: 4.3+0.221747235057718i | E39: 0.99734767892061-0.0514323465562507i | F39: -0.01153418704 | G39: -676.445863962889i | H39: 4-676.445863962889i | I39: 0.000034965416492095+0.00591305284195436i | J39: -44.56361294 | K39: -0.009037757081 | L39: 44.55207876 | M39: 19.60676032 | N39: -44.56361294
A40: 19.99889553 | B40: 125.6567665 | C40: 0.226182179758873i | D40: 4.3+0.226182179758873i | E40: 0.99724082080546-0.0524553726963503i | F40: -0.01199952503 | G40: -663.18221957146i | H40: 4-663.18221957146i | I40: 0.0000363779679307553+0.00603130537895442i | J40: -44.39161564 | K40: -0.009402256152 | L40: 44.37961612 | M40: 19.99889553 | N40: -44.39161564
A41: 20.39887344 | B41: 128.1699019 | C41: 0.23070582335405i | D41: 4.3+0.23070582335405i | E41: 0.997129669924103-0.0534985166257191i | F41: -0.01248360976 | G41: -650.178646638686i | H41: 4-650.178646638686i | I41: 0.0000378475822117053+0.00615192244523824i | J41: -44.21961859 | K41: -0.009781429459 | L41: 44.20713498 | M41: 20.39887344 | N41: -44.21961859
A42: 20.80685091 | B42: 130.7332999 | C42: 0.235319939821131i | D42: 4.3+0.235319939821131i | E42: 0.997014054843224-0.0545621598573324i | F42: -0.01298719424 | G42: -637.430045724202i | H42: 4-637.430045724202i | I42: 0.0000393765643246248+0.0062749512994769i | J42: -44.0476218 | K42: -0.01017586561 | L42: 44.0346346 | M42: 20.80685091 | N42: -44.0476218
A43: 21.22298792 | B43: 133.3479659 | C43: 0.240026338617554i | D43: 4.3+0.240026338617554i | E43: 0.996893797366899-0.0556466902726806i | F43: -0.01351106156 | G43: -624.931417376668i | H43: 4-624.931417376668i | I43: 0.0000409673123519986+0.00640044014356179i | J43: -43.87562527 | K43: -0.01058617663 | L43: 43.86211421 | M43: 21.22298792 | N43: -43.87562527
A44: 21.64744768 | B44: 136.0149252 | C44: 0.244826865389905i | D44: 4.3+0.244826865389905i | E44: 0.996768712276712-0.056752502173358i | F44: -0.01405602606 | G44: -612.677860173204i | H44: 4-612.677860173204i | I44: 0.0000426223212276927+0.00652843814134942i | J44: -43.70362902 | K44: -0.01101299891 | L44: 43.689573 | M44: 21.64744768 | N44: -43.70362902
A45: 22.08039664 | B45: 138.7352237 | C45: 0.249723402697703i | D45: 4.3+0.249723402697703i | E45: 0.996638607062452-0.0578799963291941i | F45: -0.01462293455 | G45: -600.664568797259i | H45: 4-600.664568797259i | I45: 0.0000443441866471838+0.00665899543777396i | J45: -43.53163306 | K45: -0.01145699415 | L45: 43.51701013 | M45: 22.08039664 | N45: -43.53163306
A46: 22.52200457 | B46: 141.5099282 | C46: 0.254717870751657i | D46: 4.3+0.254717870751657i | E46: 0.996503281643088-0.0590295800225968i | F46: -0.01521266761 | G46: -588.886832154176i | H46: 4-588.886832154176i | I46: 0.000046135609135549+0.00679216317833418i | J46: -43.35963741 | K46: -0.01191885033 | L46: 43.34442474 | M46: 22.52200457 | N46: -43.35963741
A47: 22.97244466 | B47: 144.3401268 | C47: 0.25981222816669i | D47: 4.3+0.25981222816669i | E47: 0.996362528077749-0.0602016670887619i | F47: -0.01582614089 | G47: -577.340031523702i | H47: 4-577.340031523702i | I47: 0.0000479993982795735+0.00692799352896193i | J47: -43.18764207 | K47: -0.01239928274 | L47: 43.17181593 | M47: 22.97244466 | N47: -43.18764207
A48: 23.43189355 | B48: 147.2269293 | C48: 0.265008472730024i | D48: 4.3+0.265008472730024i | E48: 0.996216130266374-0.0613966779513736i | F48: -0.01646430653 | G48: -566.019638748727i | H48: 4-566.019638748727i | I48: 0.0000499384771305875+0.00706653969627918i | J48: -43.01564706 | K48: -0.01289903507 | L48: 42.99918275 | M48: 23.43189355 | N48: -43.01564706
A49: 23.90053142 | B49: 150.1714679 | C49: 0.270308642184624i | D49: 4.3+0.270308642184624i | E49: 0.996063863639756-0.062615039653403i | F49: -0.01712815455 | G49: -554.921214459536i | H49: 4-554.921214459536i | I49: 0.0000519558867849096+0.00720785594825105i | J49: -42.84365238 | K49: -0.01341888049 | L49: 42.82652423 | M49: 23.90053142 | N49: -42.84365238
A50: 24.37854205 | B50: 153.1748972 | C50: 0.275714815028317i | D50: 4.3+0.275714815028317i | E50: 0.99590549483864-0.0638571858825861i | F50: -0.01781871433 | G50: -544.040406332879i | H50: 4-544.040406332879i | I50: 0.0000540547911490496+0.00735199763524196i | J50: -42.67165806 | K50: -0.01395962282 | L50: 42.65383935 | M50: 24.37854205 | N50: -42.67165806
A51: 24.86611289 | B51: 156.2383952 | C51: 0.281229111328883i | D51: 4.3+0.281229111328883i | E51: 0.995740781381583-0.0651235569911326i | F51: -0.0185370562 | G51: -533.372947385175i | H51: 4-533.372947385175i | I51: 0.0000562384818971118+0.00749902121148258i | J51: -42.49966411 | K51: -0.01452209767 | L51: 42.48112706 | M51: 24.86611289 | N51: -42.49966411
A52: 25.36343515 | B52: 159.3631631 | C52: 0.286853693555461i | D52: 4.3+0.286853693555461i | E52: 0.995569471321245-0.0664146000091992i | F52: -0.01928429299 | G52: -522.914654299192i | H52: 4-522.914654299192i | I52: 0.0000585103836281349+0.00764898425695481i | J52: -42.32767054 | K52: -0.01510717373 | L52: 42.30838625 | M52: 25.36343515 | N52: -42.32767054
A53: 25.87070385 | B53: 162.5504263 | C53: 0.29259076742657i | D53: 4.3+0.29259076742657i | E53: 0.995391302888798-0.0677307686516202i | F53: -0.02006158171 | G53: -512.661425783521i | H53: 4-512.661425783521i | I53: 0.0000608740592314235+0.00780194549970302i | J53: -42.15567737 | K53: -0.01571575402 | L53: 42.13561579 | M53: 25.87070385 | N53: -42.15567737
A54: 26.38811793 | B54: 165.8014349 | C54: 0.298442582775101i | D54: 4.3+0.298442582775101i | E54: 0.995206004126133-0.06907252331737i | F54: -0.02087012526 | G54: -502.609240964236i | H54: 4-502.609240964236i | I54: 0.0000633332154682367+0.00795796483857871i | J54: -41.98368462 | K54: -0.0163487772 | L54: 41.96281449 | M54: 26.38811793 | N54: -41.98368462
A55: 26.91588029 | B55: 169.1174636 | C55: 0.304411434430603i | D55: 4.3+0.304411434430603i | E55: 0.995013292505537-0.0704403310811925i | F55: -0.02171117422 | G55: -492.754157808075i | H55: 4-492.754157808075i | I55: 0.0000658917087785482+0.00811710336642712i | J55: -41.8116923 | K55: -0.01700721899 | L55: 41.78998112 | M55: 26.91588029 | N55: -41.8116923
A56: 27.4541979 | B56: 172.4998128 | C56: 0.310499663119216i | D56: 4.3+0.310499663119216i | E56: 0.994812874536528-0.0718346656768026i | F56: -0.02258602871 | G56: -483.092311576544i | H56: 4-483.092311576544i | I56: 0.0000685535513219318+0.00827942339372332i | J56: -41.63970042 | K56: -0.01769209354 | L56: 41.61711439 | M56: 27.4541979 | N56: -41.63970042
A57: 28.00328185 | B57: 175.9498091 | C57: 0.3167096563816i | D57: 4.3+0.3167096563816i | E57: 0.994604445359526-0.0732560074710296i | F57: -0.02349604031 | G57: -473.619913310337i | H57: 4-473.619913310337i | I57: 0.0000713229172619914+0.00844498847266618i | J57: -41.46770902 | K57: -0.01840445493 | L57: 41.44421298 | M57: 28.00328185 | N57: -41.46770902
A58: 28.56334749 | B58: 179.4688053 | C58: 0.323043849509232i | D58: 4.3+0.323043849509232i | E58: 0.994387688326037-0.0747048434282394i | F58: -0.02444261403 | G58: -464.333248343468i | H58: 4-464.333248343468i | I58: 0.0000742041493041372+0.00861386342173843i | J58: -41.29571809 | K58: -0.0191453987 | L58: 41.27127548 | M58: 28.56334749 | N58: -41.29571809
A59: 29.13461444 | B59: 183.0581814 | C59: 0.329504726499417i | D59: 4.3+0.329504726499417i | E59: 0.994162274565046-0.0761816670643242i | F59: -0.02542721039 | G59: -455.228674846537i | H59: 4-455.228674846537i | I59: 0.0000772017654968945+0.0087861143507411i | J59: -41.12372768 | K59: -0.01991606345 | L59: 41.09830047 | M59: 29.13461444 | N59: -41.12372768
A60: 29.71730673 | B60: 186.719345 | C60: 0.336094821029405i | D60: 4.3+0.336094821029405i | E60: 0.993927862535316-0.0776869783895223i | F60: -0.02645134757 | G60: -446.302622398566i | H60: 4-446.302622398566i | I60: 0.0000803204663073441+0.00896180868631083i | J60: -40.95173779 | K60: -0.02071763244 | L60: 40.92528644 | M60: 29.71730673 | N60: -40.95173779
A61: 30.31165286 | B61: 190.4537319 | C61: 0.342816717449993i | D61: 4.3+0.342816717449993i | E61: 0.993684097563266-0.0792212838392785i | F61: -0.02751660362 | G61: -437.551590586829i | H61: 4-437.551590586829i | I61: 0.0000835651419817176+0.00914101519792868i | J61: -40.77974845 | K61: -0.0215513353 | L61: 40.75223184 | M61: 30.31165286 | N61: -40.77974845
A62: 30.91788592 | B62: 194.2628066 | C62: 0.349673051798993i | D62: 4.3+0.349673051798993i | E62: 0.993430611366176-0.080785096192314i | F62: -0.02862461874 | G62: -428.972147634146i | H62: 4-428.972147634146i | I62: 0.0000869408802026083+0.00932380402442897i | J62: -40.60775967 | K62: -0.02241844981 | L62: 40.57913505 | M62: 30.91788592 | N62: -40.60775967
A63: 31.53624364 | B63: 198.1480627 | C63: 0.356666512834973i | D63: 4.3+0.356666512834973i | E63: 0.993167021560402-0.0823789344750337i | F63: -0.0297770977 | G63: -420.560929053085i | H63: 4-420.560929053085i | I63: 0.0000904529740547217+0.00951024670101708i | J63: -40.43577149 | K63: -0.02332030371 | L63: 40.40599439 | M63: 31.53624364 | N63: -40.43577149
A64: 32.16696851 | B64: 202.1110239 | C64: 0.363799843091672i | D64: 4.3+0.363799843091672i | E64: 0.992892931154349-0.0840033238513448i | F64: -0.03097581229 | G64: -412.314636326553i | H64: 4-412.314636326553i | I64: 0.0000941069303115631+0.0097004161868051i | J64: -40.26378393 | K64: -0.02425827656 | L64: 40.23280811 | M64: 32.16696851 | N64: -40.26378393
A65: 32.81030788 | B65: 206.1532444 | C65: 0.371075839953506i | D65: 4.3+0.371075839953506i | E65: 0.992607928025948-0.0856587954969158i | F65: -0.03222260386 | G65: -404.230035614268i | H65: 4-404.230035614268i | I65: 0.0000979084780559507+0.00989438689287393i | J65: -40.091797 | K65: -0.02523380171 | L65: 40.0595744 | M65: 32.81030788 | N65: -40.091797
A66: 33.46651404 | B66: 210.2763093 | C66: 0.378497356752576i | D66: 4.3+0.378497356752576i | E66: 0.992311584384389-0.0873458864568493i | F66: -0.033519386 | G66: -396.303956484577i | H66: 4-396.303956484577i | I66: 0.000101863577647773+0.0100922347108716i | J66: -39.91981075 | K66: -0.02624836833 | L66: 39.88629136 | M66: 33.46651404 | N66: -39.91981075
A67: 34.13584432 | B67: 214.4818355 | C67: 0.386067303887627i | D67: 4.3+0.386067303887627i | E67: 0.992003456215903-0.0890651394856933i | F67: -0.03486814728 | G67: -388.533290671153i | H67: 4-388.533290671153i | I67: 0.000105978430052926+0.0102940370421565i | J67: -39.74782518 | K67: -0.02730352346 | L67: 39.71295704 | M67: 34.13584432 | N67: -39.74782518
A68: 34.81856121 | B68: 218.7714722 | C68: 0.39378864996538i | D68: 4.3+0.39378864996538i | E68: 0.991683082713392-0.0908171028686542i | F68: -0.03627095405 | G68: -380.914990854072i | H68: 4-380.914990854072i | I68: 0.000110259486547921+0.010499872827494i | J68: -39.57584034 | K68: -0.02840087417 | L68: 39.53956939 | M68: 34.81856121 | N68: =$J68 -> -39.57584034
A69: 35.51493243 | B69: =2*PI()*$A69 -> 223.1469016 | C69: =COMPLEX(0,$C$3*$B69) -> 0.401664422964687i | D69: =IMSUM($C69,$D$3) -> 4.3+0.401664422964687i | E69: =IMDIV($D$3,$D69) -> 0.991349985689736-0.0926023302228183i | F69: =20*LOG(IMABS($E69)) -> -0.03772995343 | G69: =COMPLEX(0,-1/($B69*$G$3)) -> -373.446069464776i | H69: =IMSUM($H$3,$G69) -> 4-373.446069464776i | I69: =IMDIV($H$3,$H69) -> 0.000114713458815276+0.0107098225773186i | J69: =20*LOG(IMABS($I69)) -> -39.40385625 | K69: =20*LOG(IMABS(IMSUB($E69,$I69))) -> -0.02954208981 | L69: =ABS(F69-J69) -> 39.3661263 | M69: =A69 -> 35.51493243 | N69: -39.40385625
A70: =$A69*1.02 -> 36.22523108 | B70: 227.6098397 | C70: 0.409697711423981i | D70: 4.3+0.409697711423981i | E70: 0.991003668974643-0.0944213802771348i | F70: -0.03924737631 | G70: -366.123597514487i | H70: 4-366.123597514487i | I70: 0.000119347329445316+0.0109239684025665i | J70: -39.23187294 | K70: -0.03072890429 | L70: 39.19262557 | M70: 36.22523108 | N70: -39.23187294
A71: 36.9497357 | B71: 232.1620365 | C71: 0.417891665652461i | D71: 4.3+0.417891665652461i | E71: 0.990643617794924-0.0962748166298374i | F71: -0.04082554053 | G71: -358.944703445575i | H71: 4-358.944703445575i | I71: 0.000124168362860742+0.0111423940460929i | J71: -39.05989045 | K71: -0.03196311846 | L71: 39.01906491 | M71: 36.9497357 | N71: -39.05989045
A72: 37.68873042 | B72: 236.8052772 | C72: 0.42624949896551i | D72: 4.3+0.42624949896551i | E72: 0.990269298138135-0.0981632074819319i | F72: -0.04246685411 | G72: -351.906572005466i | H72: 4-351.906572005466i | I72: 0.000129184116680873+0.01136518491468i | J72: -38.8879088 | K72: -0.03324660256 | L72: 38.84544195 | M72: 37.68873042 | N72: -38.8879088
A73: 38.44250503 | B73: 241.5413827 | C73: 0.43477448894482i | D73: 4.3+0.43477448894482i | E73: 0.989880156099544-0.100087125345302i | F73: -0.04417381862 | G73: -345.006443142614i | H73: 4-345.006443142614i | I73: 0.000134402453543225+0.0115924281116471i | J73: -38.71592803 | K73: -0.03458129878 | L73: 38.67175421 | M73: 38.44250503 | N73: -38.71592803
A74: 39.21135513 | B74: 246.3722104 | C74: 0.443469978723717i | D74: 4.3+0.443469978723717i | E74: 0.989475617212448-0.102047146723917i | F74: -0.04594903267 | G74: -338.241610924131i | H74: 4-338.241610924131i | I74: 0.000139831553400736+0.0118242124700721i | J74: -38.54394818 | K74: -0.03596922384 | L74: 38.49799914 | M74: 39.21135513 | N74: -38.54394818
A75: 39.99558223 | B75: 251.2996546 | C75: 0.452339378298191i | D75: 4.3+0.452339378298191i | E75: 0.989055085761899-0.104043851766558i | F75: -0.04779519549 | G75: -331.609422474638i | H75: 4-331.609422474638i | I75: 0.000145479926313689+0.0120606285866338i | J75: -38.37196928 | K75: -0.03741247168 | L75: 38.32417408 | M75: 39.99558223 | N75: -38.37196928
A76: 40.79549387 | B76: 256.3256477 | C76: 0.461386165864155i | D76: 4.3+0.461386165864155i | E76: 0.988617944081965-0.106077823889414i | F76: -0.04971511066 | G76: -325.10727693592i | H76: 4-325.10727693592i | I76: 0.000151356425756166+0.0123017688560852i | J76: -38.19999137 | K76: -0.03891321629 | L76: 38.15027626 | M76: 40.79549387 | N76: -38.19999137
A77: 41.61140375 | B77: 261.4521607 | C77: 0.470613889181438i | D77: 4.3+0.470613889181438i | E77: 0.988163551836717-0.108149649366796i | F77: -0.05171168994 | G77: -318.73262444698i | H77: 4-318.73262444698i | I77: 0.000157470262457618+0.0125477275063678i | J77: -38.02801449 | K77: -0.04047371451 | L77: 37.9763028 | M77: 41.61140375 | N77: -38.02801449
A78: 42.44363183 | B78: 266.6812039 | C78: 0.480026166965067i | D78: 4.3+0.480026166965067i | E78: 0.987691245285181-0.110259916888186i | F78: -0.05378795721 | G78: -312.482965144098i | H78: 4-312.482965144098i | I78: 0.000163831018800959+0.0127986006343755i | J78: -37.85603868 | K78: -0.04209630905 | L78: 37.80225072 | M78: 42.44363183 | N78: -37.85603868
A79: 43.29250446 | B79: 272.0148279 | C79: 0.489626690304368i | D79: 4.3+0.489626690304368i | E79: 0.987200336530592-0.112409217079728i | F79: -0.05594705262 | G79: -306.355848180488i | H79: 4-306.355848180488i | I79: 0.000170448663799477+0.0130544862423799i | J79: -37.68406399 | K79: -0.04378343146 | L79: 37.62811694 | M79: 43.29250446 | N79: -37.68406399
A80: 44.15835455 | B80: 277.4551245 | C80: 0.499419224110455i | D80: 4.3+0.499419224110455i | E80: 0.986690112754362-0.114598141988196i | F80: -0.05819223675 | G80: -300.348870765184i | H80: 4-300.348870765184i | I80: 0.000177333568675675+0.0133154842751248i | J80: -37.51209046 | K80: -0.04553760531 | L80: 37.45389822 | M80: 44.15835455 | N80: -37.51209046
A81: 45.04152164 | B81: 283.004227 | C81: 0.509407608592664i | D81: 4.3+0.509407608592664i | E81: 0.986159835435243-0.116827284525396i | F81: -0.06052689499 | G81: -294.459677220769i | H81: 4-294.459677220769i | I81: 0.000184496523066127+0.0135816966576015i | J81: -37.34011814 | K81: -0.04736144939 | L81: 37.27959124 | M81: 45.04152164 | N81: -37.34011814
A82: 45.94235208 | B82: 288.6643115 | C82: 0.519595760764518i | D82: 4.3+0.519595760764518i | E82: 0.985608739554306-0.119097237870902i | F82: -0.06295454202 | G82: -288.685958059578i | H82: 4-288.685958059578i | I82: 0.000191948751877354+0.0138532273335135i | J82: -37.16814707 | K82: -0.04925768103 | L82: 37.10519253 | M82: 45.94235208 | N82: -37.16814707
A83: 46.86119912 | B83: 294.4375978 | C83: 0.529987675979808i | D83: 4.3+0.529987675979808i | E83: 0.985036032786419-0.121408594830894i | F83: -0.06547882645 | G83: -283.025449078018i | H83: 4-283.025449078018i | I83: 0.000199701932818714+0.0141301823044412i | J83: -36.99617732 | K83: -0.05122911946 | L83: 36.93069849 | M83: 46.86119912 | N83: -36.99617732
A84: 47.7984231 | B84: 300.3263497 | C84: 0.540587429499404i | D84: 4.3+0.540587429499404i | E84: 0.984440894679043-0.123761947150846i | F84: -0.06810353559 | G84: -277.475930468645i | H84: 4-277.475930468645i | I84: 0.000207768214639343+0.0144126696697152i | J84: -36.82420892 | K84: -0.05327868938 | L84: 36.75610539 | M84: 47.7984231 | N84: -36.82420892
A85: 48.75439156 | B85: 306.3328767 | C85: 0.551399178089392i | D85: 4.3+0.551399178089392i | E85: 0.983822475819299-0.126157884779682i | F85: -0.07083260032 | G85: -272.035225949652i | H85: 4-272.035225949652i | I85: 0.000216160236097228+0.0147007996670099i | J85: -36.65224194 | K85: -0.05540942447 | L85: 36.58140934 | M85: 48.75439156 | N85: -36.65224194
A86: 49.72947939 | B86: 312.4595343 | C86: 0.56242716165118i | D86: 4.3+0.56242716165118i | E86: 0.983179896990375-0.128596995082976i | F86: -0.07367010019 | G86: -266.701201911423i | H86: 4-266.701201911423i | I86: 0.000224891145689622+0.0149946847136648i | J86: -36.48027643 | K86: -0.05762447109 | L86: 36.40660633 | M86: 49.72947939 | N86: -36.48027643
A87: 50.72406898 | B87: 318.7087249 | C87: 0.573675704884204i | D87: 4.3+0.573675704884204i | E87: 0.982512248318487-0.131079862002668i | F87: -0.07662026862 | G87: -261.471766579827i | H87: 4-261.471766579827i | I87: 0.00023397462217512+0.015294439448744i | J87: -36.30831245 | K87: -0.05992709209 | L87: 36.23169218 | M87: 50.72406898 | N87: -36.30831245
A88: 51.73855036 | B88: 325.0828994 | C88: 0.585149218981888i | D88: 4.3+0.585149218981888i | E88: 0.981818588411802-0.133607065160713i | F88: -0.0796874982 | G88: -256.344869195908i | H88: 4-256.344869195908i | I88: 0.000243424895918975+0.0156001807758443i | J88: -36.13635007 | K88: -0.06232067062 | L88: 36.05666257 | M88: 51.73855036 | N88: -36.13635007
A89: 52.77332137 | B89: 331.5845574 | C89: 0.596852203361526i | D89: 4.3+0.596852203361526i | E89: 0.981097943492835-0.136179178903991i | F89: -0.08287634623 | G89: -251.318499211675i | H89: 4-251.318499211675i | I89: 0.000253256771094374+0.0159120279066582i | J89: -35.96438934 | K89: -0.0648087141 | L89: 35.881513 | M89: 52.77332137 | N89: -35.96438934
A90: 53.82878779 | B90: 338.2162486 | C90: 0.608789247428756i | D90: 4.3+0.608789247428756i | E90: 0.980349306526091-0.138796771287749i | F90: -0.08619154035 | G90: -246.390685501642i | H90: 4-246.390685501642i | I90: 0.000263485648773791+0.0162301024053048i | J90: -35.79243034 | K90: -0.06739485826 | L90: 35.7062388 | M90: 53.82878779 | N90: -35.79243034
A91: 54.90536355 | B91: 344.9805735 | C91: 0.620965032377331i | D91: 4.3+0.620965032377331i | E91: 0.979571636342846-0.141460402994779i | F91: -0.08963798433 | G91: -241.559495589845i | H91: 4-241.559495589845i | I91: 0.000274127550945758+0.0165545282334342i | J91: -35.62047314 | K91: -0.07008287129 | L91: 35.53083515 | M91: 54.90536355 | N91: -35.62047314
A92: 56.00347082 | B92: 351.880185 | C92: 0.633384333024878i | D92: 4.3+0.633384333024878i | E92: 0.978763856765226-0.144170626187465i | F92: -0.09322076404 | G92: -236.823034892005i | H92: 4-236.823034892005i | I92: 0.000285199145493858+0.0168854317961155i | J92: -35.4485178 | K92: -0.07287665803 | L92: 35.35529704 | M92: 56.00347082 | N92: -35.4485178
A93: 57.12354024 | B93: 358.9177887 | C93: 0.646052019685375i | D93: 4.3+0.646052019685375i | E93: 0.977924855731936-0.146927983289801i | F93: -0.0969451535 | G93: -232.179445972554i | H93: 4-232.179445972554i | I93: 0.000296717772176144+0.0172229419885169i | J93: -35.2765644 | K93: -0.07578026426 | L93: 35.17961925 | M93: 57.12354024 | N93: -35.2765644
A94: 58.26601104 | B94: 366.0961445 | C94: 0.658973060079083i | D94: 4.3+0.658973060079083i | E94: 0.977053484428231-0.149733005696419i | F94: -0.1008166212 | G94: -227.626907816229i | H94: 4-227.626907816229i | I94: 0.000308701469644683+0.0175671902433862i | J94: -35.10461303 | K94: -0.07879788112 | L94: 35.00379641 | M94: 58.26601104 | N94: -35.10461303
A95: 59.43133126 | B95: 373.4180674 | C95: 0.672152521280665i | D95: 4.3+0.672152521280665i | E95: 0.976148556422998-0.152586212405628i | F95: -0.1048408364 | G95: -223.16363511395i | H95: 4-223.16363511395i | I95: 0.000321169003546455+0.017918310579338i | J95: -34.93266376 | K95: -0.08193384954 | L95: 34.82782292 | M95: 59.43133126 | N95: -34.93266376
A96: 60.61995789 | B96: 380.8864287 | C96: 0.685595571706278i | D96: 4.3+0.685595571706278i | E96: 0.975208846816058-0.15548810857346i | F96: -0.1090236758 | G96: -218.787877562696i | H96: 4-218.787877562696i | I96: 0.000334139895748487+0.018276439649958i | J96: -34.76071667 | K96: -0.08519266475 | L96: 34.651693 | M96: 60.61995789 | N96: -34.76071667
A97: 61.83235705 | B97: 388.5041573 | C97: 0.699307483140404i | D97: 4.3+0.699307483140404i | E97: 0.974233091399106-0.158439183985675i | F97: -0.11337123 | G97: -214.497919179114i | H97: 4-214.497919179114i | I97: 0.00034763445473169+0.0186417167937283i | J97: -34.58877186 | K97: -0.08857898092 | L97: 34.47540063 | M97: 61.83235705 | N97: -34.58877186
A98: 63.06900419 | B98: 396.2742404 | C98: 0.713293632803212i | D98: 4.3+0.713293632803212i | E98: 0.973219985833995-0.161439911444703i | F98: -0.1178898107 | G98: -210.292077626582i | H98: 4-210.292077626582i | I98: 0.00036167380719967+0.0190142840847836i | J98: -34.41682942 | K98: -0.0920976158 | L98: 34.29893961 | M98: 63.06900419 | N98: -34.41682942
A99: 64.33038427 | B99: 404.1997253 | C99: 0.727559505459276i | D99: 4.3+0.727559505459276i | E99: 0.972168184852407-0.164490745068479i | F99: -0.1225859574 | G99: -206.168703555473i | H99: 4-206.168703555473i | I99: 0.000376279930950489+0.0193942863845013i | J99: -34.24488944 | K99: -0.09575355542 | L99: 34.12230349 | M99: 64.33038427 | N99: -34.24488944
A100: 65.61699196 | B100: 412.2837198 | C100: 0.742110695568462i | D100: 4.3+0.742110695568462i | E100: 0.971076301481279-0.167592118498214i | F100: -0.1274664444 | G100: -202.126179956346i | H100: 4-202.126179956346i | I100: 0.000391475689061301+0.0197818713939348i | J100: -34.07295203 | K100: -0.09955195887 | L100: 33.94548558 | M100: 65.61699196 | N100: -34.07295203
A101: 66.9293318 | B101: 420.5293942 | C101: 0.756952909479831i | D101: 4.3+0.756952909479831i | E101: 0.969942906298711-0.170744443012124i | F101: -0.1325382884 | G101: -198.162921525829i | H101: 4-198.162921525829i | I101: 0.000407284865437597+0.0201771897070921i | J101: -33.90101728 | K101: -0.1034981631 | L101: 33.76847899 | M101: 66.9293318 | N101: -33.90101728
A102: 68.26791843 | B102: 428.939982 | C102: 0.772091967669427i | D102: 4.3+0.772091967669427i | E102: 0.968766526725466-0.173948105542265i | F102: -0.1378087555 | G102: -194.277374044931i | H102: 4-194.277374044931i | I102: 0.000423732201780876+0.0205803948650664i | J102: -33.7290853 | K102: -0.1075976878 | L102: 33.59127655 | M102: 68.26791843 | N102: -33.7290853
A103: 69.6332768 | B103: 437.5187817 | C103: 0.787533807022816i | D103: 4.3+0.787533807022816i | E103: 0.967545646357535-0.177203466591698i | F103: -0.1432853691 | G103: -190.46801376954i | H103: 4-190.46801376954i | I103: 0.000440843436030609+0.0209916434110223i | J103: -33.55715621 | K103: -0.1118562402 | L103: 33.41387084 | M103: 69.6332768 | N103: -33.55715621
A104: 71.02594234 | B104: 446.2691573 | C104: 0.803284483163272i | D104: 4.3+0.803284483163272i | E104: 0.966278704345699-0.180510858049305i | F104: -0.148975917 | G104: -186.733346832882i | H104: 4-186.733346832882i | I104: 0.000458645342338387+0.02141109494604i | J104: -33.38523013 | K104: -0.11627972 | L104: 33.23625421 | M104: 71.02594234 | N104: -33.38523013
A105: 72.44646118 | B105: 455.1945405 | C105: 0.819350172826538i | D105: 4.3+0.819350172826538i | E105: 0.964964094828384-0.183870580899777i | F105: -0.1548884594 | G105: -183.071908659689i | H105: 4-183.071908659689i | I105: 0.000477165772634544+0.0218389121858203i | J105: -33.21330716 | K105: -0.1208742241 | L105: 33.0584187 | M105: 72.44646118 | N105: -33.21330716
A106: 73.89539041 | B106: 464.2984313 | C106: 0.835737176283069i | D106: 4.3+0.835737176283069i | E106: 0.963600166424594-0.187282902826415i | F106: -0.1610313367 | G106: -179.482263391852i | H106: 4-179.482263391852i | I106: 0.000496433699849713+0.0222752610182545i | J106: -33.04138745 | K106: -0.1256460517 | L106: 32.88035611 | M106: 73.89539041 | N106: -33.04138745
A107: 75.37329821 | B107: 473.5843999 | C107: 0.85245191980873i | D107: 4.3+0.85245191980873i | E107: 0.962185221794137-0.190748055704651i | F107: -0.1674131771 | G107: -175.963003325345i | H107: 4-175.963003325345i | I107: 0.000516479262856104+0.0227203105618551i | J107: -32.86947111 | K107: -0.1306017089 | L107: 32.70205793 | M107: 75.37329821 | N107: -32.86947111
A108: 76.88076418 | B108: 483.0560879 | C108: 0.869500958204905i | D108: 4.3+0.869500958204905i | E108: 0.960717517272837-0.194266232984411i | F108: -0.174042905 | G108: -172.512748358181i | H108: 4-172.512748358181i | I108: 0.000537333813195914+0.0231742332250521i | J108: -32.69755829 | K108: -0.1357479138 | L108: 32.52351539 | M108: 76.88076418 | N108: -32.69755829
A109: 78.41837946 | B109: 492.7172096 | C109: 0.886890977369003i | D109: 4.3+0.886890977369003i | E109: 0.959195262590914-0.197837586959761i | F109: -0.1809297486 | G109: -169.130145449197i | H109: 4-169.130145449197i | I109: 0.000559029963666666+0.0236372047663506i | J109: -32.52564914 | K109: -0.1410916007 | L109: 32.34471939 | M109: 78.41837946 | N109: -32.52564914
A110: 79.98674705 | B110: 502.5715538 | C110: 0.904628796916383i | D110: 4.3+0.904628796916383i | E110: 0.957616620683194-0.201462225924598i | F110: -0.1880832479 | G110: -165.813868087448i | H110: 4-165.813868087448i | I110: 0.000581601638835981+0.0241094043553482i | J110: -32.35374378 | K110: -0.1466399252 | L110: 32.16566054 | M110: 79.98674705 | N110: -32.35374378
A111: 81.58648199 | B111: 512.6229849 | C111: 0.92272137285471i | D111: 4.3+0.92272137285471i | E111: 0.955979707600312-0.205140211213536i | F111: -0.1955132631 | G111: -162.562615772008i | H111: 4-162.562615772008i | I111: 0.000605084127560976+0.0245910146346089i | J111: -32.18184239 | K111: -0.1524002686 | L111: 31.98632913 | M111: 81.58648199 | N111: -32.18184239
A112: 83.21821163 | B112: 522.8754446 | C112: 0.941175800311805i | D112: 4.3+0.941175800311805i | E112: 0.954282592530605-0.208871554127585i | F112: -0.2032299825 | G112: -159.375113501969i | H112: 4-159.375113501969i | I112: 0.000629514137590323+0.025082221782388i | J112: -32.00994512 | K112: -0.1583802425 | L112: 31.80671514 | M112: 83.21821163 | N112: -32.00994512
A113: 84.88257586 | B113: 533.3329535 | C113: 0.959999316318041i | D113: 4.3+0.959999316318041i | E113: 0.952523297942864-0.212656212744687i | F113: -0.2112439303 | G113: -156.25011127644i | H113: 4-156.25011127644i | I113: 0.000654929852329886+0.0255832155762018i | J113: -31.83805214 | K113: -0.1645876924 | L113: 31.62680821 | M113: 84.88257586 | N113: -31.83805214
A114: 86.58022738 | B114: 543.9996126 | C114: 0.979199302644402i | D114: 4.3+0.979199302644402i | E114: 0.950699799860656-0.216494088615751i | F114: -0.2195659752 | G114: -153.186383604353i | H114: 4-153.186383604353i | I114: 0.000681370989855861+0.0260941894572344i | J114: -31.66616361 | K114: -0.1710307028 | L114: 31.44659763 | M114: 86.58022738 | N114: -31.66616361
A115: 88.31183193 | B115: 554.8796048 | C115: 0.99878328869729i | D115: 4.3+0.99878328869729i | E115: 0.948810028279405-0.220385023347412i | F115: -0.2282073376 | G115: -150.182729023875i | H115: 4-150.182729023875i | I115: 0.000708878864262508+0.0266153405955721i | J115: -31.49427972 | K115: -0.1777176003 | L115: 31.26607239 | M115: 88.31183193 | N115: -31.49427972
A116: 90.07806857 | B116: 565.9771969 | C116: 1.01875895447124i | D116: 4.3+1.01875895447124i | E116: 0.946851867737948-0.224328795073454i | F116: -0.2371795981 | G116: -147.23796963125i | H116: 4-147.23796963125i | I116: 0.000737496449434637+0.0271468699562529i | J116: -31.32240066 | K116: -0.1846569576 | L116: 31.08522106 | M116: 90.07806857 | N116: -31.32240066
A117: 91.87962994 | B117: 577.2967409 | C117: 1.03913413356066i | D117: 4.3+1.03913413356066i | E117: 0.944823158056735-0.228325114817519i | F117: -0.246494705 | G117: -144.350950618873i | H117: 4-144.350950618873i | I117: 0.000767268445338522+0.0276889823661201i | J117: -31.15052662 | K117: -0.1918575967 | L117: 30.90403192 | M117: 91.87962994 | N117: -31.15052662
A118: 93.71722254 | B118: 588.8426757 | C118: 1.05991681623187i | D118: 4.3+1.05991681623187i | E118: 0.942721695255321-0.232373622750635i | F118: -0.256164982 | G118: -141.520539822424i | H118: 4-141.520539822424i | I118: 0.000798241346928154+0.0282418865814628i | J118: -30.97865781 | K118: -0.1993285924 | L118: 30.72249282 | M118: 93.71722254 | N118: -30.97865781
A119: 95.59156699 | B119: 600.6195292 | C119: 1.08111515255651i | D119: 4.3+1.08111515255651i | E119: 0.940545232662233-0.23647388434789i | F119: -0.2662031354 | G119: -138.745627276887i | H119: 4-138.745627276887i | I119: 0.0008304635157673+0.0288057953564258i | J119: -30.80679442 | K119: -0.2070792745 | L119: 30.54059129 | M119: 95.59156699 | N119: -30.80679442
A120: 97.50339833 | B120: 612.6319198 | C120: 1.10273745560764i | D120: 4.3+1.10273745560764i | E120: 0.938291482230683-0.240625386449624i | F120: -0.2766222616 | G120: -136.025124781261i | H120: 4-136.025124781261i | I120: 0.000863985254471736+0.0293809255121719i | J120: -30.6349367 | K120: -0.2151192308 | L120: 30.35831443 | M120: 97.50339833 | N120: -30.6349367
A121: 99.4534663 | B121: 624.8845582 | C121: 1.12479220471979i | D121: 4.3+1.12479220471979i | E121: 0.935958116073985-0.244827533233544i | F121: -0.2874358541 | G121: -133.357965471825i | H121: 4-133.357965471825i | I121: 0.000898858884079191+0.029967498006769i | J121: -30.46308485 | K121: -0.2234583085 | L121: 30.17564899 | M121: 99.4534663 | N121: -30.46308485
A122: 101.4425356 | B122: 637.3822493 | C122: 1.14728804881419i | D122: 4.3+1.14728804881419i | E122: 0.933542768234812-0.249079642105283i | F122: -0.29865781 | G122: -130.74310340375i | H122: 4-130.74310340375i | I122: 0.000935138824459246+0.0305657380057841i | J122: -30.29123912 | K122: -0.232106616 | L122: 29.99258131 | M122: 101.4425356 | N122: -30.29123912
A123: 103.4713863 | B123: 650.1298943 | C123: 1.17023380979047i | D123: 4.3+1.17023380979047i | E123: 0.931043036702723-0.253380939516166i | F123: -0.3103024365 | G123: -128.179513140931i | H123: 4-128.179513140931i | I123: 0.000972881677878491+0.0311758749535492i | J123: -30.11939976 | K123: -0.2410745241 | L123: 29.80909732 | M123: 103.4713863 | N123: -30.11939976
A124: 105.5408141 | B124: 663.1324922 | C124: 1.19363848598628i | D124: 4.3+1.19363848598628i | E124: 0.928456485694514-0.257730556718266i | F124: -0.3223844568 | G124: -125.666189353854i | H124: 4-125.666189353854i | I124: 0.0010121463158411+0.0317981426450733i | J124: -29.94756701 | K124: -0.2503726658 | L124: 29.62518256 | M124: 105.5408141 | N124: -29.94756701
A125: 107.6516303 | B125: 676.3951421 | C125: 1.21751125570601i | D125: 4.3+1.21751125570601i | E125: 0.925780648212129-0.262127525468157i | F125: -0.3349190161 | G125: -123.202146425347i | H125: 4-123.202146425347i | I125: 0.00105299396932883+0.0324327792985643i | J125: -29.77574116 | K125: -0.2600119369 | L125: 29.44082214 | M125: 107.6516303 | N125: -29.77574116
A126: 109.8046629 | B126: 689.9230449 | C126: 1.24186148082013i | D126: 4.3+1.24186148082013i | E126: 0.923013028892803-0.266570773692347i | F126: -0.347921686 | G126: -120.786418064066i | H126: 4-120.786418064066i | I126: 0.00109548832256878+0.0330800276285238i | J126: -29.60392247 | K126: -0.2700034949 | L126: 29.25600079 | M126: 109.8046629 | N126: -29.60392247
A127: 112.0007562 | B127: 703.7215058 | C127: 1.26669871043653i | D127: 4.3+1.26669871043653i | E127: 0.920151107166057-0.271059121128835i | F127: -0.3614084698 | G127: -118.418056925555i | H127: 4-118.418056925555i | I127: 0.00113969561046196+0.0337401349193724i | J127: -29.43211124 | K127: -0.2803587571 | L127: 29.07070277 | M127: 112.0007562 | N127: -29.43211124
A128: 114.2407713 | B128: 717.7959359 | C128: 1.29203268464526i | D128: 4.3+1.29203268464526i | E128: 0.917192340731959-0.275591274960926i | F128: -0.3753958062 | G128: -116.09613424074i | H128: 4-116.09613424074i | I128: 0.00118568471980994+0.0344133530995622i | J128: -29.26030777 | K128: -0.2910893988 | L128: 28.88491196 | M128: 114.2407713 | N128: -29.26030777
A129: 116.5255868 | B129: 732.1518546 | C129: 1.31787333833817i | D129: 4.3+1.31787333833817i | E129: 0.914134169374715-0.280165825461127i | F129: -0.3899005728 | G129: -113.819739451706i | H129: 4-113.819739451706i | I129: 0.00123352729448189+0.0350999388161242i | J129: -29.08851236 | K129: -0.30220735 | L129: 28.69861179 | M129: 116.5255868 | N129: -29.08851236
A130: 118.8560985 | B130: 746.7948917 | C130: 1.34423080510493i | D130: 4.3+1.34423080510493i | E130: 0.910974019125174-0.284781241664723i | F130: -0.4049400888 | G130: -111.587979854614i | H130: 4-111.587979854614i | I130: 0.00128329784466905+0.0358001535095999i | J130: -28.91672535 | K130: -0.3137247912 | L130: 28.51178526 | M130: 118.8560985 | N130: -28.91672535
A131: 121.2332205 | B131: 761.7307896 | C131: 1.37111542120703i | D131: 4.3+1.37111542120703i | E131: 0.907709306785189-0.289435867094492i | F131: -0.4205321169 | G131: -109.399980249621i | H131: 4-109.399980249621i | I131: 0.00133507386037843+0.0365142634892964i | J131: -28.74494707 | K131: -0.3256541484 | L131: 28.32441495 | M131: 121.2332205 | N131: -28.74494707
A132: 123.6578849 | B132: 776.9654054 | C132: 1.39853772963117i | D132: 4.3+1.39853772963117i | E132: 0.904337444825992-0.29412791555986i | F132: -0.4366948647 | G132: -107.254882597668i | H132: 4-107.254882597668i | I132: 0.00138893592932277+0.0372425400087992i | J132: -28.57317788 | K132: -0.3380080872 | L132: 28.13648301 | M132: 123.6578849 | N132: =$J132 -> -28.57317788
A133: 126.1310426 | B133: =2*PI()*$A133 -> 792.5047135 | C133: =COMPLEX(0,$C$3*$B133) -> 1.42650848422379i | D133: =IMSUM($C133,$D$3) -> 4.3+1.42650848422379i | E133: =IMDIV($D$3,$D133) -> 0.900855846671695-0.298855467055763i | F133: =20*LOG(IMABS($E133)) -> -0.4534469848 | G133: =COMPLEX(0,-1/($B133*$G$3)) -> -105.151845683988i | H133: =IMSUM($H$3,$G133) -> 4-105.151845683988i | I133: =IMDIV($H$3,$H133) -> 0.00144496785936924+0.0379852593416793i | J133: =20*LOG(IMABS($I133)) -> -28.40141813 | K133: =20*LOG(IMABS(IMSUB($E133,$I133))) -> -0.3507995055 | L133: =ABS(F133-J133) -> 27.94797114 | M133: =A133 -> 126.1310426 | N133: -28.40141813
A134: =$A133*1.02 -> 128.6536634 | B134: 808.3548077 | C134: 1.45503865390827i | D134: 4.3+1.45503865390827i | E134: 0.897261932377882-0.30361646378843i | F134: -0.4708075742 | G134: -103.090044788224i | H134: 4-103.090044788224i | I134: 0.00150325680571389+0.038742702857312i | J134: -28.22966821 | K134: -0.3640415254 | L134: 27.75886064 | M134: 128.6536634 | N134: -28.22966821
A135: 131.2267367 | B135: 824.5219039 | C135: 1.48413942698644i | D135: 4.3+1.48413942698644i | E135: 0.893553134713803-0.308408706357228i | F135: -0.4887961727 | G135: -101.068671361003i | H135: 4-101.068671361003i | I135: 0.00156389340295535+0.0395151570967337i | J135: -28.05792852 | K135: -0.3777474831 | L135: 27.56913235 | M135: 131.2267367 | N135: -28.05792852
A136: 133.8512714 | B136: 841.012342 | C136: 1.51382221552616i | D136: 4.3+1.51382221552616i | E136: 0.889726905655067-0.313229850123718i | F136: -0.5074327602 | G136: -99.0869327068661i | H136: 4-99.0869327068661i | I136: 0.00162697190224549+0.0403029138484402i | J136: -27.88619947 | K136: -0.3919309185 | L136: 27.37876671 | M136: 133.8512714 | N136: -27.88619947
A137: 136.5282969 | B137: 857.8325888 | C137: 1.54409865983669i | D137: 4.3+1.54409865983669i | E137: 0.885780723291819-0.318077401800947i | F137: -0.5267377524 | G137: -97.1440516733982i | H137: 4-97.1440516733982i | I137: 0.00169259031370216+0.0411062702240439i | J137: -27.71448149 | K137: -0.4066055626 | L137: 27.18774374 | M137: 136.5282969 | N137: -27.71448149
A138: 139.2588628 | B138: 874.9892406 | C138: 1.57498063303342i | D138: 4.3+1.57498063303342i | E138: 0.881712099155312-0.322948716297874i | F138: -0.5467319963 | G138: -95.2392663464688i | H138: 4-95.2392663464688i | I138: 0.00176085055427261+0.041925528733674i | J138: -27.54277502 | K138: -0.4217853236 | L138: 26.99604302 | M138: 139.2588628 | N138: -27.54277502
A139: 142.04404 | B139: 892.4890254 | C139: 1.60648024569409i | D139: 4.3+1.60648024569409i | E139: 0.877518585963286-0.327840993855681i | F139: -0.5674367635 | G139: -93.37182975144i | H139: 4-93.37182975144i | I139: 0.00183185860124419+0.0427609973610209i | J139: -27.37108052 | K139: -0.4374842721 | L139: 26.80364376 | M139: 142.04404 | N139: -27.37108052
A140: 144.8849208 | B140: 910.3388059 | C140: 1.63860985060797i | D140: 4.3+1.63860985060797i | E140: 0.873197785782019-0.332751277514299i | F140: -0.5888737423 | G140: -91.5410095602353i | H140: 4-91.5410095602353i | I140: 0.00190572465160343+0.0436129896379015i | J140: -27.19939848 | K140: -0.4537166233 | L140: 26.61052474 | M140: 144.8849208 | N140: -27.19939848
A141: 147.7826193 | B141: 928.545582 | C141: 1.67138204762013i | D141: 4.3+1.67138204762013i | E141: 0.868747358599893-0.337676450949132i | F141: -0.6110650286 | G141: -89.7460878041523i | H141: 4-89.7460878041523i | I141: 0.00198256328745111+0.044481824718219i | J141: -27.0277294 | K141: -0.470496719 | L141: 26.41666437 | M141: 147.7826193 | N141: -27.0277294
A142: 150.7382716 | B142: 947.1164937 | C142: 1.70480968857253i | D142: 4.3+1.70480968857253i | E142: 0.864165031304137-0.342613236719274i | F142: -0.6340331153 | G142: -87.9863605923061i | H142: 4-87.9863605923061i | I142: 0.002062493647687+0.0453678274511823i | J142: -26.8560738 | K142: -0.4878390069 | L142: 26.22204069 | M142: 150.7382716 | N142: -26.8560738
A143: 153.7530371 | B143: 966.0588235 | C143: 1.73890588234398i | D143: 4.3+1.73890588234398i | E143: 0.859448607048916-0.347558194969698i | F143: -0.6578008796 | G143: -86.2611378355942i | H143: 4-86.2611378355942i | I143: 0.00214563960618402+0.0462713284536374i | J143: -26.68443223 | K143: -0.5057580182 | L143: 26.02663135 | M143: 153.7530371 | N143: -26.68443223
A144: 156.8280978 | B144: 985.38 | C144: 1.77368399999086i | D144: 4.3+1.77368399999086i | E144: 0.854595974999176-0.352507722630844i | F144: -0.6823915697 | G144: -84.5697429760728i | H144: 4-84.5697429760728i | I144: 0.00223212995667762+0.0471926641813548i | J144: -26.51280524 | K144: -0.5242683435 | L144: 25.83041367 | M144: 156.8280978 | N144: -26.51280524
A145: 159.9646598 | B145: 1005.0876 | C145: 1.80915767999068i | D145: 4.3+1.80915767999068i | E145: 0.84960512043063-0.357458053159647i | F145: -0.7078287883 | G145: -82.91151272164i | H145: 4-82.91151272164i | I145: 0.00232209860460275+0.0481321769991058i | J145: -26.34119343 | K145: -0.5433846068 | L145: 25.63336464 | M145: 159.9646598 | N145: -26.34119343
A146: 163.163953 | B146: 1025.189352 | C146: 1.84534083359049i | D146: 4.3+1.84534083359049i | E146: 0.844474135162002-0.362405256866385i | F146: -0.7341364761 | G146: -81.2857967859215i | H146: 4-81.2857967859215i | I146: 0.00241568476611643+0.0490902152493466i | J146: -26.16959739 | K146: -0.5631214369 | L146: 25.43546092 | M146: 163.163953 | N146: -26.16959739
A147: 166.427232 | B147: 1045.693139 | C147: 1.8822476502623i | D147: 4.3+1.8822476502623i | E147: 0.839201228291157-0.36734524187169i | F147: -0.7613388916 | G147: -79.6919576332564i | H147: 4-79.6919576332564i | I147: 0.00251303317455089+0.0500671333193193i | J147: -25.99801778 | K147: -0.5834934374 | L147: 25.23667889 | M147: 166.427232 | N147: -25.99801778
A148: 169.7557767 | B148: 1066.607002 | C148: 1.91989260326755i | D148: 4.3+1.91989260326755i | E148: 0.833784737202045-0.372273755737578i | F148: -0.7894605909 | G148: -78.1293702286827i | H148: 4-78.1293702286827i | I148: 0.00261429429454782+0.0510632917063649i | J148: -25.82645525 | K148: -0.604515154 | L148: 25.03699466 | M148: 169.7557767 | N148: -25.82645525
A149: 173.1508922 | B149: 1087.939142 | C149: 1.9582904553329i | D149: 4.3+1.9582904553329i | E149: 0.828223138804507-0.377186387815517i | F149: -0.8185264039 | G149: -76.5974217928262i | H149: 4-76.5974217928262i | I149: 0.00271962454413082+0.0520790570812278i | J149: -25.65491048 | K149: -0.6262010404 | L149: 24.83638408 | M149: 173.1508922 | N149: -25.65491048
A150: 176.6139101 | B150: 1109.697925 | C150: 1.99745626443956i | D150: 4.3+1.99745626443956i | E150: 0.822515060963987-0.382078572353117i | F150: -0.84856141 | G150: -75.0955115615943i | H150: 4-75.0955115615943i | I150: 0.00282918652497913+0.0531148023491193i | J150: -25.48338419 | K150: -0.6485654207 | L150: 24.63482278 | M150: 176.6139101 | N150: -25.48338419
A151: 180.1461883 | B151: 1131.891883 | C151: 2.03740538972835i | D151: 4.3+2.03740538972835i | E151: 0.816659294073108-0.38694559239914i | F151: -0.8795909104 | G151: -73.6230505505827i | H151: 4-73.6230505505827i | I151: 0.00294314926117176+0.0541709067082897i | J151: -25.31187712 | K151: -0.6716224511 | L151: 24.43228621 | M151: 180.1461883 | N151: -25.31187712
A152: 183.749112 | B152: 1154.529721 | C152: 2.07815349752292i | D152: 4.3+2.07815349752292i | E152: 0.810654802711901-0.391782584544068i | F152: -0.9116403998 | G152: -72.1794613241007i | H152: 4-72.1794613241007i | I152: 0.00306168844667707+0.0552477557058435i | J152: -25.14039005 | K152: -0.6953860781 | L152: 24.22874965 | M152: 183.749112 | N152: -25.14039005
A153: 187.4240943 | B153: 1177.620315 | C153: 2.11971656747338i | D153: 4.3+2.11971656747338i | E153: 0.804500737338379-0.396584544530398i | F153: -0.9447355353 | G153: -70.7641777687261i | H153: 4-70.7641777687261i | I153: 0.00318498670186852+0.0563457412905132i | J153: -24.96892377 | K153: -0.7198699952 | L153: 24.02418823 | M153: 187.4240943 | N153: -24.96892377
A154: 191.1725761 | B154: 1201.172722 | C154: 2.16211089882284i | D154: 4.3+2.16211089882284i | E154: 0.79819644594606-0.401346333763171i | F154: -0.9789021029 | G154: -69.3766448713001i | H154: 4-69.3766448713001i | I154: 0.00331323383935298+0.0574652618620915i | J154: -24.79747912 | K154: -0.7450875969 | L154: 23.81857701 | M154: 191.1725761 | N154: -24.79747912
A155: 194.9960277 | B155: 1225.196176 | C155: 2.2053531167993i | D155: 4.3+2.2053531167993i | E155: 0.79174148562018-0.406062686746924i | F155: -1.014165983 | G155: -68.0163185012747i | H155: 4-68.0163185012747i | I155: 0.00344662713940337+0.0586067223171992i | J155: -24.62605697 | K155: -0.7710519311 | L155: 23.61189098 | M155: 194.9960277 | N155: -24.62605697
A156: 198.8959482 | B156: 1249.7001 | C156: 2.24946017913529i | D156: 4.3+2.24946017913529i | E156: 0.785135633919626-0.410728219470312i | F156: -1.050553114 | G156: -66.6826651973281i | H156: 4-66.6826651973281i | I156: 0.00358537163529227+0.0597705340910479i | J156: -24.45465822 | K156: -0.7977756483 | L156: 23.4041051 | M156: 198.8959482 | N156: -24.45465822
A157: 202.8738672 | B157: 1274.694102 | C157: 2.29444938271799i | D157: 4.3+2.29444938271799i | E157: 0.778378900007243-0.41533743875403i | F157: -1.088089453 | G157: -65.3751619581648i | H157: 4-65.3751619581648i | I157: 0.00372968040882808+0.0609571151948326i | J157: -24.28328381 | K157: -0.8252709498 | L157: 23.19519435 | M157: 202.8738672 | N157: -24.28328381
A158: 206.9313445 | B158: 1300.187984 | C158: 2.34033837037235i | D158: 4.3+2.34033837037235i | E158: 0.771471535447168-0.419884752571414i | F158: -1.126800932 | G158: -64.0932960374164i | H158: 4-64.0932960374164i | I158: 0.00387977489639971+0.0621668902483708i | J158: -24.11193471 | K158: -0.853549533 | L158: 22.98513378 | M158: 206.9313445 | N158: -24.11193471
A159: 211.0699714 | B159: 1326.191743 | C159: 2.3871451377798i | D159: 4.3+2.3871451377798i | E159: 0.764414044584351-0.424364481344215i | F159: -1.166713422 | G159: -62.8365647425651i | H159: 4-62.8365647425651i | I159: 0.00403588520583956+0.0634002905075745i | J159: -23.94061195 | K159: -0.8826225352 | L159: 22.77389853 | M159: 211.0699714 | N159: -23.94061195
A160: 215.2913708 | B160: 1352.715578 | C160: 2.4348880405354i | D160: 4.3+2.4348880405354i | E160: 0.757207194418426-0.428770870208556i | F160: -1.207852683 | G160: -61.604475237809i | H160: 4-61.604475237809i | I160: 0.00419825044441836+0.0646577538863229i | J160: -23.76931657 | K160: -0.9125004753 | L160: 22.56146389 | M160: 215.2913708 | N160: -23.76931657
A161: 219.5971983 | B161: 1379.76989 | C161: 2.4835858013461i | D161: 4.3+2.4835858013461i | E161: 0.749852023881796-0.433098102238015i | F161: -1.25024432 | G161: -60.3965443507931i | H161: 4-60.3965443507931i | I161: 0.00436711905828797+0.0659397249722707i | J161: -23.59804968 | K161: -0.9431931935 | L161: 22.34780536 | M161: 219.5971983 | N161: -23.59804968
A162: 223.9891422 | B162: 1407.365287 | C162: 2.53325751737303i | D162: 4.3+2.53325751737303i | E162: 0.742349852430249-0.437340312602253i | F162: -1.293913735 | G162: -59.2122983831305i | H162: 4-59.2122983831305i | I162: 0.0045427491836907+0.067246655036104i | J162: -23.42681241 | K162: -0.9747097901 | L162: 22.13289868 | M162: 223.9891422 | N162: -23.42681241
A163: 228.4689251 | B163: 1435.512593 | C163: 2.58392266772049i | D163: 4.3+2.58392266772049i | E163: 0.734702287853682-0.441491603630519i | F163: -1.338886078 | G163: -58.0512729246377i | H163: 4-58.0512729246377i | I163: 0.00472540901025568+0.0685790020337237i | J163: -23.25560595 | K163: -1.007058562 | L163: 21.91671987 | M163: 228.4689251 | N163: -23.25560595
A164: 233.0383036 | B164: 1464.222845 | C164: 2.6356011210749i | D164: 4.3+2.6356011210749i | E164: 0.726911233214628-0.445546060740096i | F164: -1.385186198 | G164: -56.9130126712135i | H164: 4-56.9130126712135i | I164: 0.00491537715670279+0.0699372306008049i | J164: -23.08443153 | K164: -1.040246938 | L164: 21.69924533 | M164: 233.0383036 | N164: -23.08443153
A165: 237.6990696 | B165: 1493.507302 | C165: 2.68831314349639i | D165: 4.3+2.68831314349639i | E165: 0.718978892823519-0.449497769179988i | F165: -1.432838591 | G165: -55.7970712462877i | H165: 4-55.7970712462877i | I165: 0.0051129430592755+0.0713218120391519i | J165: -22.91329044 | K165: -1.074281415 | L165: 21.48045185 | M165: 237.6990696 | N165: -22.91329044
A166: 242.453051 | B166: 1523.377448 | C166: 2.74207940636632i | D166: 4.3+2.74207940636632i | E166: 0.710907777161729-0.453340831530426i | F166: -1.481867347 | G166: -54.7030110257723i | H166: 4-54.7030110257723i | I166: 0.00531840737322199+0.0727332242942278i | J166: -22.742184 | K166: -1.109167488 | L166: 21.26031665 | M166: 242.453051 | N166: -22.742184
A167: 247.3021121 | B167: 1553.844997 | C167: 2.79692099449365i | D167: 4.3+2.79692099449365i | E167: 0.702700706666803-0.457069385888815i | F167: -1.532296097 | G167: -53.6304029664434i | H167: 4-53.6304029664434i | I167: 0.00553208238764267+0.0741719519232102i | J167: -22.57111361 | K167: -1.144909586 | L167: 21.03881751 | M167: 247.3021121 | N167: -22.57111361
A168: 252.2481543 | B168: 1584.921897 | C168: 2.85285941438352i | D168: 4.3+2.85285941438352i | E168: 0.694360814298669-0.460677624663015i | F168: -1.584147962 | G168: -52.5788264376896i | H168: 4-52.5788264376896i | I168: 0.00575429245401793+0.075638486052879i | J168: -22.40008069 | K168: -1.181511003 | L168: 20.81593273 | M168: 252.2481543 | N168: -22.40008069
A169: 257.2931174 | B169: 1616.620335 | C169: 2.90991660267119i | D169: 4.3+2.90991660267119i | E169: 0.685891546811258-0.464159813883233i | F169: -1.637445495 | G169: -51.5478690565584i | H169: 4-51.5478690565584i | I169: 0.00598537442872591+0.0771333243266091i | J169: -22.22908676 | K169: -1.218973833 | L169: 20.59164127 | M169: 257.2931174 | N169: -22.22908676
A170: 262.4389797 | B170: 1648.952742 | C170: 2.96811493472462i | D170: 4.3+2.96811493472462i | E170: 0.677296664660724-0.467510312934574i | F170: -1.692210631 | G170: -50.5371265260377i | H170: 4-50.5371265260377i | I170: 0.00622567812985336+0.0786569708396962i | J170: -22.05813336 | K170: -1.257298896 | L170: 20.36592273 | M170: 262.4389797 | N170: -22.05813336
A171: 267.6877593 | B171: 1681.931796 | C171: 3.02747723341911i | D171: 4.3+3.02747723341911i | E171: 0.66858024048939-0.470723594603605i | F171: -1.748464629 | G171: -49.5462024765075i | H171: 4-49.5462024765075i | I171: 0.00647556680859524+0.0802099360622028i | J171: -21.88722212 | K171: -1.296485679 | L171: 20.13875749 | M171: 267.6877593 | N171: -21.88722212
A172: 273.0415145 | B172: 1715.570432 | C172: 3.08802677808749i | D172: 4.3+3.08802677808749i | E172: 0.659746656133596-0.473794265324238i | F172: -1.806228023 | G172: -48.5747083103015i | H172: 4-48.5747083103015i | I172: 0.00673541763552842+0.0817927367484634i | J172: -21.7163547 | K172: -1.33653226 | L172: 19.91012668 | M172: 273.0415145 | N172: -21.7163547
A173: 278.5023448 | B173: 1749.881841 | C173: 3.14978731364924i | D173: 4.3+3.14978731364924i | E173: 0.650800598113778-0.476717085500957i | F173: -1.865520566 | G173: -47.6222630493152i | H173: 4-47.6222630493152i | I173: 0.00700562220203414+0.0834058958323481i | J173: -21.54553287 | K173: -1.377435254 | L173: 19.6800123 | M173: 278.5023448 | N173: -21.54553287
A174: 284.0723917 | B174: 1784.879478 | C174: 3.21278305992223i | D174: 4.3+3.21278305992223i | E174: 0.641747051576241-0.479486989781206i | F174: -1.92636118 | G174: -46.6884931856031i | H174: 4-46.6884931856031i | I174: 0.00728658703712898+0.0850499423073251i | J174: -21.37475843 | K174: -1.419189737 | L174: 19.44839725 | M174: 284.0723917 | N174: -21.37475843
A175: 289.7538395 | B175: 1820.577067 | C175: 3.27703872112067i | D175: 4.3+3.27703872112067i | E175: 0.632591292668122-0.482099107143538i | F175: -1.988767902 | G175: -45.773032534905i | H175: 4-45.773032534905i | I175: 0.00757873413994894+0.0867254110903195i | J175: -21.20403328 | K175: -1.461789192 | L175: 19.21526537 | M175: 289.7538395 | N175: -21.20403328
A176: 295.5489163 | B176: 1856.988609 | C176: 3.34257949554308i | D176: 4.3+3.34257949554308i | E176: 0.623338879339849-0.484548780664228i | F176: -2.052757841 | G176: -44.8755220930441i | H176: 4-44.8755220930441i | I176: 0.00788250152811193+0.0884328428683102i | J176: -21.03335936 | K176: -1.505225446 | L176: 18.98060152 | M176: 295.5489163 | N176: -21.03335936
A177: 301.4598947 | B177: 1894.128381 | C177: 3.40943108545395i | D177: 4.3+3.40943108545395i | E177: 0.613995640582926-0.486831586822474i | F177: -2.118347124 | G177: -43.9956098951413i | H177: 4-43.9956098951413i | I177: 0.00819834380216268+0.0901727839265497i | J177: -20.86273873 | K177: -1.54948861 | L177: 18.74439161 | M177: 301.4598947 | N177: -20.86273873
A178: 307.4890925 | B178: 1932.010948 | C178: 3.47761970716303i | D178: 4.3+3.47761970716303i | E178: 0.60456766412477-0.488943354203214i | F178: -2.185550852 | G178: -43.1329508775895i | H178: 4-43.1329508775895i | I178: 0.00852673272627953+0.0919457859572375i | J178: -20.6921735 | K178: -1.594567026 | L178: 18.50662265 | M178: 307.4890925 | N178: -20.6921735
A179: 313.6388744 | B179: 1970.651167 | C179: 3.54717210130629i | D179: 4.3+3.54717210130629i | E179: 0.59506128261662-0.490880181457026i | F179: -2.25438306 | G179: -42.2872067427348i | H179: 4-42.2872067427348i | I179: 0.00886815782539454+0.0937524058474151i | J179: -20.52166586 | K179: -1.640447216 | L179: 18.2672828 | M179: 313.6388744 | N179: -20.52166586
A180: 319.9116519 | B180: 2010.064191 | C180: 3.61811554333241i | D180: 4.3+3.61811554333241i | E180: 0.585483058364979-0.492638454378634i | F180: -2.324856672 | G180: -41.4580458262106i | H180: 4-41.4580458262106i | I180: 0.00922312699884735+0.0955932054447934i | J180: -20.35121811 | K180: -1.687113831 | L180: 18.02636144 | M180: 319.9116519 | N180: -20.35121811
A181: 326.3098849 | B181: 2050.265475 | C181: 3.69047785419906i | D181: 4.3+3.69047785419906i | E181: 0.575839766671301-0.494214861969207i | F181: -2.396983467 | G181: -40.6451429668731i | H181: 4-40.6451429668731i | I181: 0.00959216715065748+0.0974687513001543i | J181: -20.18083262 | K181: -1.734549605 | L181: 17.78384915 | M181: 326.3098849 | N181: -20.18083262
A182: 332.8360826 | B182: 2091.270784 | C182: 3.76428741128304i | D182: 4.3+3.76428741128304i | E182: 0.566138377858766-0.495606411353012i | F182: -2.470774038 | G182: -39.8481793792874i | H182: 4-39.8481793792874i | I182: 0.00997582483646042+0.0993796143849063i | J182: -20.01051185 | K182: -1.78273532 | L182: 17.53973781 | M182: 332.8360826 | N182: -20.01051185
A183: 339.4928043 | B183: 2133.0962 | C183: 3.8395731595087i | D183: 4.3+3.8395731595087i | E183: 0.556386038078461-0.496810441425917i | F183: -2.546237767 | G183: -39.0668425287131i | H183: 4-39.0668425287131i | I183: 0.0103746669271094+0.101326369782308i | J183: -19.84025837 | K183: -1.831649764 | L183: 17.2940206 | M183: 339.4928043 | N183: -19.84025837
A184: 346.2826604 | B184: 2175.758124 | C184: 3.91636462269888i | D184: 4.3+3.91636462269888i | E184: 0.546590049000231-0.497824635121803i | F184: -2.623382792 | G184: -38.3008260085423i | H184: 4-38.3008260085423i | I184: 0.0107892812888945+0.103309596350792i | J184: -19.67007484 | K184: -1.881269701 | L184: 17.04669205 | M184: 346.2826604 | N184: -19.67007484
A185: 353.2083136 | B185: 2219.273286 | C185: 3.99469191515285i | D185: 4.3+3.99469191515285i | E185: 0.536757846505369-0.498647030192989i | F185: -2.702215982 | G185: -37.5498294201395i | H185: 4-37.5498294201395i | I185: 0.0112202774802789+0.105329876357776i | J185: -19.49996403 | K185: -1.931569847 | L185: 16.79774805 | M185: 353.2083136 | N185: -19.49996403
A186: 360.2724798 | B186: 2263.658752 | C186: 4.07458575345591i | D186: 4.3+4.07458575345591i | E186: 0.526896978509194-0.499276028412216i | F186: -2.782742919 | G186: -36.8135582550387i | H186: 4-36.8135582550387i | I186: 0.0116682874649899+0.107387795082236i | J186: -19.3299288 | K186: -1.982522847 | L186: 16.54718588 | M186: 360.2724798 | N186: -19.3299288
A187: 367.4779294 | B187: 2308.931927 | C187: 4.15607746852503i | D187: 4.3+4.15607746852503i | E187: 0.517015082051214-0.499710403116435i | F187: -2.864967877 | G187: -36.0917237794497i | H187: 4-36.0917237794497i | I187: 0.0121339663412381+0.109483940384277i | J187: -19.15997214 | K187: -2.034099262 | L187: 16.29500426 | M187: 367.4779294 | N187: -19.15997214
A188: 374.827488 | B188: 2355.110565 | C188: 4.23919901789553i | D188: 4.3+4.23919901789553i | E188: 0.507119859798662-0.499949305026467i | F188: -2.948893813 | G188: -35.3840429210291i | H188: 4-35.3840429210291i | I188: 0.0126179930867664+0.111618902239848i | J188: -18.99009715 | K188: -2.086267557 | L188: 16.04120334 | M188: 374.827488 | N188: -18.99009715
A189: 382.3240378 | B189: 2402.212777 | C189: 4.32398299825344i | D189: 4.3+4.32398299825344i | E189: 0.49721905611586-0.499992266291303i | F189: -3.034522352 | G189: -34.6902381578717i | H189: 4-34.6902381578717i | I189: 0.013121071319349+0.113793272238659i | J189: -18.82030704 | K189: -2.138994098 | L189: 15.78578469 | M189: 382.3240378 | N189: -18.82030704
A190: 389.9705185 | B190: 2450.257032 | C190: 4.41046265821851i | D190: 4.3+4.41046265821851i | E190: 0.487320432856748-0.499839202721295i | F190: -3.121853787 | G190: -34.0100374096781i | H190: 4-34.0100374096781i | I190: 0.0136439300722767+0.116007643043291i | J190: -18.65060515 | K190: -2.192243158 | L190: 15.52875136 | M190: 389.9705185 | N190: -18.65060515
A191: 397.7699289 | B191: 2499.262173 | C191: 4.49867191138288i | D191: 4.3+4.49867191138288i | E191: 0.477431745041069-0.499490414190411i | F191: -3.210887076 | G191: -33.343173931057i | H191: 4-33.343173931057i | I191: 0.0141873245842692+0.118262607807412i | J191: -18.48099495 | K191: -2.245976924 | L191: 15.27010788 | M191: 397.7699289 | N191: -18.48099495
A192: 405.7253275 | B192: 2549.247416 | C192: 4.58864534961054i | D192: 4.3+4.58864534961054i | E192: 0.46756071657603-0.498946583203993i | F192: -3.301619844 | G192: -32.6893862069186i | H192: 4-32.6893862069186i | I192: 0.0147520371031518+0.12055875955093i | J192: -18.31148004 | K192: -2.300155516 | L192: 15.0098602 | M192: 405.7253275 | N192: -18.31148004
A193: 413.839834 | B193: 2600.232365 | C193: 4.68041825660275i | D193: 4.3+4.68041825660275i | E193: 0.457715016184746-0.498208771644723i | F193: -3.394048395 | G193: -32.0484178499202i | H193: 4-32.0484178499202i | I193: 0.0153388777025224+0.122896690489815i | J193: -18.14206415 | K193: -2.354737006 | L193: 14.74801576 | M193: 413.839834 | N193: -18.14206415
A194: 422.1166307 | B194: 2652.237012 | C194: 4.7740266217348i | D194: 4.3+4.7740266217348i | E194: 0.447902233700404-0.49727841572563i | F194: -3.488167717 | G194: -31.4200174999218i | H194: 4-31.4200174999218i | I194: 0.015948685110515+0.125276991318281i | J194: -17.97275117 | K194: -2.409677453 | L194: 14.48458345 | M194: 422.1166307 | N194: -17.97275117
A195: 430.5589633 | B195: 2705.281752 | C195: 4.8695071541695i | D195: 4.3+4.8695071541695i | E195: 0.438129856880945-0.496157319194656i | F195: -3.583971503 | G195: -30.8039387254135i | H195: 4-30.8039387254135i | I195: 0.0165823275496321+0.127700250440901i | J195: -17.80354511 | K195: -2.464930936 | L195: 14.2195736 | M195: 430.5589633 | N195: -17.80354511
A196: 439.1701426 | B196: 2759.387387 | C196: 4.96689729725289i | D196: 4.3+4.96689729725289i | E196: 0.428405248893198-0.494847644850367i | F196: -3.681452168 | G196: -30.199939926876i | H196: 4-30.199939926876i | I196: 0.0172407035864773+0.130167053152173i | J196: -17.63445015 | K196: -2.5204496 | L196: 13.95299798 | M196: 439.1701426 | N196: =$J196 -> -17.63445015
A197: 447.9535455 | B197: =2*PI()*$A197 -> 2814.575135 | C197: =COMPLEX(0,$C$3*$B197) -> 5.06623524319795i | D197: =IMSUM($C197,$D$3) -> 4.3+5.06623524319795i | E197: =IMDIV($D$3,$D197) -> 0.418735626607871-0.493351904442645i | F197: =20*LOG(IMABS($E197)) -> -3.780600872 | G197: =COMPLEX(0,-1/($B197*$G$3)) -> -29.6077842420353i | H197: =IMSUM($H$3,$G197) -> 4-29.6077842420353i | I197: =IMDIV($H$3,$H197) -> 0.0179247429900685+0.132677980760971i | J197: =20*LOG(IMABS($I197)) -> -17.46547063 | K197: =20*LOG(IMABS(IMSUB($E197,$I197))) -> -2.576183708 | L197: =ABS(F197-J197) -> 13.68486975 | M197: =A197 -> 447.9535455 | N197: -17.46547063
A198: =$A197*1.02 -> 456.9126164 | B198: 2870.866638 | C198: 5.16755994806191i | D198: 4.3+5.16755994806191i | E198: 0.409128039837846-0.491672947045379i | F198: -3.881407548 | G198: -29.0272394529758i | H198: 4-29.0272394529758i | I198: 0.0186354075972427+0.135233609657242i | J198: -17.29661104 | K198: -2.632081696 | L198: 13.41520349 | M198: 456.9126164 | N198: -17.29661104
A199: 466.0508687 | B199: 2928.283971 | C199: 5.27091114702314i | D199: 4.3+5.27091114702314i | E199: 0.399589351641878-0.489813946000215i | F199: -3.983860935 | G199: -28.4580778950743i | H199: 4-28.4580778950743i | I199: 0.019373692183491+0.137834510318245i | J199: -17.12787605 | K199: -2.688090241 | L199: 13.14401511 | M199: 466.0508687 | N199: -17.12787605
A200: 475.3718861 | B200: 2986.84965 | C200: 5.37632936996361i | D200: 4.3+5.37632936996361i | E200: 0.39012621980428-0.487778384541077i | F200: -4.087948604 | G200: -27.9000763677199i | H200: 4-27.9000763677199i | I200: 0.020140625337367+0.140481246251544i | J200: -16.95927049 | K200: -2.744154331 | L200: 12.87132189 | M200: 475.3718861 | N200: -16.95927049
... 190 more rows

Sheet BiAmp 2-1
A1: =Calc21!$U$1 -> MG 12
A2: 1st Order HP
A3: R2 | B3: =Calc21!$U$2 -> 3.5 | C3: KW
A4: C2 | B4: =Calc21!$U$3 -> 33 | C4: nf
A5: fc | B5: =ROUND(10^6/(2*PI()*B3*B4),-1) -> 1380 | C5: Hz
A6: 2nd Order LP
A7: R7 | B7: =Calc21!$U$4 -> 8.2 | C7: KW
A8: R8 | B8: =Calc21!$U$5 -> 6.8 | C8: KW
A9: C3 | B9: =Calc21!$U$6 -> 47 | C9: nf
A10: C4 | B10: =Calc21!$U$7 -> 52 | C10: nf
A11: fc | B11: =ROUND(10^6/(2*PI()*SQRT(B7*B8*B9*B10)),-1) -> 430 | C11: Hz
A12: Stock XO
A13: Tweeter | B13: =ROUND(10^6/(2*PI()*B14*B15),-1) -> 1370 | C13: Hz
A14: R | B14: =Calc21!$U$16 -> 3.5 | C14: W
A15: C | B15: =Calc21!$U$17 -> 33.1 | C15: mfd
A16: Woofer | B16: =ROUND(1/(2*PI()*SQRT(B18*B19*10^-9)),-1) -> 430 | C16: Hz
A17: R | B17: =Calc21!$U$18 -> 3.9 | C17: W
A18: C | B18: =Calc21!$U$19 -> 50 | C18: mfd
A19: L | B19: =Calc21!$U$20 -> 2.8 | C19: mH
B28: f | C28: dB
A29: XO Point: | B29: =ROUND(VLOOKUP(MIN(Calc21!$AC5:$AC516),Calc21!$AC5:$AE516,2,0),-1) -> 570 | C29: =ROUND(VLOOKUP(MIN(Calc21!$AC5:$AC516),Calc21!$AC5:$AE516,3,0),1) -> -8.4
A30: Stock XO: | B30: =Pass21!$O$3 -> 570 | C30: =Pass21!$P$3 -> -8.4

Sheet Calc21 (hidden)
S1: Woofer | U1: MG 12 | V1: MMG old | W1: MG 1.6 | X1: MG 1.5 | Y1: MG 0.6 | Z1: MG 12 | AA1: MG 0.5
B2: 2pf | C2: j2pf | E2: wc=1/[(RC)] | P2: Network | S2: Tweeter | T2: R2 (kOhm) | U2: 3.5 | V2: 2.87 | W2: 2.87 | X2: 1.6 | Y2: 2.5 | Z2: 3.5 | AA2: 2.7
E3: High Pass Section (1st Order) | J3: Low Pass Section (2nd Order) | P3: Lp2 - Hp1 | S3: Output | T3: C2 (nf) | U3: 33 | V3: 22 | W3: 33 | X3: 33 | Y3: 27 | Z3: 33 | AA3: 15
A4: f | B4: w | C4: s= jw | E4: R2*C2 | F4: Hhp | G4: Output | H4: Phase Angle | J4: R7R8C4C5 | K4: C4(R7+R8) | L4: Hlp | M4: Output | N4: Phase Angle | O4: =MIN(O5:O516) -> 0.09667611419 | P4: Output | Q4: Phase Aligned | S4: Woofer Pass | T4: R7 | U4: 8.2 | V4: 24.9 | W4: 8.66 | X4: 24.9 | Y4: 8.2 | Z4: 8.2 | AA4: 8.2
A5: 10 | B5: =2*PI()*A5 -> 62.83185307 | C5: =COMPLEX(0,$B5) -> 62.8318530717959i | E5: =U2*U3*10^-6 -> 0.0001155 | F5: =IMDIV(IMPRODUCT($C5,$E$5),IMSUM(1,IMPRODUCT($C5,$E$5))) -> 0.0000526624225678443+0.00725669685442996i | G5: =20*LOG(IMABS($F5)) -> -42.78499166 | H5: =IMARGUMENT($F5)*180/PI() -> 89.5842073 | J5: =U4*U5*U6*U7*10^-12 -> 1.3627744e-07 | K5: =$U$6*($U$4+$U$5)*10^-6 -> 0.000705 | L5: =IMDIV(1,IMSUM(IMPRODUCT(IMPOWER($C5,2),$J$5),IMPRODUCT($C5,$K$5),1)) -> 0.998576797886288-0.0442572240700401i | M5: =20*LOG(IMABS($L5)) -> -0.003848150007 | N5: =IMARGUMENT($L5)*180/PI() -> -2.537705457 | O5: =ABS(G5-M5) -> 42.78114351 | P5: =20*LOG(IMABS(IMSUM($L5,$F5))) -> -0.005954618239 | Q5: =20*LOG(IMABS(IMSUB($L5,$F5))) -> -0.001285123514 | S5: Tweeter Pass | T5: R8 | U5: 6.8 | V5: 8.06 | W5: 4.7 | X5: 4.3 | Y5: 6.2 | Z5: 6.8 | AA5: 8.2 | AC5: =ABS($G5-$M5) -> 42.78114351 | AD5: 10 | AE5: =20*LOG(IMABS($F5)) -> -42.78499166
A6: =A5*1.015 -> 10.15 | B6: 63.77433087 | C6: 63.7743308678728i | E6: =1/(2*PI()*$E$5) -> 1377.964875 | F6: 0.0000542540579325948+0.00736553558336342i | G6: -42.65567773 | H6: 89.57797063 | J6: =1/(2*PI()*SQRT($J$5)) -> 431.1299049 | L6: 0.998533811859905-0.0449198795401679i | M6: -0.003964446378 | N6: -2.575762003 | O6: 42.65171329 | P6: -0.006134596415 | Q6: -0.001323966186 | S6: Output Pass | T6: C3 | U6: 47 | V6: 17.2 | W6: 68 | X6: 33 | Y6: 33 | Z6: 47 | AA6: 47 | AC6: 42.65171329 | AD6: =AD5*1.015 -> 10.15 | AE6: -42.65567773
A7: 10.30225 | B7: 64.73094583 | C7: 64.7309458308909i | F7: 0.0000558937951773468+0.00747600635774258i | G7: -42.52636401 | H7: 89.57164043 | L7: 0.998489528436671-0.0455924199394337i | M7: -0.004084256949 | N7: -2.614388985 | O7: 42.52227975 | P7: -0.006320014422 | Q7: -0.001363982865 | T7: C4 | U7: 52 | V7: 18 | W7: 33 | X7: 11 | Y7: 22 | Z7: 52 | AA7: 22 | AC7: 42.52227975 | AD7: 10.30225 | AE7: -42.52636401
A8: 10.45678375 | B8: 65.70191002 | C8: 65.7019100183542i | F8: 0.0000575830878562915+0.00758813363379194i | G8: -42.3970505 | H8: 89.56521528 | L8: 0.998443908516561-0.0462749910372347i | M8: -0.004207687885 | N8: -2.65359494 | O8: 42.39284281 | P8: -0.006511036677 | Q8: -0.001405209036 | T8: Tweeter | U8: =10^6/(2*PI()*U$2*U$3) -> 1377.964875 | V8: 2520.667455 | W8: 1680.44497 | X8: 3014.298165 | Y8: 2357.851009 | Z8: 1377.964875 | AA8: 3929.751681 | AC8: 42.39284281 | AD8: 10.45678375 | AE8: -42.3970505
A9: 10.61363551 | B9: 66.68743867 | C9: 66.6874386686295i | F9: 0.0000593234334373476+0.00770194223346246i | G9: -42.26773721 | H9: 89.55869376 | L9: 0.998396911824721-0.0469677406753637i | M9: -0.004334848556 | N9: -2.693388532 | O9: 42.26340237 | P9: -0.006707832569 | Q9: -0.001447681255 | T9: Woofer | U9: =10^6/(2*PI()*SQRT(U$4*U$5*U$6*U$7)) -> 431.1299049 | V9: 638.487591 | W9: 526.6242218 | X9: 807.2962178 | Y9: 828.4170913 | Z9: 431.1299049 | AA9: 603.595523 | AC9: 42.26340237 | AD9: 10.61363551 | AE9: -42.26773721
A10: 10.77284004 | B10: 67.68775025 | C10: 67.687750248659i | F10: 0.0000611163746282285+0.00781745734986644i | G10: -42.13842416 | H10: 89.55207444 | L10: 0.998348496876399-0.0476708187939006i | M10: -0.004465851633 | N10: -2.733778557 | O10: 42.1339583 | P10: -0.006910576605 | Q10: -0.001491437181 | T10: Qw | U10: =SQRT(U$4*U$5*U$6*U$7)/(U$6*(U$4+U$5)) -> 0.5236280058 | V10: 0.4396954996 | W10: 0.3326625639 | X10: 0.204592836 | Y10: 0.404291536 | Z10: 0.5236280058 | AA10: 0.3420837275 | AC10: 42.1339583 | AD10: 10.77284004 | AE10: -42.13842416
A11: 10.93443264 | B11: 68.7030665 | C11: 68.7030665023889i | F11: 0.0000629635007425171+0.00793470455279158i | G11: -42.00911133 | H11: 89.54535583 | L11: 0.998298620940818-0.0483843774572568i | M11: -0.00460081319 | N11: -2.774773939 | O11: 42.00451052 | P11: -0.007119448566 | Q11: -0.001536515615 | AC11: 42.00451052 | AD11: 10.93443264 | AE11: -42.00911133
A12: 11.09844913 | B12: 69.7336125 | C12: 69.7336124999247i | F12: 0.0000648664491069488+0.00805370979429536i | G12: -41.87979875 | H12: 89.53853646 | L12: 0.998247240003998-0.049108570880364i | M12: -0.004739852806 | N12: -2.816383735 | O12: 41.8750589 | P12: -0.007334633669 | Q12: -0.001582956528 | T12: Tweeter | U12: =10^6/(2*PI()*U16*U17) -> 1373.801839 | V12: =10^6/(2*PI()*V16*V17) -> 2550.559985 | W12: 1614.966444 | X12: 3031.522726 | Y12: 2357.851009 | Z12: 1373.801839 | AA12: =10^6/(2*PI()*AA16*AA17) -> 3929.751681 | AC12: 41.8750589 | AD12: 11.09844913 | AE12: -41.87979875
A13: 11.26492587 | B13: 70.77961669 | C13: 70.7796166874235i | F13: 0.0000668269065111469+0.00817449941438086i | G13: -41.75048642 | H13: 89.53161482 | L13: 0.998194308730488-0.049843555454999i | M13: -0.00488309367 | N13: -2.858617139 | O13: 41.74560333 | P13: -0.007556322728 | Q13: -0.001630801101 | T13: Woofer | U13: =ROUND(1/(2*PI()*SQRT(U19*U20*10^-9)),0) -> 425 | V13: =ROUND(1/(2*PI()*SQRT(V19*V20*10^-9)),0) -> 679 | W13: 538 | X13: 822 | Y13: 839 | Z13: 425 | AA13: =ROUND(1/(2*PI()*SQRT(AA19*AA20*10^-9)),0) -> 633 | AC13: 41.74560333 | AD13: 11.26492587 | AE13: -41.75048642
A14: 11.43389975 | B14: 71.84131094 | C14: 71.8413109377349i | F14: 0.0000688466107010846+0.00829710014675486i | G14: -41.62117435 | H14: 89.52458936 | L14: 0.998139780423959-0.0505894897762324i | M14: -0.005030662687 | N14: -2.90148348 | O14: 41.61614369 | P14: -0.007784712324 | Q14: -0.001680091756 | T14: Qw | U14: =ROUND(U18*(SQRT(U19*10^-3/U20)),2) -> 0.52 | V14: =ROUND(V18*(SQRT(V19*10^-3/V20)),2) -> 0.43 | W14: 0.35 | X14: 0.2 | Y14: 0.41 | Z14: 0.52 | AA14: =ROUND(AA18*(SQRT(AA19*10^-3/AA20)),2) -> 0.31 | AC14: 41.61614369 | AD14: 11.43389975 | AE14: -41.62117435
A15: 11.60540825 | B15: 72.9189306 | C15: 72.9189306018009i | F15: 0.000070927351917592+0.00842153912466966i | G15: -41.49186254 | H15: 89.51745853 | L15: 0.99808360698665-0.0513465346689949i | M15: -0.005182690598 | N15: -2.944992225 | O15: 41.48667985 | P15: -0.008020004979 | Q15: -0.001730872202 | AC15: 41.48667985 | AD15: 11.60540825 | AE15: -41.49186254
A16: 11.77948937 | B16: 74.01271456 | C16: 74.0127145608279i | F16: 0.0000730709744812651+0.00854784388684968i | G16: -41.36255101 | H16: 89.51022076 | L16: 0.99802573887762-0.0521148532147467i | M16: -0.005339312087 | N16: -2.989152985 | O16: 41.3572117 | P16: -0.008262409337 | Q16: -0.001783187465 | S16: Tweeter | T16: R | U16: 3.5 | V16: 2.6 | W16: 4.5 | X16: 3.5 | Y16: 2.7 | Z16: 3.5 | AA16: 2.7 | AC16: 41.3572117 | AD16: 11.77948937 | AE16: -41.36255101
A17: 11.95618171 | B17: 75.12290528 | C17: 75.1229052792403i | F17: 0.0000752793784251691+0.00867604238350373i | G17: -41.23323975 | H17: 89.50287444 | L17: 0.997966125069775-0.0528946107782403i | M17: -0.005500665906 | N17: -3.033975512 | O17: 41.22773909 | P17: -0.008512140349 | Q17: -0.001837083935 | T17: C | U17: 33.1 | V17: 24 | W17: 21.9 | X17: 15 | Y17: 25 | Z17: 33.1 | AA17: 15 | AC17: 41.22773909 | AD17: 11.95618171 | AE17: -41.23323975
A18: 12.13552444 | B18: 76.24974886 | C18: 76.2497488584289i | F18: 0.0000775545211767779+0.00880616298242446i | G18: -41.10392879 | H18: 89.49541794 | L18: 0.997904713005634-0.0536859750343636i | M18: -0.005666894993 | N18: -3.079469701 | O18: 41.0982619 | P18: -0.008769419461 | Q18: -0.001892609401 | S18: Woofer | T18: R | U18: 3.9 | V18: 4 | W18: 4.1 | X18: 3.9 | Y18: 3.9 | Z18: 3.9 | AA18: 3.9 | AC18: 41.0982619 | AD18: 12.13552444 | AE18: -41.10392879
A19: 12.31755731 | B19: 77.39349509 | C19: 77.3934950913053i | F19: 0.0000798984192906275+0.00893823447517587i | G19: -40.97461813 | H19: 89.48784961 | L19: 0.997841448551806-0.0544891159950501i | M19: -0.005838146602 | N19: -3.125645599 | O19: 40.96877998 | P19: -0.009034474815 | Q19: -0.001949813098 | T19: C | U19: 50 | V19: 25 | W19: 25 | X19: 10 | Y19: 20 | Z19: 50 | AA19: 20 | AC19: 40.96877998 | AD19: 12.31755731 | AE19: -40.97461813
A20: 12.50232067 | B20: 78.55439752 | C20: 78.5543975176749i | F20: 0.0000823131502332137+0.00907228608337019i | G20: -40.84530777 | H20: 89.48016777 | L20: 0.99777627595213-0.0553042060362422i | M20: -0.006014572432 | N20: -3.172513397 | O20: 40.8392932 | P20: -0.009307541445 | Q20: -0.00200874575 | T20: L | U20: 2.8 | V20: 2.2 | W20: 3.5 | X20: 3.75 | Y20: 1.8 | Z20: 2.8 | AA20: 3.16 | AC20: 40.8392932 | AD20: 12.50232067 | AE20: -40.84530777
A21: 12.68985548 | B21: 79.73271348 | C21: 79.73271348044i | F21: 0.0000848008542216982+0.00920834746503527i | G21: -40.71599773 | H21: 89.47237072 | L21: 0.997709137779445-0.0561314199248923i | M21: -0.006196328759 | N21: -3.22008344 | O21: 40.7098014 | P21: -0.00958886149 | Q21: -0.002069459611 | AC21: 40.7098014 | AD21: 12.68985548 | AE21: -40.71599773
A22: 12.88020331 | B22: 80.92870418 | C22: 80.9287041826466i | F22: 0.0000873637361180486+0.00934644872107369i | G22: -40.58668802 | H22: 89.46445674 | L22: 0.997639974885961-0.0569709348459862i | M22: -0.006383576576 | N22: -3.268366228 | O22: 40.58030444 | P22: -0.009878684409 | Q22: -0.002132008518 | AC22: 40.58030444 | AD22: 12.88020331 | AE22: -40.58668802
A23: 13.07340636 | B23: 82.14263475 | C23: 82.1426347453863i | F23: 0.0000900040673802733+0.00948662040181478i | G23: -40.45737864 | H23: 89.45642407 | L23: 0.99756872635217-0.0578229304295712i | M23: -0.006576481734 | N23: -3.317372415 | O23: 40.45080216 | P23: -0.0101772672 | Q23: -0.002196447931 | AC23: 40.45080216 | AD23: 13.07340636 | AE23: -40.45737864
A24: 13.26950745 | B24: 83.37477427 | C24: 83.3747742665671i | F24: 0.0000927241880724703+0.00962889351366067i | G24: -40.32806961 | H24: 89.44827093 | L24: 0.997495329434287-0.0586875887777735i | M24: -0.006775215091 | N24: -3.367112812 | O24: 40.32129439 | P24: -0.01048487463 | Q24: -0.00226283499 | AC24: 40.32129439 | AD24: 13.26950745 | AE24: -40.32806961
A25: 13.46855007 | B25: 84.62539588 | C25: 84.6253958805656i | F25: 0.0000955265089354573+0.0097732995258279i | G25: -40.19876093 | H25: 89.43999552 | L25: 0.997419719510141-0.0595650944917803i | M25: -0.006979952659 | N25: -3.417598393 | O25: 40.19178098 | P25: -0.01080177946 | Q25: -0.00233122856 | AC25: 40.19178098 | AD25: 13.46855007 | AE25: -40.19876093
A26: 13.67057832 | B26: 85.89477682 | C26: 85.8947768187741i | F26: 0.0000984135135198027+0.00991987037718535i | G26: -40.06945263 | H26: 89.431596 | L26: 0.997341830023513-0.0604556346987735i | M26: -0.007190875762 | N26: -3.468840294 | O26: 40.06226175 | P26: -0.01112826271 | Q26: -0.002401689284 | AC26: 40.06226175 | AD26: 13.67057832 | AE26: -40.06945263
A27: 13.87563699 | B27: 87.18319847 | C27: 87.1831984710557i | F27: 0.000101387760383133+0.0100686384831901i | G27: -39.9401447 | H27: 89.42307051 | L27: 0.997261592426846-0.0613593990787891i | M27: -0.007408171193 | N27: -3.520849815 | O27: 39.93273653 | P27: -0.01146461389 | Q27: -0.00247427964 | AC27: 39.93273653 | AD27: 13.87563699 | AE27: -39.9401447
A28: 14.08377155 | B28: 88.49094645 | C28: 88.4909464481215i | F28: 0.000104451885353649+0.0102196367429227i | G28: -39.81083717 | H28: 89.41441717 | L28: 0.997178936122309-0.0622765798914805i | M28: -0.007632031383 | N28: -3.573638425 | O28: 39.80320513 | P28: -0.01181113124 | Q28: -0.002549063993 | AC28: 39.80320513 | AD28: 14.08377155 | AE28: -39.81083717
A29: 14.29502812 | B29: 89.81831064 | C29: 89.8183106448433i | F29: 0.000107608603861835+0.0103728985462218i | G29: -39.68153003 | H29: 89.40563405 | L29: 0.997093788401134-0.063207372002763i | M29: -0.007862654568 | N29: -3.627217761 | O29: 39.67366738 | P29: -0.01216812204 | Q29: -0.002626108653 | AC29: 39.67366738 | AD29: 14.29502812 | AE29: -39.68153003
A30: 14.50945354 | B30: 91.1655853 | C30: 91.1655853045159i | F30: 0.000110860713342409+0.0105284577809215i | G30: -39.55222331 | H30: 89.39671922 | L30: 0.997006074381227-0.0641519729113147i | M30: -0.008100244965 | N30: -3.681599634 | O30: 39.54412307 | P30: -0.01253590285 | Q30: -0.002705481934 | AC30: 39.54412307 | AD30: 14.50945354 | AE30: -39.55222331
A31: 14.72709534 | B31: 92.53306908 | C31: 92.5330690840837i | F31: 0.000114211095708635+0.010686348840191i | G31: -39.42291702 | H31: 89.38767069 | L31: 0.996915716942954-0.0651105827749044i | M31: -0.008345012949 | N31: -3.73679603 | O31: 39.41457201 | P31: -0.01291479979 | Q31: -0.002787254216 | AC31: 39.41457201 | AD31: 14.72709534 | AE31: -39.42291702
A32: 14.94800177 | B32: 93.92106512 | C32: 93.9210651203449i | F32: 0.000117662719901144+0.0108466066299783i | G32: -39.29361117 | H32: 89.37848646 | L32: 0.996822636663093-0.0660834044365225i | M32: -0.008597175245 | N32: -3.792819111 | O32: 39.28501399 | P32: -0.01330514885 | Q32: -0.002871498005 | AC32: 39.28501399 | AD32: 14.94800177 | AE32: -39.29361117
A33: 15.1722218 | B33: 95.3298811 | C33: 95.3298810971501i | F33: 0.000121218644513538+0.01100926657656i | G33: -39.16430577 | H33: 89.36916451 | L33: 0.996726751746882-0.067070643450282i | M33: -0.00885695511 | N33: -3.849681221 | O33: 39.15544881 | P33: -0.01370729616 | Q33: -0.002958287997 | AC33: 39.15544881 | AD33: 15.1722218 | AE33: -39.16430577
A34: 15.39980513 | B34: 96.75982931 | C34: 96.7598293136073i | F34: 0.000124882020497026+0.0111743646341965i | G34: -39.03500083 | H34: 89.35970276 | L34: 0.996627977958109-0.068072508107061i | M34: -0.00912458254 | N34: -3.907394884 | O34: 39.02587625 | P34: -0.01412159832 | Q34: -0.003047701147 | AC34: 39.02587625 | AD34: 15.39980513 | AE34: -39.03500083
A35: 15.6308022 | B35: 98.21122675 | C35: 98.2112267533115i | F35: 0.000128656093946524+0.0113419372928973i | G35: -38.90569638 | H35: 89.35009912 | L35: 0.996526228547205-0.0690892094598513i | M35: -0.009400294462 | N35: -3.96597281 | O35: 38.89629609 | P35: -0.01454842271 | Q35: -0.003139816735 | AC35: 38.89629609 | AD35: 15.6308022 | AE35: -38.90569638
A36: 15.86526424 | B36: 99.68439515 | C36: 99.6843951546111i | F36: 0.000132544208970611+0.0115120215862932i | G36: -38.77639242 | H36: 89.34035146 | L36: 0.996421414177276-0.0701209613487801i | M36: -0.009684334952 | N36: -4.025427898 | O36: 38.76670809 | P36: -0.01498814781 | Q36: -0.003234716437 | AC36: 38.76670809 | AD36: 15.86526424 | AE36: -38.77639242
A37: 16.1032432 | B37: 101.1796611 | C37: 101.17966108193i | F37: 0.000136549810647898+0.0116846550996215i | G37: -38.64708898 | H37: 89.33045763 | L37: 0.996313442848025-0.0711679804257697i | M37: -0.009976955445 | N37: -4.085773237 | O37: 38.63711202 | P37: -0.01544116355 | Q37: -0.003332484397 | AC37: 38.63711202 | AD37: 16.1032432 | AE37: -38.64708898
A38: 16.34479185 | B38: 102.697356 | C38: 102.697355998159i | F38: 0.00014067644807236+0.0118598759778219i | G38: -38.51778606 | H38: 89.32041543 | L38: 0.996202219817487-0.0722304861787926i | M38: -0.01027841496 | N38: -4.147022108 | O38: 38.50750764 | P38: -0.01590787161 | Q38: -0.003433207303 | AC38: 38.50750764 | AD38: 16.34479185 | AE38: -38.51778606
A39: 16.58996373 | B39: 104.2378163 | C39: 104.237816338132i | F39: 0.000144927777490314+0.0120377229337457i | G39: -38.38848368 | H39: 89.31022263 | L39: 0.996087647521562-0.0733087009556862i | M39: -0.01058898031 | N39: -4.209187989 | O39: 38.3778947 | P39: -0.01638868586 | Q39: -0.003536974461 | AC39: 38.3778947 | AD39: 16.58996373 | AE39: -38.38848368
A40: 16.83881318 | B40: 105.8013836 | C40: 105.801383583204i | F40: 0.000149307565531819+0.0122182352564801i | G40: -38.25918186 | H40: 89.299877 | L40: 0.995969625491244-0.07440284998748i | M40: -0.01090892638 | N40: -4.272284556 | O40: 38.24827293 | P40: -0.01688403265 | Q40: -0.003643877877 | AC40: 38.24827293 | AD40: 16.83881318 | AE40: -38.25918186
A41: 17.09139538 | B41: 107.3884043 | C41: 107.388404336952i | F41: 0.000153819692539254+0.0124014528197885i | G41: -38.12988061 | H41: 89.28937622 | L41: 0.9958480502675-0.075513161411197i | M41: -0.01123853632 | N41: -4.336325688 | O41: 38.11864207 | P41: -0.01739435121 | Q41: -0.003754012337 | AC41: 38.11864207 | AD41: 17.09139538 | AE41: -38.12988061
A42: 17.34776631 | B42: 108.9992304 | C42: 108.999230402006i | F42: 0.000158468155996067+0.0125874160906678i | G42: -38.00057996 | H42: 89.27871798 | L42: 0.995722815313757-0.0766398662920751i | M42: -0.01157810182 | N42: -4.401325467 | O42: 37.98900186 | P42: -0.01792009407 | Q42: -0.003867475492 | AC42: 37.98900186 | AD42: 17.34776631 | AE42: -38.00057996
A43: 17.60798281 | B43: 110.6342189 | C43: 110.634218858036i | F43: 0.000163257074058639+0.0127761661380247i | G43: -37.87127991 | H43: 89.26789992 | L43: 0.995593810925896-0.0777831986451629i | M43: -0.01192792336 | N43: -4.467298182 | O43: 37.85935199 | P43: -0.01846172742 | Q43: -0.003984367942 | AC43: 37.85935199 | AD43: 17.60798281 | AE43: -37.87127991
A44: 17.87210255 | B44: 112.2937321 | C44: 112.293732140906i | F44: 0.000168190689194342+0.0129677446414714i | G44: -37.7419805 | H44: 89.25691964 | L44: 0.995460924139729-0.0789433954562375i | M44: -0.01228831048 | N44: -4.534258334 | O44: 37.72969219 | P44: -0.01901973155 | Q44: -0.004104793329 | AC44: 37.72969219 | AD44: 17.87210255 | AE44: -37.7419805
A45: 18.14018409 | B45: 113.9781381 | C45: 113.97813812302i | F45: 0.00017327337192904+0.013162193900244i | G45: -37.61268173 | H45: 89.24577471 | L45: 0.995324038635865-0.0801206967019925i | M45: -0.01265958206 | N45: -4.602220635 | O45: 37.60002215 | P45: -0.01959460125 | Q45: -0.004228858427 | AC45: 37.60002215 | AD45: 18.14018409 | AE45: -37.61268173
A46: 18.41228685 | B46: 115.6878102 | C46: 115.687810194865i | F46: 0.000178509624707189+0.0133595568422413i | G46: -37.48338363 | H46: 89.23446267 | L46: 0.995183034641906-0.081315345369428i | M46: -0.01304206655 | N46: -4.671200015 | O46: 37.47034156 | P46: -0.02018684628 | Q46: -0.004356673234 | AC46: 37.47034156 | AD46: 18.41228685 | AE46: -37.48338363
A47: 18.68847115 | B47: 117.4231273 | C47: 117.423127347788i | F47: 0.000183904085868037+0.0135598770331902i | G47: -37.35408622 | H47: 89.22298101 | L47: 0.995037788831912-0.0825275874744011i | M47: -0.01343610235 | N47: -4.741211623 | O47: 37.34065012 | P47: -0.02079699181 | Q47: -0.004488351075 | AC47: 37.34065012 | AD47: 18.68847115 | AE47: -37.35408622
A48: 18.96879822 | B48: 119.1844743 | C48: 119.184474258005i | F48: 0.000189461533741276+0.0137631986859345i | G48: -37.22478951 | H48: 89.21132718 | L48: 0.994888174223061-0.0837576720792541i | M48: -0.01384203801 | N48: -4.81227083 | O48: 37.21094747 | P48: -0.02142557886 | Q48: -0.004624008698 | AC48: 37.21094747 | AD48: 18.96879822 | AE48: -37.22478951
A49: 19.25333019 | B49: 120.9722414 | C49: 120.972241371875i | F49: 0.000195186890865783+0.0139695666698512i | G49: -37.09549354 | H49: 89.19949862 | L49: 0.994734060069428-0.0850058513094674i | M49: -0.01426023261 | N49: -4.884393232 | O49: 37.0812333 | P49: -0.02207316483 | Q49: -0.004763766379 | AC49: 37.0812333 | AD49: 19.25333019 | AE49: -37.09549354
A50: 19.54213014 | B50: 122.786825 | C50: 122.786824992453i | F50: 0.000201085228335114+0.0141790265203948i | G50: -36.96619831 | H50: 89.1874927 | L50: 0.994575311752818-0.0862723803692623i | M50: -0.01469105602 | N50: -4.957594654 | O50: 36.95150726 | P50: -0.02274032395 | Q50: -0.004907748027 | AC50: 36.95150726 | AD50: 19.54213014 | AE50: -36.96619831
A51: 19.8352621 | B51: 124.6286274 | C51: 124.62862736734i | F51: 0.000207161770273525+0.014391624448771i | G51: -36.83690386 | H51: 89.17530676 | L51: 0.994411790670581-0.0875575175560819i | M51: -0.01513488926 | N51: -5.031891152 | O51: 36.82176898 | P51: -0.02342764781 | Q51: -0.005056081297 | AC51: 36.82176898 | AD51: 19.8352621 | AE51: -36.83690386
A52: 20.13279103 | B52: 126.4980568 | C52: 126.49805677785i | F52: 0.0002134218984464+0.0146074073517398i | G52: -36.70761021 | H52: 89.16293811 | L52: 0.994243354120322-0.0888615242738708i | M52: -0.01559212484 | N52: -5.107299019 | O52: 36.69201809 | P52: -0.02413574589 | Q52: -0.0052088977 | AC52: 36.69201809 | AD52: 20.13279103 | AE52: -36.70761021
A53: 20.43478289 | B53: 128.3955276 | C53: 128.395527629518i | F53: 0.000219871157009152+0.014826422821553i | G53: -36.57831738 | H53: 89.15038401 | L53: 0.994069855181453-0.0901846650450804i | M53: -0.01606316707 | N53: -5.183834784 | O53: 36.56225422 | P53: -0.02486524606 | Q53: -0.005366332723 | AC53: 36.56225422 | AD53: 20.43478289 | AE53: -36.57831738
A54: 20.74130464 | B54: 130.3214605 | C54: 130.321460543961i | F54: 0.000226515257398665+0.0150487191560222i | G54: -36.4490254 | H54: 89.13764168 | L54: 0.993891142593485-0.0915272075213075i | M54: -0.01654843244 | N54: -5.261515219 | O54: 36.43247697 | P54: -0.0256167952 | Q54: -0.005528525943 | AC54: 36.43247697 | AD54: 20.74130464 | AE54: -36.4490254
A55: 21.05242421 | B55: 132.2762825 | C55: 132.27628245212i | F55: 0.000233360083371545+0.0152743453687231i | G55: -36.31973429 | H55: 89.1247083 | L55: 0.993707060630995-0.0928894224924825i | M55: -0.01704834998 | N55: -5.340357339 | O55: 36.30268594 | P55: -0.02639105973 | Q55: -0.005695621156 | AC55: 36.30268594 | AD55: 21.05242421 | AE55: -36.31973429
A56: 21.36821057 | B56: 134.2604267 | C56: 134.260426688902i | F56: 0.000240411696193585+0.0155033511993349i | G56: -36.19044407 | H56: 89.11158101 | L56: 0.993517448975192-0.0942715838945174i | M56: -0.01756336163 | N56: -5.42037841 | O56: 36.17288071 | P56: -0.02718872622 | Q56: -0.005867766505 | AC56: 36.17288071 | AD56: 21.36821057 | AE56: -36.19044407
A57: 21.68873373 | B57: 136.2743331 | C57: 136.274333089235i | F57: 0.000247676339984897+0.0157357871241164i | G57: -36.06115479 | H57: 89.09825691 | L57: 0.993322142581997-0.0956739688153084i | M57: -0.01809392262 | N57: -5.501595948 | O57: 36.04306086 | P57: -0.02801050196 | Q57: -0.006045114605 | AC57: 36.04306086 | AD57: 21.68873373 | AE57: -36.06115479
A58: 22.01406473 | B58: 138.3184481 | C58: 138.318448085574i | F58: 0.000255160447225402+0.0159717043665219i | G58: -35.93186645 | H58: 89.08473305 | L58: 0.993120971546543-0.0970968574990038i | M58: -0.01864050191 | N58: -5.584027724 | O58: 35.91322595 | P58: -0.02885711565 | Q58: -0.006227822685 | AC58: 35.91322595 | AD58: 22.01406473 | AE58: -35.93186645
A59: 22.3442757 | B59: 140.3932248 | C59: 140.393224806857i | F59: 0.000262870644425359+0.0162111549079533i | G59: -35.8025791 | H59: 89.07100643 | L59: 0.992913760964046-0.0985405333484181i | M59: -0.01920358254 | N59: -5.667691768 | O59: 35.78337552 | P59: -0.02972931801 | Q59: -0.006416052722 | AC59: 35.78337552 | AD59: 22.3442757 | AE59: -35.8025791
A60: 22.67943984 | B60: 142.4991232 | C60: 142.49912317896i | F60: 0.000270813757965982+0.0164541914986571i | G60: -35.67329276 | H60: 89.05707403 | L60: 0.992700330786916-0.100005282925496i | M60: -0.01978366209 | N60: -5.752606371 | O60: 35.6535091 | P60: -0.03062788243 | Q60: -0.006609971589 | AC60: 35.6535091 | AD60: 22.67943984 | AE60: -35.67329276
A61: 23.01963144 | B61: 144.63661 | C61: 144.636610026645i | F61: 0.000278996820115046+0.0167008676687594i | G61: -35.54400747 | H61: 89.04293275 | L61: 0.992480495678075-0.101491395949693i | M61: -0.02038125313 | N61: -5.838790091 | O61: 35.52362621 | P61: -0.03155360569 | Q61: -0.006809751198 | AC61: 35.52362621 | AD61: 23.01963144 | AE61: -35.54400747
A62: 23.36492591 | B62: 146.8061592 | C62: 146.806159177044i | F62: 0.000287427075222792+0.0169512377394461i | G62: -35.41472324 | H62: 89.02857947 | L62: 0.992254064860357-0.102999165294172i | M62: -0.02099688361 | N62: -5.926261755 | O62: 35.39372636 | P62: -0.03250730865 | Q62: -0.007015568656 | AC62: 35.39372636 | AD62: 23.36492591 | AE62: -35.41472324
A63: 23.7153998 | B63: 149.0082516 | C63: 149.0082515647i | F63: 0.000296111986103451+0.0172053568342867i | G63: -35.28544013 | H63: 89.01401102 | L63: 0.992020841961918-0.104528886979668i | M63: -0.02163109739 | N63: -6.015040462 | O63: 35.26380903 | P63: -0.03348983698 | Q63: -0.00722760642 | AC63: 35.26380903 | AD63: 23.7153998 | AE63: -35.28544013
A64: 24.07113079 | B64: 151.2433753 | C64: 151.24337533817i | F64: 0.000305059240607866+0.0174632808907028i | G64: -35.15615815 | H64: 88.99922417 | L64: 0.991780624857574-0.106080860165901i | M64: -0.02228445465 | N64: -6.105145588 | O64: 35.1338737 | P64: -0.03450206191 | Q64: -0.00744605246 | AC64: 35.1338737 | AD64: 24.07113079 | AE64: -35.15615815
A65: 24.43219776 | B65: 153.512026 | C65: 153.512025968243i | F65: 0.000314276758392934+0.0177250666715832i | G65: -35.02687735 | H65: 88.98421565 | L65: 0.991533205505978-0.1076553871404i | M65: -0.02295753243 | N65: -6.196596789 | O65: 35.00391982 | P65: -0.03554488099 | Q65: -0.007671100423 | AC65: 35.00391982 | AD65: 24.43219776 | AE65: -35.02687735
A66: 24.79868072 | B66: 155.8147064 | C66: 155.814706357767i | F66: 0.00032377269789364+0.0179907717770455i | G66: -34.89759776 | H66: 88.96898215 | L66: 0.991278369782536-0.109252773304581i | M66: -0.02365092511 | N66: -6.289414005 | O66: 34.87394683 | P66: -0.03661921892 | Q66: -0.007902949805 | AC66: 34.87394683 | AD66: 24.79868072 | AE66: -34.89759776
A67: 25.17066093 | B67: 158.151927 | C67: 158.151926953133i | F67: 0.00033355546350377+0.0182604546563479i | G67: -34.76831941 | H67: 88.9535203 | L67: 0.991015897307997-0.110873327156935i | M67: -0.02436524494 | N67: -6.383617463 | O67: 34.74395417 | P67: -0.03772602832 | Q67: -0.008141806129 | AC67: 34.74395417 | AD67: 25.17066093 | AE67: -34.76831941
A68: 25.54822085 | B68: 160.5242059 | C68: 160.52420585743i | F68: 0.000343633712971396+0.0185341746199475i | G68: -34.63904235 | H68: 88.93782667 | L68: 0.990745561272598-0.112517360273177i | M68: -0.02510112255 | N68: -6.479227683 | O68: 34.61394123 | P68: -0.03886629061 | Q68: -0.008387881127 | AC68: 34.61394123 | AD68: 25.54822085 | AE68: -34.63904235
A69: 25.93144416 | B69: =2*PI()*A69 -> 162.9320689 | C69: =COMPLEX(0,$B69) -> 162.932068945292i | F69: =IMDIV(IMPRODUCT($C69,$E$5),IMSUM(1,IMPRODUCT($C69,$E$5))) -> 0.000354016365015527+0.0188119918517107i | G69: =20*LOG(IMABS($F69)) -> -34.50976662 | H69: =IMARGUMENT($F69)*180/PI() -> 88.92189781 | L69: =IMDIV(1,IMSUM(IMPRODUCT(IMPOWER($C69,2),$J$5),IMPRODUCT($C69,$K$5),1)) -> 0.990467128255703-0.114185187283169i | M69: =20*LOG(IMABS($L69)) -> -0.02585920753 | N69: =IMARGUMENT($L69)*180/PI() -> -6.576265479 | O69: =ABS(G69-M69) -> 34.48390741 | P69: =20*LOG(IMABS(IMSUM($L69,$F69))) -> -0.0400410169 | Q69: =20*LOG(IMABS(IMSUB($L69,$F69))) -> -0.008641392924 | AC69: =ABS($G69-$M69) -> 34.48390741 | AD69: 25.93144416 | AE69: =20*LOG(IMABS($F69)) -> -34.50976662
A70: =A69*1.015 -> 26.32041582 | B70: 165.37605 | C70: 165.376049979471i | F70: 0.000364712607170475+0.0190939674212733i | G70: -34.38049224 | H70: 88.90573018 | L70: 0.990180358040836-0.115877125844457i | M70: -0.02664016897 | N70: -6.674751963 | O70: 34.35385207 | P70: -0.04125124882 | Q70: -0.008902566236 | AC70: 34.35385207 | AD70: =AD69*1.015 -> 26.32041582 | AE70: -34.38049224
A71: 26.71522206 | B71: 167.8566907 | C71: 167.856690729163i | F71: 0.000375731903864647+0.0193801632965531i | G71: -34.25121927 | H71: 88.88932021 | L71: 0.989885003426017-0.117593496612252i | M71: -0.02744469606 | N71: -6.774708553 | O71: 34.22377457 | P71: -0.04249805949 | Q71: -0.009171632562 | AC71: 34.22377457 | AD71: 26.71522206 | AE71: -34.25121927
A72: 27.11595039 | B72: 170.3745411 | C72: 170.3745410901i | F72: 0.000387084004740694+0.0196706423564145i | G72: -34.12194774 | H72: 88.87266428 | L72: 0.989580810029309-0.119334623205638i | M72: -0.02827349866 | N72: -6.876156972 | O72: 34.09367425 | P72: -0.04378255449 | Q72: -0.009448830398 | AC72: 34.09367425 | AD72: 27.11595039 | AE72: -34.12194774
A73: 27.52268965 | B73: 172.9301592 | C73: 172.930159206452i | F73: 0.000398778953224144+0.0199654684034863i | G73: -33.99267771 | H73: 88.85575871 | L73: 0.989267516089509-0.121100832169847i | M73: -0.02912730798 | N73: -6.979119254 | O73: 33.9635504 | P73: -0.04510587278 | Q73: -0.009734405437 | AC73: 33.9635504 | AD73: 27.52268965 | AE73: -33.99267771
A74: 27.93552999 | B74: 175.5241116 | C74: 175.524111594549i | F74: 0.000410827095347804+0.020264706177133i | G74: -33.86340921 | H74: 88.83859976 | L74: 0.988944852261873-0.12289245293435i | M74: -0.03000687714 | N74: -7.083617747 | O74: 33.83340233 | P74: -0.04646918776 | Q74: -0.0100286108 | AC74: 33.83340233 | AD74: 27.93552999 | AE74: -33.86340921
A75: 28.35456294 | B75: 178.1569733 | C75: 178.156973268467i | F75: 0.000423239088839555+0.0205684213665812i | G75: -33.73414229 | H75: 88.82118363 | L75: 0.988612541408793-0.124709817766607i | M75: -0.03091298186 | N75: -7.18967512 | O75: 33.70322931 | P75: -0.04787370829 | Q75: -0.01033170723 | AC75: 33.70322931 | AD75: 28.35456294 | AE75: -33.73414229
A76: 28.77988139 | B76: 180.8293279 | C76: 180.829327867494i | F76: 0.000436025912481214+0.0208766806242003i | G76: -33.604877 | H76: 88.80350649 | L76: 0.988270298385357-0.126553261721201i | M76: -0.03184642115 | N76: -7.297314363 | O76: 33.57303058 | P76: -0.04932067977 | Q76: -0.01064396338 | AC76: 33.57303058 | AD76: 28.77988139 | AE76: -33.604877
A77: 29.21157961 | B77: 183.5417678 | C77: 183.541767785506i | F77: 0.000449198875746434+0.0211895515789377i | G77: -33.47561339 | H77: 88.78556442 | L77: 0.987917829819684-0.128423122584147i | M77: -0.03280801796 | N77: -7.406558794 | O77: 33.44280538 | P77: -0.05081138522 | Q77: -0.01096565598 | AC77: 33.44280538 | AD77: 29.21157961 | AE77: -33.47561339
A78: 29.6497533 | B78: 186.2948943 | C78: 186.294894302289i | F78: 0.000462769628725957+0.0215071028499118i | G78: -33.34635151 | H78: 88.76735347 | L78: 0.987554833887978-0.130319740812138i | M78: -0.03379861994 | N78: -7.517432062 | O78: 33.31255289 | P78: -0.05234714648 | Q78: -0.01129707014 | AC78: 33.31255289 | AD78: 29.6497533 | AE78: -33.34635151
A79: 30.0944996 | B79: 189.0893177 | C79: 189.089317716823i | F79: 0.000476750172348453+0.0218294040601575i | G79: -33.21709141 | H79: 88.7488696 | L79: 0.987181000084203-0.132243459466462i | M79: -0.03481910011 | N79: -7.629958151 | O79: 33.18227231 | P79: -0.05392932528 | Q79: -0.01163849956 | AC79: 33.18227231 | AD79: 30.0944996 | AE79: -33.21709141
A80: 30.54591709 | B80: 191.9256575 | C80: 191.925657482575i | F80: 0.000491152868905861+0.0221565258505305i | G80: -33.08783315 | H80: 88.73010875 | L80: 0.986796008984293-0.134194624141337i | M80: -0.03587035769 | N80: -7.744161383 | O80: 33.05196279 | P80: -0.05555932455 | Q80: -0.01199024682 | AC80: 33.05196279 | AD80: 30.54591709 | AE80: -33.08783315
A81: 31.00410585 | B81: 194.8045423 | C81: 194.804542344814i | F81: 0.000505990452891966+0.022488539893767i | G81: -32.95857677 | H81: 88.71106676 | L81: 0.986399532004863-0.136173582886377i | M81: -0.03695331882 | N81: -7.860066425 | O81: 32.92162346 | P81: -0.05723858961 | Q81: -0.01235262362 | AC81: 32.92162346 | AD81: 31.00410585 | AE81: -32.95857677
A82: 31.46916744 | B82: 197.7266105 | C82: 197.726610479986i | F82: 0.000521276042163448+0.0228255189086977i | G82: -32.82932235 | H82: 88.69173943 | L82: 0.985991231156296-0.13818068612292i | M82: -0.0380689374 | N82: -7.977698293 | O82: 32.79125341 | P82: -0.05896860944 | Q82: -0.01272595108 | AC82: 32.79125341 | AD82: 31.46916744 | AE82: -32.82932235
A83: 31.94120495 | B83: 200.6925096 | C83: 200.692509637186i | F83: 0.00053702314943289+0.02316753667462i | G83: -32.70006993 | H83: 88.67212249 | L83: 0.98557075879017-0.140216286553905i | M83: -0.03921819586 | N83: -8.09708235 | O83: 32.66085173 | P83: -0.06075091806 | Q83: -0.01311056002 | AC83: 32.66085173 | AD83: 31.94120495 | AE83: -32.70006993
A84: 32.42032302 | B84: 203.7028973 | C84: 203.702897281744i | F84: 0.000553245694103354+0.0235146680458243i | G84: -32.57081957 | H84: 88.65221162 | L84: 0.985137757340963-0.142280739067002i | M84: -0.04040210608 | N84: -8.218244321 | O84: 32.53041747 | P84: -0.0625870958 | Q84: -0.01350679122 | AC84: 32.53041747 | AD84: 32.42032302 | AE84: -32.57081957
A85: 32.90662787 | B85: 206.7584407 | C85: 206.75844074097i | F85: 0.000569958014454573+0.0238669889662758i | G85: -32.44157135 | H85: 88.63200242 | L85: 0.984691859061942-0.144374400630652i | M85: -0.04162171019 | N85: -8.341210286 | O85: 32.39994964 | P85: -0.0644787708 | Q85: -0.01391499577 | AC85: 32.39994964 | AD85: 32.90662787 | AE85: -32.44157135
A86: 33.40022729 | B86: 209.8598174 | C86: 209.859817352084i | F86: 0.000587174880190964+0.0242245764844514i | G86: -32.31232532 | H86: 88.61149043 | L86: 0.984232685755228-0.14649763018271i | M86: -0.0428780815 | N86: -8.466006693 | O86: 32.26944724 | P86: -0.06642762038 | Q86: -0.01433553534 | AC86: 32.26944724 | AD86: 33.40022729 | AE86: -32.31232532
A87: 33.9012307 | B87: 213.0077146 | C87: 213.007714612366i | F87: 0.000604911505362032+0.0245875087683302i | G87: -32.18308155 | H87: 88.59067113 | L87: 0.983759848495932-0.148650788511323i | M87: -0.04417232544 | N87: -8.592660357 | O87: 32.13890923 | P87: -0.06843537255 | Q87: -0.01476878252 | AC87: 32.13890923 | AD87: 33.9012307 | AE87: -32.18308155
A88: 34.40974916 | B88: 216.2028303 | C88: 216.202830331551i | F88: 0.000623183561665947+0.0249558651205366i | G88: -32.05384011 | H88: 88.56953991 | L88: 0.983272947350374-0.150834238127672i | M88: -0.04550558047 | N88: -8.721198468 | O88: 32.00833453 | P88: -0.07050380755 | Q88: -0.01521512113 | AC88: 32.00833453 | AD88: 34.40974916 | AE88: -32.05384011
A89: 34.9258954 | B89: 219.4458728 | C89: 219.445872786524i | F89: 0.000642007192147567+0.0253297259936383i | G89: -31.92460107 | H89: 88.54809213 | L89: 0.98277157108829-0.153048343130233i | M89: -0.04687901909 | N89: -8.85164859 | O89: 31.87772205 | P89: -0.07263475941 | Q89: -0.01567494659 | AC89: 31.87772205 | AD89: 34.9258954 | AE89: -31.92460107
A90: 35.44978383 | B90: 222.7375609 | C90: 222.737560878322i | F90: 0.000661399025302137+0.0257091730055921i | G90: -31.79536449 | H90: 88.52632304 | L90: 0.982255296889039-0.155293469060136i | M90: -0.0482938488 | N90: -8.984038671 | O90: 31.74707065 | P90: -0.07483011762 | Q90: -0.01614866622 | AC90: 31.74707065 | AD90: 35.44978383 | AE90: -31.79536449
A91: 35.98153058 | B91: 226.0786243 | C91: 226.078624291497i | F91: 0.000681376189596616+0.0260942889553417i | G91: -31.66613047 | H91: 88.50422786 | L91: 0.981723690041759-0.157569982747217i | M91: -0.04975131321 | N91: -9.118397044 | O91: 31.61637915 | P91: -0.07709182873 | Q91: -0.01663669966 | AC91: 31.61637915 | AD91: 35.98153058 | AE91: -31.66613047
A92: 36.52125354 | B92: 229.4698037 | C92: 229.469803655869i | F92: 0.000701956328420649+0.0264851578385638i | G92: -31.53689906 | H92: 88.4818017 | L92: 0.981176303639466-0.159878252146374i | M92: -0.05125269301 | N92: -9.254752433 | O92: 31.48564637 | P92: -0.07942189814 | Q92: -0.01713947917 | AC92: 31.48564637 | AD92: 36.52125354 | AE92: -31.53689906
A93: 37.06907235 | B93: 232.9118507 | C93: 232.911850710708i | F93: 0.000723157615479591+0.0268818648635612i | G93: -31.40767036 | H93: 88.45903962 | L93: 0.980612678267091-0.162218646163733i | M93: -0.05279930715 | N93: -9.393133954 | O93: 31.35487105 | P93: -0.08182239186 | Q93: -0.01765745007 | AC93: 31.35487105 | AD93: 37.06907235 | AE93: -31.40767036
A94: 37.62510843 | B94: 236.4055285 | C94: 236.405528471368i | F94: 0.000744998770642325+0.0272844964672993i | G94: -31.27844444 | H94: 88.43593661 | L94: 0.980032341683447-0.164591534472221i | M94: -0.0543925139 | N94: -9.533571125 | O94: 31.22405193 | P94: -0.08429543832 | Q94: -0.01819107111 | AC94: 31.22405193 | AD94: 37.62510843 | AE94: -31.27844444
A95: 38.18948506 | B95: 239.9516114 | C95: 239.951611398439i | F95: 0.000767499076257124+0.0276931403315888i | G95: -31.14922139 | H95: 88.41248758 | L95: 0.979434808497144-0.166997287316047i | M95: -0.05603371203 | N95: -9.676093864 | O95: 31.09318767 | P95: -0.08684323027 | Q95: -0.01874081484 | AC95: 31.09318767 | AD95: 38.18948506 | AE95: -31.14922139
A96: 38.76232733 | B96: 243.5508856 | C96: 243.550885569415i | F96: 0.00079067839394877+0.0281078853994055i | G96: -31.02000129 | H96: 88.38868735 | L96: 0.978819579836485-0.169436275303601i | M96: -0.05772434202 | N96: -9.820732496 | O96: 30.96227694 | P96: -0.08946802676 | Q96: -0.01930716809 | AC96: 30.96227694 | AD96: 38.76232733 | AE96: -31.02000129
A97: 39.34376224 | B97: 247.2041489 | C97: 247.204148852956i | F97: 0.000814557181911068+0.0285288218913516i | G97: -30.89078423 | H97: 88.36453069 | L97: 0.978186143013372-0.171908869188277i | M97: -0.05946588726 | N97: -9.96751776 | O97: 30.83131834 | P97: -0.09217215506 | Q97: -0.01989063234 | AC97: 30.83131834 | AD97: 39.34376224 | AE97: -30.89078423
A98: 39.93391868 | B98: 250.9122111 | C98: 250.912211085751i | F98: 0.000839156512708691+0.0289560413222503i | G98: -30.76157031 | H98: 88.34001228 | L98: 0.977533971181257-0.174415439636687i | M98: -0.06125987531 | N98: -10.11648081 | O98: 30.70031043 | P98: -0.09495801282 | Q98: -0.02049172419 | AC98: 30.70031043 | AD98: 39.93391868 | AE98: -30.76157031
A99: 40.53292746 | B99: 254.6758943 | C99: 254.675894252037i | F99: 0.000864498091603128+0.0293896365178738i | G99: -30.63235961 | H99: 88.31512671 | L99: 0.976862522987236-0.17695635698372i | M99: -0.0631078792 | N99: -10.26765321 | O99: 30.56925173 | P99: -0.0978280701 | Q99: -0.0211109758 | AC99: 30.56925173 | AD99: 40.53292746 | AE99: -30.63235961
A100: 41.14092137 | B100: 258.4960327 | C100: 258.496032665817i | F100: 0.000890604275417654+0.0298297016318008i | G100: -30.50315224 | H100: 88.2898685 | L100: 0.976171242218346-0.179531990973884i | M100: -0.06501151875 | N100: -10.42106697 | O100: 30.43814072 | P100: -0.1007848716 | Q100: -0.02174893536 | AC100: 30.43814072 | AD100: 41.14092137 | AE100: -30.50315224
A101: 41.75803519 | B101: 262.3734732 | C101: 262.373473155805i | F101: 0.000917498091956718+0.0302763321623999i | G101: -30.3739483 | H101: 88.26423211 | L101: 0.975459557442152-0.182142710488354i | M101: -0.06697246198 | N101: -10.5767545 | O101: 30.30697584 | P101: -0.103831039 | Q101: -0.02240616758 | AC101: 30.30697584 | AD101: 41.75803519 | AE101: -30.3739483
A102: 42.38440572 | B102: 266.3090753 | C102: 266.309075253142i | F102: 0.000945203259995488+0.0307296249699339i | G102: -30.24474789 | H102: 88.23821188 | L102: 0.974726881641766-0.18478888325711i | M102: -0.06899242644 | N102: -10.73474866 | O102: 30.17575547 | P102: -0.1069692732 | Q102: -0.02308325417 | AC102: 30.17575547 | AD102: 42.38440572 | AE102: -30.24474789
A103: 43.0201718 | B103: 270.3037114 | C103: 270.303711381939i | F103: 0.000973744209855912+0.0311896782937831i | G103: -30.11555112 | H103: 88.21180209 | L103: 0.973972611845409-0.187470875555568i | M103: -0.07107318073 | N103: -10.89508275 | O103: 30.04447794 | P103: -0.1102023565 | Q103: -0.02378079434 | AC103: 30.04447794 | AD103: 43.0201718 | AE103: -30.11555112
A104: 43.66547438 | B104: 274.3582671 | C104: 274.358267052668i | F104: 0.00100314610458574+0.0316565917697814i | G104: -29.98635809 | H104: 88.18499693 | L104: 0.973196128750686-0.190189051885015i | M104: -0.07321654595 | N104: -11.05779049 | O104: 29.91314154 | P104: -0.1135331556 | Q104: -0.02449940536 | AC104: 29.91314154 | AD104: 43.66547438 | AE104: -29.98635809
A105: 44.3204565 | B105: 278.4736411 | C105: 278.473641058458i | F105: 0.00103343486175778+0.0321304664476612i | G105: -29.85716892 | H105: 88.1577905 | L105: 0.972396796343743-0.19294377463624i | M105: -0.07542439725 | N105: -11.22290606 | O105: 29.78174452 | P105: -0.1169646236 | Q105: -0.02523972305 | AC105: 29.78174452 | AD105: 44.3204565 | AE105: -29.85716892
A106: 44.98526334 | B106: 282.6507457 | C106: 282.650745674335i | F106: 0.00106463717590677+0.032611404808601i | G106: -29.72798373 | H106: 88.13017683 | L106: 0.971573961513511-0.195735403735621i | M106: -0.07769866535 | N106: -11.39046408 | O106: 29.65028506 | P106: -0.120499803 | Q106: -0.02600240238 | AC106: 29.65028506 | AD106: 44.98526334 | AE106: -29.72798373
A107: 45.66004229 | B107: 286.8905069 | C107: 286.89050685945i | F107: 0.00109678054162189+0.0330995107828713i | G107: -29.59880263 | H107: 88.10214984 | L107: 0.970726953661262-0.198564296273006i | M107: -0.08004133822 | N107: -11.56049962 | O107: 29.51876129 | P107: -0.124141828 | Q107: -0.02678811801 | AC107: 29.51876129 | AD107: 45.66004229 | AE107: -29.59880263
A108: 46.34494293 | B108: 291.1938645 | C108: 291.193864462341i | F108: 0.00112989327731347+0.0335948897675726i | G108: -29.46962575 | H108: 88.07370338 | L108: 0.969855084305738-0.201430806110623i | M108: -0.08245446271 | N108: -11.73304822 | O108: 29.38717129 | P108: -0.1278939278 | Q108: -0.02759756489 | AC108: 29.38717129 | AD108: 46.34494293 | AE108: -29.46962575
A109: 47.04011707 | B109: 295.5617724 | C109: 295.561772429277i | F109: 0.00116400454967261+0.0340976486444586i | G109: -29.34045322 | H109: 88.04483119 | L109: 0.968957646684119-0.204335283472293i | M109: -0.08494014623 | N109: -11.90814587 | O109: 29.25551308 | P109: -0.1317594289 | Q109: -0.02843145884 | AC109: 29.25551308 | AD109: 47.04011707 | AE109: -29.34045322
A110: 47.74571883 | B110: 299.995199 | C110: 299.995199015716i | F110: 0.00119914439884324+0.0346078957978373i | G110: -29.21128517 | H110: 88.01552693 | L110: 0.968033915349167-0.207278074512151i | M110: -0.08750055855 | N110: -12.085829 | O110: 29.12378461 | P110: -0.1357417586 | Q110: -0.02929053723 | AC110: 29.12378461 | AD110: 47.74571883 | AE110: -29.21128517
A111: 48.46190461 | B111: 304.495127 | C111: 304.495127000951i | F111: 0.0012353437643266+0.0351257411325446i | G111: -29.08212173 | H111: 87.98578417 | L111: 0.967083145762879-0.210259520862105i | M111: -0.09013793356 | N111: -12.26613454 | O111: 28.99198379 | P111: -0.1398444475 | Q111: -0.03017555955 | AC111: 28.99198379 | AD111: 48.46190461 | AE111: -29.08212173
A112: 49.18883318 | B112: 309.0625539 | C112: 309.062553905966i | F112: 0.00127263451163838+0.035651296091982i | G112: -28.95296304 | H112: 87.95559639 | L112: 0.966104573887018-0.213279959157193i | M112: -0.09285457114 | N112: -12.44909986 | O112: 28.86010847 | P112: -0.1440711331 | Q112: -0.03108730811 | AC112: 28.86010847 | AD112: 49.18883318 | AE112: -28.95296304
A113: 49.92666568 | B113: 313.6984922 | C113: 313.698492214555i | F113: 0.00131104945973945+0.0361846736762068i | G113: -28.82380924 | H113: 87.92495694 | L113: 0.965097415770981-0.216339720538004i | M113: -0.09565283905 | N113: -12.63476283 | O113: 28.7281564 | P113: -0.1484255627 | Q113: -0.0320265887 | AC113: 28.7281564 | AD113: 49.92666568 | AE113: -28.82380924
A114: 50.67556566 | B114: 318.4039696 | C114: 318.403969597773i | F114: 0.0013506224092618+0.0367259884600728i | G114: -28.69466049 | H114: 87.89385912 | L114: 0.964060867137422-0.219439130129314i | M114: -0.09853517487 | N114: -12.82316178 | O114: 28.59612531 | P114: -0.1529115967 | Q114: -0.03299423129 | AC114: 28.59612531 | AD114: 50.67556566 | AE114: -28.69466049
A115: 51.43569915 | B115: 323.1800291 | C115: 323.18002914174i | F115: 0.0013913881715514+0.0372753566114057i | G115: -28.56551693 | H115: 87.8622961 | L115: 0.962994102966149-0.222578506494033i | M115: -0.101504088 | N115: -13.01433551 | O115: 28.46401284 | P115: -0.1575332125 | Q115: -0.03399109077 | AC115: 28.46401284 | AD115: 51.43569915 | AE115: -28.56551693
A116: 52.20723463 | B116: 328.0277296 | C116: 328.027729578866i | F116: 0.00143338259855064+0.0378328959092059i | G116: -28.43637872 | H116: 87.83026096 | L116: 0.961896277076847-0.225758161061575i | M116: -0.1045621618 | N116: -13.20832331 | O116: 28.33181656 | P116: -0.1622945073 | Q116: -0.03501804762 | AC116: 28.33181656 | AD116: 52.20723463 | AE116: -28.43637872
A117: 52.99034315 | B117: 332.9481455 | C117: 332.948145522549i | F117: 0.00147664261354343+0.0383987257618699i | G117: -28.30724603 | H117: 87.79774669 | L117: 0.960766521711203-0.228978397529715i | M117: -0.1077120556 | N117: -13.40516496 | O117: 28.19953397 | P117: -0.1671997023 | Q117: -0.03607600875 | AC117: 28.19953397 | AD117: 52.99034315 | AE117: -28.30724603
A118: 53.7851983 | B118: 337.9423677 | C118: 337.942367705387i | F118: 0.00152120624278637+0.0389729672254151i | G118: -28.17811901 | H118: 87.76474615 | L118: 0.959603947115095-0.232239511238991i | M118: -0.1109565069 | N118: -13.60490071 | O118: 28.0671625 | P118: -0.1722531463 | Q118: -0.03716590821 | AC118: 28.0671625 | AD118: 53.7851983 | AE118: -28.17811901
A119: 54.59197627 | B119: 343.0115032 | C119: 343.011503220968i | F119: 0.00156711264805044+0.0395557430216999i | G119: -28.04899784 | H119: 87.73125212 | L119: 0.958407641121524-0.235541788518684i | M119: -0.1142983334 | N119: -13.80757131 | O119: 27.93469951 | P119: -0.1774593193 | Q119: -0.03828870802 | AC119: 27.93469951 | AD119: 54.59197627 | AE119: -28.04899784
A120: 55.41085592 | B120: 348.1566758 | C120: 348.156675769282i | F120: 0.00161440216009768+0.0401471775566247i | G120: -27.9198827 | H120: 87.69725726 | L120: 0.957176668735057-0.238885506003389i | M120: -0.1177404359 | N120: -14.01321799 | O120: 27.80214226 | P120: -0.1828228367 | Q120: -0.039445399 | AC120: 27.80214226 | AD120: 55.41085592 | AE120: -27.9198827
A121: 56.24201876 | B121: 353.3790259 | C121: 353.379025905822i | F121: 0.00166311631311841+0.0407473969383008i | G121: -27.79077377 | H121: 87.66275415 | L121: 0.955910071718578-0.24227092991917i | M121: -0.1212857998 | N121: -14.22188249 | O121: 27.66948797 | P121: -0.1883484536 | Q121: -0.04063700159 | AC121: 27.66948797 | AD121: 56.24201876 | AE121: -27.79077377
A122: 57.08564904 | B122: 358.6797113 | C122: 358.679711294409i | F122: 0.00171329788015472+0.0413565289951729i | G122: -27.66167122 | H122: 87.62773522 | L122: 0.954606868183242-0.245698315338282i | M122: -0.1249374981 | N122: -14.43360702 | O122: 27.53673373 | P122: -0.1940410684 | Q122: -0.04186456675 | AC122: 27.53673373 | AD122: 57.08564904 | AE122: -27.66167122
A123: 57.94193377 | B123: 364.059907 | C123: 364.059906963825i | F123: 0.00176499090953697+0.0419747032940821i | G123: -27.53257527 | H123: 87.59219282 | L123: 0.953266052182537-0.249167905401437i | M123: -0.1286986939 | N123: -14.64843431 | O123: 27.40387658 | P123: -0.1999057277 | Q123: -0.04312917681 | AC123: 27.40387658 | AD123: 57.94193377 | AE123: -27.53257527
A124: 58.81106278 | B124: 369.5208056 | C124: 369.520805568282i | F124: 0.00181824076236007+0.0426020511582502i | G124: -27.4034861 | H124: 87.55611918 | L124: 0.951886593311519-0.25267993050652i | M124: -0.1325726423 | N124: -14.86640756 | O124: 27.27091346 | P124: -0.2059476306 | Q124: -0.04443194642 | AC124: 27.27091346 | AD124: 58.81106278 | AE124: -27.4034861
A125: 59.69322872 | B125: 375.0636177 | C125: 375.063617651807i | F125: 0.00187309415102767+0.0432387056851735i | G125: -27.27440392 | H125: 87.51950641 | L125: 0.950467436312238-0.256234607462745i | M125: -0.1365626937 | N125: -15.08757048 | O125: 27.13784123 | P125: -0.2121721331 | Q125: -0.04577402347 | AC125: 27.13784123 | AD125: 59.69322872 | AE125: -27.27440392
A126: 60.58862715 | B126: 380.6895719 | C126: 380.689571916584i | F126: 0.00192959917889219+0.0438848017644037i | G126: -27.14532894 | H126: 87.48234653 | L126: 0.949007500686576-0.259832138609132i | M126: -0.1406722961 | N126: -15.31196729 | O126: 27.00465665 | P126: -0.2185847533 | Q126: -0.0471565901 | AC126: 27.00465665 | AD126: 60.58862715 | AE126: -27.14532894
A127: 61.49745656 | B127: 386.3999155 | C127: 386.399915495332i | F127: 0.00198780538102005+0.0445404760952017i | G127: -27.01626138 | H127: 87.44463142 | L127: 0.947505680317701-0.263472710896249i | M127: -0.1449049979 | N127: -15.53964269 | O127: 26.87135638 | P127: -0.2251911756 | Q127: -0.04858086361 | AC127: 26.87135638 | AD127: 61.49745656 | AE127: -27.01626138
A128: 62.41991841 | B128: 392.1959142 | C128: 392.195914227762i | F128: 0.00204776376611132+0.0452058672040425i | G128: -26.88720146 | H128: 87.40635285 | L128: 0.945960843101469-0.267156494930112i | M128: -0.1492644508 | N128: -15.77064189 | O128: 26.73793701 | P128: -0.2319972566 | Q128: -0.05004809756 | AC128: 26.73793701 | AD128: 62.41991841 | AE128: -26.88720146
A129: 63.35621719 | B129: 398.0788529 | C129: 398.078852941179i | F129: 0.00210952685960419+0.0458811154619502i | G129: -26.75814941 | H129: 87.36750247 | L129: 0.944371830589212-0.270883643977152i | M129: -0.1537544124 | N129: -16.00501058 | O129: 26.60439499 | P129: -0.2390090294 | Q129: -0.05155958277 | AC129: 26.60439499 | AD129: 63.35621719 | AE129: -26.75814941
A130: 64.30656044 | B130: 404.0500357 | C130: 404.050035735296i | F130: 0.00217314874799508+0.0465663631016442i | G130: -26.62910546 | H130: 87.32807181 | L130: 0.942737457643405-0.274654292929163i | M130: -0.1583787494 | N130: -16.24279497 | O130: 26.47072671 | P130: -0.2462327097 | Q130: -0.05311664841 | AC130: 26.47072671 | AD130: 64.30656044 | AE130: -26.62910546
A131: 65.27115885 | B131: 410.1107863 | C131: 410.110786271326i | F131: 0.00223868512440593+0.0472617542344726i | G131: -26.50006987 | H131: 87.28805228 | L131: 0.941056512107806-0.278468557227117i | M131: -0.1631414405 | N131: -16.48404175 | O131: 26.33692842 | P131: -0.2536747007 | Q131: -0.05472066309 | AC131: 26.33692842 | AD131: 65.27115885 | AE131: -26.50006987
A132: 66.25022623 | B132: 416.2624481 | C132: 416.262448065396i | F132: 0.00230619333543052+0.0479674348671068i | G132: -26.37104287 | H132: 87.24743516 | L132: 0.939327754493829-0.282326531742789i | M132: -0.1680465795 | N132: -16.72879812 | O132: 26.20299629 | P132: -0.2613415991 | Q132: -0.056373036 | AC132: 26.20299629 | AD132: 66.25022623 | AE132: -26.37104287
A133: 67.24397963 | B133: =2*PI()*A133 -> 422.5063848 | C133: =COMPLEX(0,$B133) -> 422.506384786376i | F133: =IMDIV(IMPRODUCT($C133,$E$5),IMSUM(1,IMPRODUCT($C133,$E$5))) -> 0.00237573242929293+0.0486835529179756i | G133: =20*LOG(IMABS($F133)) -> -26.24202474 | H133: =IMARGUMENT($F133)*180/PI() -> 87.20621162 | L133: =IMDIV(1,IMSUM(IMPRODUCT(IMPOWER($C133,2),$J$5),IMPRODUCT($C133,$K$5),1)) -> 0.937549917684908-0.286228289617076i | M133: =20*LOG(IMABS($L133)) -> -0.1730983784 | N133: =IMARGUMENT($L133)*180/PI() -> -16.97711175 | O133: =ABS(G133-M133) -> 26.06892636 | P133: =20*LOG(IMABS(IMSUM($L133,$F133))) -> -0.2692402012 | Q133: =20*LOG(IMABS(IMSUB($L133,$F133))) -> -0.05807521804 | AC133: =ABS($G133-$M133) -> 26.06892636 | AD133: 67.24397963 | AE133: =20*LOG(IMABS($F133)) -> -26.24202474
A134: =A133*1.015 -> 68.25263932 | B134: 428.8439806 | C134: 428.843980558172i | F134: 0.00244736320535129+0.0494102582334112i | G134: -26.11301574 | H134: 87.16437269 | L134: 0.935721706660833-0.290173881053987i | M134: -0.1783011708 | N134: -17.22903083 | O134: 25.93471457 | P134: -0.2773775081 | Q134: -0.05982870304 | AC134: 25.93471457 | AD134: =AD133*1.015 -> 68.25263932 | AE134: -26.11301574
A135: 69.27642891 | B135: 435.2766403 | C135: 435.276640266545i | F135: 0.00252114826498082+0.0501477026034773i | G135: -25.98401613 | H135: 87.12190926 | L135: 0.933841798244083-0.294163332069227i | M135: -0.1836594149 | N135: -17.48460402 | O135: 25.80035672 | P135: -0.2857607327 | Q135: -0.06163502897 | AC135: 25.80035672 | AD135: 69.27642891 | AE135: -25.98401613
A136: 70.31557534 | B136: 441.8057899 | C136: 441.805789870543i | F136: 0.00259715206387106+0.0508960397774541i | G136: -25.85502622 | H136: 87.07881213 | L136: 0.931908840870324-0.298196643192367i | M136: -0.1891776972 | N136: -17.74388046 | O136: 25.66584852 | P136: -0.2943973057 | Q136: -0.06349577916 | AC136: 25.66584852 | AD136: 70.31557534 | AE136: -25.85502622
A137: 71.37030897 | B137: 448.4328767 | C137: 448.432876718601i | F137: 0.0026754409657722+0.0516554254789452i | G137: -25.72604627 | H137: 87.03507192 | L137: 0.929921454385382-0.302273788121617i | M137: -0.1948607358 | N137: -18.00690978 | O137: 25.53118554 | P137: -0.3032948822 | Q137: -0.06541258358 | AC137: 25.53118554 | AD137: 71.37030897 | AE137: -25.72604627
A138: 72.44086361 | B138: 455.1593699 | C138: 455.15936986938i | F138: 0.00275608329772678+0.0524260174205783i | G138: -25.59707661 | H138: 86.99067914 | L138: 0.927878229871113-0.306394712330234i | M138: -0.200713384 | N138: -18.2737421 | O138: 25.39636322 | P138: -0.3124613488 | Q138: -0.06738712017 | AC138: 25.39636322 | AD138: 72.44086361 | AE138: -25.59707661
A139: 73.52747656 | B139: 461.9867604 | C139: 461.98676041742i | F139: 0.00283914940682301+0.0532079753182617i | G139: -25.46811753 | H139: 86.94562417 | L139: 0.925777729502724-0.31055933162366i | M139: -0.2067406338 | N139: -18.54442799 | O139: 25.26137689 | P139: -0.32190483 | Q139: -0.06942111615 | AC139: 25.26137689 | AD139: 73.52747656 | AE139: -25.46811753
A140: 74.63038871 | B140: 468.9165618 | C140: 468.916561823682i | F140: 0.00292471171850698+0.0540014609049663i | G140: -25.33916935 | H140: 86.89989724 | L140: 0.923618486440287-0.314767530646529i | M140: -0.2129476197 | N140: -18.81901849 | O140: 25.12622173 | P140: -0.3316336958 | Q140: -0.0715163494 | AC140: 25.12622173 | AD140: 74.63038871 | AE140: -25.33916935
A141: 75.74984454 | B141: 475.9503103 | C141: 475.950310251037i | F141: 0.00301284479649132+0.0548066379439897i | G141: -25.2102324 | H141: 86.85348845 | L141: 0.921399004757253-0.319019161338728i | M141: -0.2193396225 | N141: -19.09756512 | O141: 24.99089278 | P141: -0.3416565692 | Q141: -0.07367464984 | AC141: 24.99089278 | AD141: 75.74984454 | AE141: -25.2102324
A142: 76.88609221 | B142: 483.0895649 | C142: 483.089564904802i | F142: 0.0031036254042989+0.0556236722416696i | G142: -25.08130702 | H142: 86.80638775 | L142: 0.919117759409011-0.323314041339798i | M142: -0.2259220732 | N142: -19.38011983 | O142: 24.85538495 | P142: -0.3519823334 | Q142: -0.07589790087 | AC142: 24.85538495 | AD142: 76.88609221 | AE142: -25.08130702
A143: 78.03938359 | B143: 490.3359084 | C143: 490.335908378374i | F143: 0.0031971325684801+0.0564527316595014i | G143: -24.95239355 | H143: 86.75858496 | L143: 0.91677319624463-0.32765195234099i | M143: -0.2327005566 | N143: -19.66673504 | O143: 24.719693 | P143: -0.3626201402 | Q143: -0.07818804082 | AC143: 24.719693 | AD143: 78.03938359 | AE143: -24.95239355
A144: 79.20997435 | B144: 497.690947 | C144: 497.69094700405i | F144: 0.00329344764354325+0.0572939861256178i | G144: -24.82349236 | H144: 86.71006975 | L144: 0.914363732065121-0.332032638384401i | M144: -0.239680816 | N144: -19.95746358 | O144: 24.58381155 | P144: -0.3735794176 | Q144: -0.08054706444 | AC144: 24.58381155 | AD144: 79.20997435 | AE144: -24.82349236
A145: 80.39812396 | B145: 505.1563112 | C145: 505.156311209111i | F145: 0.00339265437863813+0.0581476076455879i | G145: -24.69460381 | H145: 86.66083164 | L145: 0.911887754731693-0.336455804108734i | M145: -0.2468687564 | N145: -20.25235875 | O145: 24.44773506 | P145: -0.3848698785 | Q145: -0.08297702442 | AC145: 24.44773506 | AD145: 80.39812396 | AE145: -24.69460381
A146: 81.60409582 | B146: 512.7336559 | C146: 512.733655877247i | F146: 0.00349483898603312+0.0590137703124857i | G146: -24.56572828 | H146: 86.61086001 | L146: 0.909343623327673-0.340921112941279i | M146: -0.2542704496 | N146: -20.55147423 | O146: 24.31145783 | P146: -0.3965015292 | Q146: -0.08548003292 | AC146: 24.31145783 | AD146: 81.60409582 | AE146: -24.56572828
A147: 82.82815726 | B147: 520.4246607 | C147: 520.424660715406i | F147: 0.00360009021142674+0.0598926503161809i | G147: -24.43686617 | H147: 86.56014408 | L147: 0.906729668377904-0.345428185235885i | M147: -0.2618921378 | N147: -20.85486413 | O147: 24.17497403 | P147: -0.4084846783 | Q147: -0.08805826318 | AC147: 24.17497403 | AD147: 82.82815726 | AE147: -24.43686617
A148: 84.07057962 | B148: 528.2310306 | C148: 528.231030626137i | F148: 0.00370849940613498+0.0607844259517985i | G148: -24.30801786 | H148: 86.50867293 | L148: 0.90404419212965-0.349976596356786i | M148: -0.2697402382 | N148: -21.16258296 | O148: 24.03827762 | P148: -0.4208299455 | Q148: -0.09071395109 | AC148: 24.03827762 | AD148: 84.07057962 | AE148: -24.30801786
A149: 85.33163831 | B149: 536.1544961 | C149: 536.154496085529i | F149: 0.00382016060119654+0.061689277627296i | G149: -24.17918379 | H149: 86.45643549 | L149: 0.901285468899168-0.354565874708326i | M149: -0.2778213476 | N149: -21.47468562 | O149: 23.90136244 | P149: -0.4335482718 | Q149: -0.09344939683 | AC149: 23.90136244 | AD149: 85.33163831 | AE149: -24.17918379
A150: 86.61161289 | B150: 544.1968135 | C150: 544.196813526812i | F150: 0.00393517058343774+0.0626073878700987i | G150: -24.05036437 | H150: 86.40342051 | L150: 0.898451745488338-0.359195499710758i | M150: -0.2861422465 | N150: -21.79122737 | O150: 23.76422212 | P150: -0.4466509282 | Q150: -0.09626696657 | AC150: 23.76422212 | AD150: 86.61161289 | AE150: -24.05036437
A151: 87.91078708 | B151: 552.3597657 | C151: 552.359765729714i | F151: 0.00405362897354002+0.0635389413327362i | G151: -23.92156005 | H151: 86.34961662 | L151: 0.895541241675885-0.36386489972249i | M151: -0.2947099041 | N151: -22.11226383 | O151: 23.62685014 | P151: -0.4601495265 | Q151: -0.0991690941 | AC151: 23.62685014 | AD151: 87.91078708 | AE151: -23.92156005
A152: 89.22944889 | B152: 560.6451622 | C152: 560.64516221566i | F152: 0.00417563830615274+0.0644841247974176i | G152: -23.79277127 | H152: 86.29501226 | L152: 0.892552150787952-0.368573449909338i | M152: -0.3035314826 | N152: -22.43785098 | O152: 23.48923979 | P152: -0.4740560292 | Q152: -0.1021582826 | AC152: 23.48923979 | AD152: 89.22944889 | AE152: -23.79277127
A153: 90.56789062 | B153: 569.0548396 | C153: 569.054839648894i | F153: 0.0043013041120944+0.0654431271794807i | G153: -23.66399851 | H153: 86.23959572 | L153: 0.889482640352927-0.373320470061554i | M153: -0.3126143424 | N153: -22.76804512 | O153: 23.35138416 | P153: -0.4883827603 | Q153: -0.1052371063 | AC153: 23.35138416 | AD153: 90.56789062 | AE153: -23.66399851
A154: 91.92640898 | B154: 577.5906622 | C154: 577.590662243628i | F154: 0.00443073500268565+0.0664161395296477i | G154: -23.53524224 | H154: 86.18335514 | L154: 0.886330852845657-0.378105222359653i | M154: -0.3219660464 | N154: -23.10290285 | O154: 23.21327619 | P154: -0.5031424158 | Q154: -0.1084082122 | AC154: 23.21327619 | AD154: 91.92640898 | AE154: -23.53524224
A155: 93.30530511 | B155: 586.2545222 | C155: 586.254522177282i | F155: 0.00456404275625761+0.0674033550350178i | G155: -23.40650296 | H155: 86.12627849 | L155: 0.883094906526324-0.382926909090253i | M155: -0.3315943652 | N155: -23.44248107 | O155: 23.07490859 | P155: -0.5183480758 | Q155: -0.1116743223 | AC155: 23.07490859 | AD155: 93.30530511 | AE155: -23.40650296
A156: 94.70488469 | B156: 595.04834 | C156: 595.048340009941i | F156: 0.00470134240687904+0.068404969018722i | G156: -23.27778117 | H156: 86.06835356 | L156: 0.879772896379486-0.387784670313502i | M156: -0.3415072819 | N156: -23.78683695 | O156: 22.93627389 | P156: -0.5340132153 | Q156: -0.1150382345 | AC156: 22.93627389 | AD156: 94.70488469 | AE156: -23.27778117
A157: 96.12545796 | B157: 603.9740651 | C157: 603.97406511009i | F157: 0.00484275233534604+0.0694211789381637i | G157: -23.14907741 | H157: 86.00956798 | L157: 0.876362895158923-0.392677581483879i | M157: -0.3517129974 | N157: -24.13602792 | O157: 22.79736441 | P157: -0.5501517165 | Q157: -0.1185028254 | AC157: 22.79736441 | AD157: 96.12545796 | AE157: -23.14907741
A158: 97.56733983 | B158: 613.0336761 | C158: 613.033676086742i | F158: 0.00498839436247778+0.0704521843817648i | G158: -23.0203922 | H158: 85.94990923 | L158: 0.872862954544139-0.397604651026513i | M158: -0.3622199352 | N158: -24.49011163 | O158: 22.65817227 | P158: -0.5667778815 | Q158: -0.1220710514 | AC158: 22.65817227 | AD158: 97.56733983 | AE158: -23.0203922
A159: 99.03084993 | B159: 622.2291812 | C159: 622.229181228043i | F159: 0.0051383938447617+0.0714981870641334i | G159: -22.89172611 | H159: 85.88936459 | L159: 0.869271106414515-0.402564817871499i | M159: -0.3730367466 | N159: -24.84914593 | O159: 22.51868937 | P159: -0.5839064442 | Q159: -0.125745951 | AC159: 22.51868937 | AD159: 99.03084993 | AE159: -22.89172611
A160: 100.5163127 | B160: 631.5626189 | C160: 631.562618946463i | F160: 0.00529287977239162+0.0725593908195667i | G160: -22.76307971 | H160: 85.82792119 | L160: 0.865585364247276-0.407556948949054i | M160: -0.3841723161 | N160: -25.21318885 | O160: 22.37890739 | P160: -0.6015525841 | Q160: -0.1295306462 | AC160: 22.37890739 | AD160: 100.5163127 | AE160: -22.76307971
A161: 102.0240574 | B161: 641.0360582 | C161: 641.03605823066i | F161: 0.00545198486974146+0.0736360015937963i | G161: -22.63445358 | H161: 85.76556596 | L161: 0.861803724645613-0.412579836648745i | M161: -0.3956357665 | N161: -25.58229859 | O161: 22.23881781 | P161: -0.6197319399 | Q161: -0.1334283449 | AC161: 22.23881781 | AD161: 102.0240574 | AE161: -22.63445358
A162: 103.5544182 | B162: 650.6515991 | C162: 650.65159910412i | F162: 0.00561584569831725+0.0747282274338816i | G162: -22.50584833 | H162: 85.70228568 | L162: 0.857924169003392-0.41763219624643i | M162: -0.4074364641 | N162: -25.95653344 | O162: 22.09841187 | P162: -0.6384606226 | Q162: -0.1374423423 | AC162: 22.09841187 | AD162: 103.5544182 | AE162: -22.50584833
A163: 105.1077345 | B163: 660.4113731 | C163: 660.411373090682i | F163: 0.00578460276222952+0.0758362784761537i | G163: -22.37726459 | H163: 85.63806693 | L163: 0.853944665313058-0.422712663303026i | M163: -0.4195840244 | N163: -26.33595182 | O163: 21.95768057 | P163: -0.657755231 | Q163: -0.1415760229 | AC163: 21.95768057 | AD163: 105.1077345 | AE163: -22.37726459
A164: 106.6843505 | B164: 670.3175437 | C164: 670.317543687042i | F164: 0.00595840061622735+0.0769603669321027i | G164: -22.248703 | H164: 85.57289614 | L164: 0.849863170123427-0.427819791039677i | M164: -0.4320883172 | N164: -26.72061218 | O164: 21.81661468 | P164: -0.6776328658 | Q164: -0.1458328625 | AC164: 21.81661468 | AD164: 106.6843505 | AE164: -22.248703
A165: 108.2846158 | B165: 680.3723068 | C165: 680.372306842347i | F165: 0.00613738797633515+0.0781007070721071i | G165: -22.12016422 | H165: 85.50675951 | L165: 0.845677630654172-0.432952047694381i | M165: -0.444959472 | N165: -27.11057302 | O165: 21.67520475 | P165: -0.6981111448 | Q165: -0.1502164298 | AC165: 21.67520475 | AD165: 108.2846158 | AE165: -22.12016422
A166: 109.908885 | B166: 690.5778914 | C166: 690.577891444983i | F166: 0.00632171783313144+0.0792575152068856i | G166: -21.99164893 | H166: 85.43964311 | L166: 0.841385987073844-0.438107813865709i | M166: -0.4582078838 | N166: -27.50589283 | O166: 21.53344104 | P166: -0.7192082195 | Q166: -0.1547303882 | AC166: 21.53344104 | AD166: 109.908885 | AE166: -21.99164893
A167: 111.5575183 | B167: 700.9365598 | C167: 700.936559816657i | F167: 0.00651154756770899+0.0804310096665612i | G167: -21.86315783 | H167: 85.37153278 | L167: 0.836986174948399-0.443285379849792i | M167: -0.4718442181 | N167: -27.90663004 | O167: 21.39131361 | P167: -0.7409427905 | Q167: -0.1593784978 | AC167: 21.39131361 | AD167: 111.5575183 | AE167: -21.86315783
A168: 113.2308811 | B168: 711.4506082 | C168: 711.450608213907i | F168: 0.00670703907035375+0.0816214107772127i | G168: -21.73469164 | H168: 85.30241421 | L168: 0.832476127867116-0.448482942977337i | M168: -0.4858794168 | N168: -28.31284301 | O168: 21.24881222 | P168: -0.7633341249 | Q168: -0.164164617 | AC168: 21.24881222 | AD168: 113.2308811 | AE168: -21.73469164
A169: 114.9293443 | B169: 722.1223673 | C169: 722.122367337116i | F169: 0.00690835886197885+0.0828289408347889i | G169: -21.60625111 | H169: 85.23227286 | L169: 0.827853780252889-0.453698604958102i | M169: -0.5003247033 | N169: -28.72458997 | O169: 21.1059264 | P169: -0.7864020733 | Q169: -0.1690927041 | AC169: 21.1059264 | AD169: 114.9293443 | AE169: -21.60625111
A170: 116.6532844 | B170: 732.9542028 | C170: 732.954202847172i | F170: 0.00711567821834859+0.0840538240762519i | G170: -21.477837 | H170: 85.16109404 | L170: 0.823117070363774-0.458930369240863i | M170: -0.5151915884 | N170: -29.14192899 | O170: 20.96264541 | P170: -0.8101670879 | Q170: -0.1741668193 | AC170: 20.96264541 | AD170: 116.6532844 | AE170: -21.477837
A171: 118.4030837 | B171: 743.9485159 | C171: 743.94851588988i | F171: 0.00732917329712577+0.0852962866478165i | G171: -21.34945009 | H171: 85.08886285 | L171: 0.818263943492602-0.464176138397662i | M171: -0.5304918752 | N171: -29.56491791 | O171: 20.81895822 | P171: -0.8346502411 | Q171: -0.179391126 | AC171: 20.81895822 | AD171: 118.4030837 | AE171: -21.34945009
A172: 120.17913 | B172: 755.1077436 | C172: 755.107743628228i | F172: 0.0075490252677733+0.0865565565701398i | G172: -21.22109121 | H172: 85.01556419 | L172: 0.813292355371391-0.469433711541786i | M172: -0.5462376651 | N172: -29.99361432 | O172: 20.67485354 | P172: -0.8598732441 | Q172: -0.1847698925 | AC172: 20.67485354 | AD172: 120.17913 | AE172: -21.22109121
A173: 121.9818169 | B173: 766.4343598 | C173: 766.434359782651i | F173: 0.00777542044433947+0.0878348637003168i | G173: -21.09276118 | H173: 84.94118277 | L173: 0.808200275787075-0.474700781789716i | M173: -0.5624413626 | N173: -30.42807549 | O173: 20.53031982 | P173: -0.8858584674 | Q173: -0.1903074935 | AC173: 20.53031982 | AD173: 121.9818169 | AE173: -21.09276118
A174: 123.8115442 | B174: 777.9308752 | C174: 777.930875179391i | F174: 0.00800855042115392+0.0891314396905253i | G174: -20.96446086 | H174: 84.86570312 | L174: 0.802985692414888-0.47997493377807i | M174: -0.5791156811 | N174: -30.86835833 | O174: 20.38534518 | P174: -0.9126289607 | Q174: -0.1960084111 | AC174: 20.38534518 | AD174: 123.8115442 | AE174: -20.96446086
A175: 125.6687173 | B175: 789.5998383 | C175: 789.599838307082i | F175: 0.00824861221145826+0.0904465179431649i | G175: -20.83619113 | H175: 84.78910953 | L175: 0.797646614875474-0.485253641247334i | M175: -0.5962736479 | N175: -31.31451934 | O175: 20.23991748 | P175: -0.9402084738 | Q175: -0.2018772369 | AC175: 20.23991748 | AD175: 125.6687173 | AE175: -20.83619113
A176: 127.5537481 | B176: 801.4438359 | C176: 801.443835881688i | F176: 0.00849580838899337+0.0917803335623209i | G176: -20.70795291 | H176: 84.71138614 | L176: 0.792181079021444-0.490534264705065i | M176: -0.6139286094 | N176: -31.76661452 | O176: 20.0940243 | P176: -0.9686214791 | Q176: -0.2079186722 | AC176: 20.0940243 | AD176: 127.5537481 | AE176: -20.70795291
A177: 129.4670543 | B177: 813.4654934 | C177: 813.465493419913i | F177: 0.00875034723256142+0.0931331233013852i | G177: -20.57974713 | H177: 84.63251686 | L177: 0.786587151458754-0.49581404918206i | M177: -0.6320942362 | N177: -32.22469934 | O177: 19.94765289 | P177: -0.9978931934 | Q177: -0.2141375299 | AC177: 19.94765289 | AD177: 129.4670543 | AE177: -20.57974713
A178: 131.4090601 | B178: 825.6674758 | C178: 825.667475821212i | F178: 0.00901244287357786+0.0945051255066536i | G178: -20.45157475 | H178: 84.55248539 | L178: 0.780862934307779-0.501090122095892i | M178: -0.6507845281 | N178: -32.6888287 | O178: 19.80079022 | P178: -1.028049602 | Q178: -0.2205387348 | AC178: 19.80079022 | AD178: 131.4090601 | AE178: -20.45157475
A179: 133.380196 | B179: 838.052488 | C179: 838.05248795853i | F179: 0.00928231544662485+0.0958965800567163i | G179: -20.32343677 | H179: 84.47127525 | L179: 0.775006570208435-0.506359491237109i | M179: -0.6700138188 | N179: -33.15905679 | O179: 19.65342295 | P179: -1.059117482 | Q179: -0.2271273247 | AC179: 19.65342295 | AD179: 133.380196 | AE179: -20.32343677
A180: 135.380899 | B180: 850.6232753 | C180: 850.623275277908i | F180: 0.00956019124301372+0.0973077282974519i | G180: -20.1953342 | H180: 84.38886974 | L180: 0.769016247573125-0.511619042894302i | M180: -0.6897967805 | N180: -33.63543708 | O180: 19.50553742 | P180: -1.091124427 | Q180: -0.233908451 | AC180: 19.50553742 | AD180: 135.380899 | AE180: -20.1953342
A181: 137.4116125 | B181: 863.3826244 | C181: 863.382624407076i | F181: 0.00984630286735918+0.0987388129724245i | G181: -20.0672681 | H181: 84.30525196 | L181: 0.762890206090533-0.516865540135156i | M181: -0.7101484286 | N181: -34.11802227 | O181: 19.35711967 | P181: -1.124098877 | Q181: -0.2408873789 | AC181: 19.35711967 | AD181: 137.4116125 | AE181: -20.0672681
A182: 139.4727866 | B182: 876.3333638 | C182: 876.333363773182i | F182: 0.0101408893971644+0.100190078148482i | G182: -19.93923954 | H182: 84.22040479 | L182: 0.756626742482536-0.522095621261553i | M182: -0.731084126 | N182: -34.60686412 | O182: 19.20815541 | P182: -1.158070137 | Q182: -0.2480694878 | AC182: 19.20815541 | AD182: 139.4727866 | AE182: -19.93923954
A183: 141.5648784 | B183: 889.4783642 | C183: 889.47836422978i | F183: 0.0104441965454089+0.101661769136337i | G183: -19.81124964 | H183: 84.13431093 | L183: 0.750224216515623-0.527305798457693i | M183: -0.7526195869 | N183: -35.1020135 | O183: 19.05863005 | P183: -1.193068415 | Q183: -0.2554602712 | AC183: 19.05863005 | AD183: 141.5648784 | AE183: -19.81124964
A184: 143.6883516 | B184: 902.8205397 | C184: 902.820539693227i | F184: 0.0107564768261301+0.103154132405924i | G184: -19.68329954 | H184: 84.04695282 | L184: 0.743681057267211-0.532492456651136i | M184: -0.7747708807 | N184: -35.60352018 | O184: 18.90852866 | P184: -1.229124843 | Q184: -0.2630653363 | AC184: 18.90852866 | AD184: 143.6883516 | AE184: -19.68329954
A185: 145.8436769 | B185: 916.3628478 | C185: 916.362847788625i | F185: 0.0110779897229762+0.104667415496294i | G185: -19.55539042 | H185: 83.95831275 | L185: 0.73699576964616-0.537651852607557i | M185: -0.797554436 | N185: -36.11143288 | O185: 18.75783598 | P185: -1.26627151 | Q185: -0.2708904037 | AC185: 18.75783598 | AD185: 145.8436769 | AE185: -19.55539042
A186: 148.031332 | B186: 930.1082905 | C186: 930.108290505454i | F186: 0.0114090018607112+0.106201866919812i | G186: -19.42752349 | H186: 83.86837275 | L186: 0.730166941165592-0.542780114280898i | M186: -0.8209870434 | N186: -36.62579905 | O186: 18.60653645 | P186: -1.304541494 | Q186: -0.2789413066 | AC186: 18.60653645 | AD186: 148.031332 | AE186: -19.42752349
A187: 150.251802 | B187: 944.0599149 | C187: 944.059914863036i | F187: 0.011749787179635+0.107757736060425i | G187: -19.2997 | H187: 83.77711467 | L187: 0.723193248964812-0.547873240441425i | M187: -0.8450858583 | N187: -37.1466649 | O187: 18.45461414 | P187: -1.343968893 | Q187: -0.2872239893 | AC187: 18.45461414 | AD187: 150.251802 | AE187: -19.2997
A188: 152.5055791 | B188: 958.2208136 | C188: 958.220813585981i | F188: 0.0121006271128864+0.109335273065746i | G188: -19.17192122 | H188: 83.68452011 | L188: 0.716073467075666-0.552927100605044i | M188: -0.8698684043 | N188: -37.67407523 | O188: 18.30205281 | P188: -1.384588861 | Q188: -0.295744506 | AC188: 18.30205281 | AD188: 152.5055791 | AE188: -19.17192122
A189: 154.7931627 | B189: 972.5941258 | C189: 972.594125789771i | F189: 0.0124618107665782+0.110934728732693i | G189: -19.04418848 | H189: 83.5905705 | L189: 0.70880647392713-0.557937435287923i | M189: -0.8953525746 | N189: -38.20807335 | O189: 18.1488359 | P189: -1.426437639 | Q189: -0.3045090188 | AC189: 18.1488359 | AD189: 154.7931627 | AE189: -19.04418848
A190: 157.1150602 | B190: 987.1830377 | C190: 987.183037676617i | F190: 0.0128336351027102+0.112556354386417i | G190: -18.91650313 | H190: 83.49524703 | L190: 0.701391260080237-0.562899856611216i | M190: -0.9215566343 | N190: -38.74870103 | O190: 17.9949465 | P190: -1.469552597 | Q190: -0.3135237957 | AC190: 17.9949465 | AD190: 157.1150602 | AE190: -18.91650313
A191: 159.4717861 | B191: 1001.990783 | C191: 1001.99078324177i | F191: 0.0132164051248002+0.114200401752259i | G191: -18.78886657 | H191: 83.39853068 | L191: 0.693826936183612-0.567809849281239i | M191: -0.9484992214 | N191: -39.29599831 | O191: 17.84036735 | P191: -1.513972268 | Q191: -0.3227952076 | AC191: 17.84036735 | AD191: 159.4717861 | AE191: -18.78886657
A192: 161.8638629 | B192: 1017.020645 | C192: 1017.02064499039i | F192: 0.0136104340661536+0.115867122820429i | G192: -18.66128024 | H192: 83.30040222 | L192: 0.686112741137993-0.572662771970991i | M192: -0.9761993482 | N192: -39.8500035 | O192: 17.68508089 | P192: -1.55973639 | Q192: -0.332329725 | AC192: 17.68508089 | AD192: 161.8638629 | AE192: -18.66128024
A193: 164.2918208 | B193: 1032.275955 | C193: 1032.27595466525i | F193: 0.0140160435806941+0.117556769703145i | G193: -18.53374561 | H193: 83.20084219 | L193: 0.678248050455923-0.577453859129345i | M193: -1.004676401 | N193: -40.41075297 | O193: 17.52906921 | P193: -1.606885948 | Q193: -0.3421339151 | AC193: 17.52906921 | AD193: 164.2918208 | AE193: -18.53374561
A194: 166.7561981 | B194: 1047.760094 | C194: 1047.76009398523i | F194: 0.0144335639362573+0.119269594483905i | G194: -18.4062642 | H194: 83.09983093 | L194: 0.670232384800791-0.582178223244437i | M194: -1.033950141 | N194: -40.97828111 | O194: 17.37231406 | P194: -1.655463217 | Q194: -0.3522144367 | AC194: 17.37231406 | AD194: 166.7561981 | AE194: -18.4062642
A195: 169.2575411 | B195: 1063.476495 | C195: 1063.47649539501i | F195: 0.0148633342102429+0.12100584905862i | G195: -18.27883757 | H195: 82.99734856 | L195: 0.662065418686821-0.586830857588055i | M195: -1.064040702 | N195: -41.5526202 | O195: 17.21479687 | P195: -1.705511809 | Q195: -0.3625780362 | AC195: 17.21479687 | AD195: 169.2575411 | AE195: -18.27883757
A196: 171.7964042 | B196: 1079.428643 | C196: 1079.42864282593i | F196: 0.0153057024875068+0.122765784968251i | G196: -18.15146733 | H196: 82.89337499 | L196: 0.653746989319378-0.591406639467711i | M196: -1.094968591 | N196: -42.13380028 | O196: 17.05649874 | P196: -1.757076718 | Q196: -0.3732315418 | AC196: 17.05649874 | AD196: 171.7964042 | AE196: -18.15146733
A197: 174.3733503 | B197: =2*PI()*A197 -> 1095.620072 | C197: =COMPLEX(0,$B197) -> 1095.62007246832i | F197: =IMDIV(IMPRODUCT($C197,$E$5),IMSUM(1,IMPRODUCT($C197,$E$5))) -> 0.0157610260603639+0.124549653222674i | G197: =20*LOG(IMABS($F197)) -> -18.02415513 | H197: =IMARGUMENT($F197)*180/PI() -> 82.7878899 | L197: =IMDIV(1,IMSUM(IMPRODUCT(IMPOWER($C197,2),$J$5),IMPRODUCT($C197,$K$5),1)) -> 0.645277105552212-0.59590033401296i | M197: =20*LOG(IMABS($L197)) -> -1.126754683 | N197: =IMARGUMENT($L197)*180/PI() -> -42.72184904 | O197: =ABS(G197-M197) -> 16.89740045 | P197: =20*LOG(IMABS(IMSUM($L197,$F197))) -> -1.810204376 | Q197: =20*LOG(IMABS(IMSUB($L197,$F197))) -> -0.3841818575 | AC197: =ABS($G197-$M197) -> 16.89740045 | AD197: 174.3733503 | AE197: =20*LOG(IMABS($F197)) -> -18.02415513
A198: =A197*1.015 -> 176.9889505 | B198: 1112.054374 | C198: 1112.05437355534i | F198: 0.0162296716305502+0.126357704115399i | G198: -17.89690267 | H198: 82.68087279 | L198: 0.636655956935736-0.600306598522119i | M198: -1.159420223 | N198: -43.31679169 | O198: 16.73748245 | P198: -1.8649427 | Q198: -0.395435957 | AC198: 16.73748245 | AD198: =AD197*1.015 -> 176.9889505 | AE198: -17.89690267
A199: 179.6437848 | B199: 1128.735189 | C199: 1128.73518915867i | F199: 0.0167120155129937+0.128190187028833i | G199: -17.7697117 | H199: 82.5723029 | L199: 0.627883922827477-0.604619987395011i | M199: -1.192986818 | N199: -43.91865085 | O199: 16.57672488 | P199: -1.921341153 | Q199: -0.4070008755 | AC199: 16.57672488 | AD199: 179.6437848 | AE199: -17.7697117
A200: 182.3384416 | B200: 1145.666217 | C200: 1145.66621699605i | F200: 0.0172084438412107+0.130047350229732i | G200: -17.64258401 | H200: 82.4621593 | L200: 0.618961581533139-0.60883495767645i | M200: -1.227476434 | N200: -44.52744642 | O200: 16.41510758 | P200: -1.9794508 | Q200: -0.4188837024 | AC200: 16.41510758 | AD200: 182.3384416 | AE200: -17.64258401
... 316 more rows

Sheet Pass21 (hidden)
A1: =Calc21!$U$1 -> MG 12
C2: Woofer Low Pass | I2: Tweeter High Pass
C3: =Calc21!$U$20*10^-3 -> 0.0028 | D3: =Calc21!$U$19*10^-6 -> 5e-05 | E3: =Calc21!$U$18 -> 3.9 | I3: =Calc21!$U$17*10^-6 -> 3.31e-05 | J3: =Calc21!$U$16 -> 3.5 | N3: =MIN(N5:N516) -> 0.114995965 | O3: =ROUND(VLOOKUP($N$3, $N$5:$O$516,2,0),-1) -> 570 | P3: =ROUND(VLOOKUP($N$3,$N$5:$P$516,3,0),1) -> -8.4
A4: f | B4: w | C4: XL | D4: XC | E4: ZC||R | F4: Z(L+C||R) | G4: Volt Div | H4: Woofer | I4: XC1 | J4: Z | K4: Volt Div | L4: Tweeter | M4: Net Output
A5: 10 | B5: =2*PI()*$A5 -> 62.83185307 | C5: =COMPLEX(0,$C$3*$B5) -> 0.175929188601028i | D5: =IF($D$3>0,COMPLEX(0,-1/($B5*$D$3)),"") -> -318.309886183791i | E5: =ImPara($D5,$E$3) -> 3.8994146328099-0.0477764522185708i | F5: =IMSUM($C5,$E5) -> 3.8994146328099+0.128152736382457i | G5: =IMDIV($E5,$F5) -> 0.998518853117822-0.045068142817235i | H5: =20*LOG(IMABS($G5)) -> -0.004036307831 | I5: =COMPLEX(0,-1/($B5*$I$3)) -> -480.830643782161i | J5: =IMSUM($J$3,$I5) -> 3.5-480.830643782161i | K5: =IMDIV($J$3,$J5) -> 0.0000529820554146702+0.007278684518268i | L5: =20*LOG(IMABS($K5)) -> -42.75871197 | M5: =20*LOG(IMABS(IMSUB($G5,$K5))) -> -0.001414788313 | N5: =ABS(H5-L5) -> 42.75467567 | O5: =A5 -> 10 | P5: =L5 -> -42.75871197
A6: =$A5*1.015 -> 10.15 | B6: 63.77433087 | C6: 0.178568126430044i | D6: -313.605799195853i | E6: =ImPara($D6,$E$3) -> 3.89939694282243-0.0484928790092622i | F6: 3.89939694282243+0.130075247420782i | G6: 0.998474118808125-0.0457428801612001i | H6: -0.00415828812 | I6: -473.724772199174i | J6: 3.5-473.724772199174i | K6: 0.0000545833506307491+0.00738785295526265i | L6: -42.62939808 | M6: -0.001457547554 | N6: 42.6252398 | O6: 10.15 | P6: -42.62939808
A7: 10.30225 | B7: 64.73094583 | C7: 0.181246648326494i | D7: -308.971230734831i | E7: =ImPara($D7,$E$3) -> 3.8993787183229-0.0492200421550282i | F7: 3.8993787183229+0.132026606171466i | G7: 0.998428034449585-0.0464276799273599i | H7: -0.004283954213 | I7: -466.723913496723i | J7: 3.5-466.723913496723i | K7: 0.0000562330396313197+0.00749865837844168i | L7: -42.5000844 | M7: -0.001501599025 | N7: 42.49580045 | O7: 10.30225 | P7: -42.5000844
A8: 10.45678375 | B8: 65.70191002 | C8: 0.183965348051392i | D8: -304.405153433331i | E8: 3.89935994316604-0.0499581022424386i | F8: 3.89935994316604+0.134007245808953i | G8: 0.998380559362403-0.0471226903773863i | H8: -0.004413417448 | I8: -459.826515760318i | J8: 3.5-459.826515760318i | K8: 0.0000579325847894281+0.0076111253179177i | L8: -42.37077094 | M8: -0.001546981773 | N8: 42.36635752 | O8: 10.45678375 | P8: -42.37077094
A9: 10.61363551 | B9: 66.68743867 | C9: 0.186724828272163i | D9: -299.90655510673i | E9: 3.89934060071916-0.0507072222459184i | F9: 3.89934060071916+0.136017606026245i | G9: 0.998331651644919-0.0478280618749979i | H9: -0.004546792527 | I9: -453.031050010166i | J9: 3.5-453.031050010166i | K9: 0.0000596834926581542+0.0077252786706279i | L9: -42.2414577 | M9: -0.001593736025 | N9: 42.23691091 | O9: 10.61363551 | P9: -42.2414577
A10: 10.77284004 | B10: 67.68775025 | C10: 0.189525700696245i | D10: -295.474438528798i | E10: 3.89932067384747-0.0514675675626099i | F10: 3.89932067384747+0.138058133133635i | G10: 0.998281268137152-0.0485439469119454i | H10: -0.004684197611 | I10: -446.336009862232i | J10: 3.5-446.336009862232i | K10: 0.0000614873153047151+0.007841143705785i | L10: -42.11214469 | M10: -0.001641903223 | N10: 42.10746049 | O10: 10.77284004 | P10: -42.11214469
A11: 10.93443264 | B11: 68.7030665 | C11: 0.192368586206689i | D11: -291.107821210638i | E11: 3.89930014489911-0.0522393060477167i | F11: 3.89930014489911+0.140129280158972i | G11: 0.998229364383272-0.0492705001341372i | H11: -0.004825754431 | I11: -439.739911194318i | J11: 3.5-439.739911194318i | K11: 0.0000633456516848135+0.00795874607040746i | L11: -41.98283192 | M11: -0.00169152606 | N11: 41.97800616 | O11: 10.93443264 | P11: -41.98283192
A12: 11.09844913 | B12: 69.7336125 | C12: 0.195254114999789i | D12: -286.805735182895i | E12: 3.89927899568931-0.0530226080503263i | F12: 3.89927899568931+0.142231506949463i | G12: 0.998175894592956-0.0500078783678929i | H12: -0.00497158839 | I12: -433.241291817062i | J12: 3.5-433.241291817062i | K12: 0.0000652601490584489+0.00807811179493041i | L12: -41.85351939 | M12: -0.001742648521 | N12: 41.8485478 | O12: 11.09844913 | P12: -41.85351939
A13: 11.26492587 | B13: 70.77961669 | C13: 0.198182926724786i | D13: -282.567226781177i | E13: 3.89925720748459-0.0538176464497294i | F13: 3.89925720748459+0.144365280275057i | G13: 0.998120811601618-0.0507562406463145i | H13: -0.00512182868 | I13: -426.838711149814i | J13: 3.5-426.838711149814i | K13: 0.0000672325044484322+0.00819926729889798i | L13: -41.72420711 | M13: -0.001795315917 | N13: 41.71908528 | O13: 11.26492587 | P13: -41.72420711
A14: 11.43389975 | B14: 71.84131094 | C14: 0.201155670625658i | D14: -278.391356434657i | E14: 3.89923476098601-0.054624596692228i | F14: 3.89923476098601+0.14653107393343i | G14: 0.998064066829471-0.0515157482357697i | H14: -0.005276608389 | I14: -420.530749901295i | J14: 3.5-420.530749901295i | K14: 0.0000692644661428948+0.0083222393967384i | L14: -41.59489509 | M14: -0.001849574929 | N14: 41.58961848 | O14: 11.43389975 | P14: -41.59489509
A15: 11.60540825 | B15: 72.9189306 | C15: 0.204173005685043i | D15: -274.277198457791i | E15: 3.89921163631227-0.0554436368284478i | F15: 3.89921163631227+0.148729368856595i | G15: 0.998005610239386-0.0522865646624689i | H15: -0.005436064622 | I15: -414.316009754971i | J15: 3.5-414.316009754971i | K15: 0.0000713578352431162+0.00844705530362301i | L15: -41.46558333 | M15: -0.001905473648 | N15: 41.46014727 | O15: 11.60540825 | P15: -41.46558333
A16: 11.77948937 | B16: 74.01271456 | C16: 0.207235600770318i | D16: -270.223840845114i | E16: 3.89918781298213-0.0562749475511544i | F16: 3.89918781298213+0.150960653219164i | G16: 0.997945390293512-0.0530688557391285i | H16: -0.005600338625 | I16: -408.193113059084i | J16: 3.5-408.193113059084i | K16: 0.0000735144672580298+0.00857374264141009i | L16: -41.33627186 | M16: -0.001963061618 | N16: 41.33067152 | O16: 11.77948937 | P16: -41.33627186
A17: 11.95618171 | B17: 75.12290528 | C17: 0.210344134781873i | D17: -266.230385069078i | E17: 3.89916326989627-0.0571187122335785i | F17: 3.89916326989627+0.153225422548294i | G17: 0.997883353908635-0.0538627895917077i | H17: -0.005769575904 | I17: -402.160702521265i | J17: 3.5-402.160702521265i | K17: 0.0000757362737468141+0.00870232944467475i | L17: -41.20696066 | M17: -0.002022389877 | N17: 41.20119109 | O17: 11.95618171 | P17: -41.20696066
A18: 12.13552444 | B18: 76.24974886 | C18: 0.213499296803601i | D18: -262.295945880865i | E18: 3.89913798531876-0.0579751169682585i | F18: 3.89913798531876+0.155524179835343i | G18: 0.997819446410224-0.0546685366862025i | H18: -0.005943926357 | I18: -396.217440907651i | J18: 3.5-396.217440907651i | K18: 0.0000780252240110181+0.00883284416682623i | L18: -41.07764976 | M18: -0.002083511008 | N18: 41.07170583 | O18: 12.13552444 | P18: -41.07764976
A19: 12.31755731 | B19: 77.39349509 | C19: 0.216701786255655i | D19: -258.419651114153i | E19: 3.89911193685785-0.0588443506064032i | F19: 3.89911193685785+0.157857435649252i | G19: 0.997753611485135-0.0554862698554823i | H19: -0.006123544405 | I19: -390.362010746454i | J19: 3.5-390.362010746454i | K19: 0.000080383346837708+0.00896531568631351i | L19: -40.94833916 | M19: -0.00214647918 | N19: 40.94221561 | O19: 12.31755731 | P19: -40.94833916
A20: 12.50232067 | B20: 78.55439752 | C20: 0.21995231304949i | D20: -254.600641491776i | E20: 3.89908510144614-0.0597266047977776i | F20: 3.89908510144614+0.160225708251712i | G20: 0.997685791132942-0.05631616432616i | H20: -0.00630858913 | I20: -384.593114035915i | J20: 3.5-384.593114035915i | K20: 0.0000828127322951683+0.00909977331292039i | L20: -40.81902886 | M20: -0.002211350198 | N20: 40.81272027 | O20: 12.50232067 | P20: -40.81902886
A21: 12.68985548 | B21: 79.73271348 | C21: 0.223251597745232i | D21: -250.838070435247i | E21: 3.89905745532043-0.0606220740311234i | F21: 3.89905745532043+0.162629523714109i | G21: 0.997615925615838-0.0571583977454679i | H21: -0.006499224414 | I21: -378.909471956567i | J21: 3.5-378.909471956567i | K21: 0.0000853155335827434+0.00923624679415145i | L21: -40.68971889 | M21: -0.002278181554 | N21: 40.68321966 | O21: 12.68985548 | P21: -40.68971889
A22: 12.88020331 | B22: 80.92870418 | C22: 0.226600371711411i | D22: -247.131103877091i | E22: 3.89902897400057-0.0615309556751097i | F22: 3.89902897400057+0.165069416036301i | G22: 0.997543953407082-0.0580131502081335i | H22: -0.006695619082 | I22: -373.309824587751i | J22: 3.5-373.309824587751i | K22: 0.0000878939689364438+0.00937476632171002i | L22: -40.56040924 | M22: -0.002347032474 | N22: 40.55371362 | O22: 12.88020331 | P22: -40.56040924
A23: 13.07340636 | B23: 82.14263475 | C23: 0.229999377287082i | D23: -243.478920075952i | E23: 3.89899963226796-0.0624534500198274i | F23: 3.89899963226796+0.167545927267255i | G23: 0.997469811137953-0.0588806042832301i | H23: -0.006897947055 | I23: -367.792930628326i | J23: 3.5-367.792930628326i | K23: 0.0000905503235919918+0.00951536253806912i | L23: -40.43109993 | M23: -0.002417963974 | N23: 40.42420199 | O23: 13.07340636 | P23: -40.43109993
A24: 13.26950745 | B24: 83.37477427 | C24: 0.233449367946388i | D24: -239.880709434435i | E24: 3.89896940414331-0.0633897603188266i | F24: 3.89896940414331+0.170059607627561i | G24: 0.997393433543151-0.0597609450409825i | H24: -0.007106387498 | I24: -362.357567121503i | J24: 3.5-362.357567121503i | K24: 0.000093286951807038+0.00965806654313691i | L24: -40.30179097 | M24: -0.002491038913 | N24: 40.29468459 | O24: 13.26950745 | P24: -40.30179097
A25: 13.46855007 | B25: 84.62539588 | C25: 0.236951108465584i | D25: -236.335674319641i | E25: 3.89893826286376-0.0643400928317023i | F25: 3.89893826286376+0.172611015633882i | G25: 0.997314753404621-0.0606543600795128i | H25: -0.007321124985 | I25: -357.002529183747i | J25: 3.5-357.002529183747i | K25: 0.0000961062789443223+0.00980290990101765i | L25: -40.17248237 | M25: -0.002566322048 | N25: 40.16516125 | O25: 13.46855007 | P25: -40.17248237
A26: 13.67057832 | B26: 85.89477682 | C26: 0.240505375092567i | D26: -232.843028886345i | E26: 3.89890618085926-0.0653046568672379i | F26: 3.89890618085926+0.175200718225329i | G26: 0.99723370149375-0.0615610395514953i | H26: -0.007542349655 | I26: -351.726629737682i | J26: 3.5-351.726629737682i | K26: 0.000099010803617616+0.00994992464686959i | L26: -40.04317415 | M26: -0.002643880089 | N26: 40.0356318 | O26: 13.67057832 | P26: -40.04317415
A27: 13.87563699 | B27: 87.18319847 | C27: 0.244112955718956i | D27: -229.401998902803i | E27: 3.89887312972833-0.0662836648271014i | F27: 3.89887312972833+0.177829290891855i | G27: 0.997150206511886-0.062481176190709i | H27: -0.007770257383 | I27: -346.528699248948i | J27: 3.5-346.528699248948i | K27: 0.000102003099902325+0.0100991432938609i | L27: -39.9138663 | M27: -0.002723781765 | N27: 39.90609604 | O27: 13.87563699 | P27: -39.9138663
A28: 14.08377155 | B28: 88.49094645 | C28: 0.24777465005474i | D28: -226.011821579117i | E28: 3.89883908021296-0.0672773322501087i | F28: 3.89883908021296+0.180497317804631i | G28: 0.997064195029142-0.0634149653384508i | H28: -0.008005049952 | I28: -341.407585466944i | J28: 3.5-341.407585466944i | K28: 0.000105085819612699+0.0102505988402247i | L28: -39.78455884 | M28: -0.002806097877 | N28: 39.77655379 | O28: 14.08377155 | P28: -39.78455884
A29: 14.29502812 | B29: 89.81831064 | C29: 0.251491269805561i | D29: -222.671745398145i | E29: 3.89880400217294-0.0682858778570528i | F29: 3.89880400217294+0.183205391948508i | G29: 0.996975591421434-0.0643626049697949i | H29: -0.008246935231 | I29: -336.362153169403i | J29: 3.5-336.362153169403i | K29: 0.000108261694647652+0.010404324776415i | L29: -39.65525179 | M29: -0.002890901364 | N29: 39.64700486 | O29: 14.29502812 | P29: -39.65525179
A30: 14.50945354 | B30: 91.1655853 | C30: 0.255263638852645i | D30: -219.381029948911i | E30: 3.89876786455927-0.0693095235961017i | F30: 3.89876786455927+0.185954115256543i | G30: 0.996884317805702-0.0653242957196617i | H30: -0.008496127359 | I30: -331.391283910741i | J30: 3.5-331.391283910741i | K30: 0.000111533539407246+0.0105603550923647i | L30: -39.52594516 | M30: -0.002978267369 | N30: 39.51744903 | O30: 14.50945354 | P30: -39.52594516
A31: 14.72709534 | B31: 92.53306908 | C31: 0.259092593435434i | D31: -216.138945762474i | E31: 3.8987306353868-0.0703484946887735i | F31: 3.8987306353868+0.188744098746661i | G31: 0.996790293973271-0.0663002409086754i | H31: -0.00875284693 | I31: -326.49387577413i | J31: 3.5-326.49387577413i | K31: 0.00011490425328196+0.0107187242848455i | L31: -39.39663895 | M31: -0.003068273302 | N31: 39.38788611 | O31: 14.72709534 | P31: -39.39663895
A32: 14.94800177 | B32: 93.92106512 | C32: 0.262978982336966i | D32: -212.94477415022i | E32: 3.89869228170614-0.0714030196764903i | F32: 3.89869228170614+0.191575962660476i | G32: 0.996693437321291-0.0672906465687741i | H32: -0.009017321193 | I32: -321.668843127221i | J32: 3.5-321.668843127221i | K32: 0.000118376823216943+0.0108794673649342i | L32: -39.26733319 | M32: -0.003160998911 | N32: 39.25831587 | O32: 14.94800177 | P32: -39.26733319
A33: 15.1722218 | B33: 95.3298811 | C33: 0.26692366707202i | D33: -209.797807044552i | E33: 3.89865276957464-0.072473330467712i | F33: 3.89865276957464+0.194450336604308i | G33: 0.996593662782223-0.0682957214685435i | H33: -0.009289784247 | I33: -316.915116381499i | J33: 3.5-316.915116381499i | K33: 0.000121954326353476+0.0110426198655826i | L33: -39.13802788 | M33: -0.003256526352 | N33: 39.1287381 | O33: 15.1722218 | P33: -39.13802788
A34: 15.39980513 | B34: 96.75982931 | C34: 0.270927522078101i | D34: -206.697346841923i | E34: 3.89861206402652-0.0735596623856596i | F34: 3.89861206402652+0.197367859692441i | G34: 0.996490882751289-0.0693156771382408i | H34: -0.009570477251 | I34: -312.231641755171i | J34: 3.5-312.231641755171i | K34: 0.000125639932749984+0.0112082178492962i | L34: -39.00872305 | M34: -0.003354940261 | N34: 38.99915257 | O34: 15.39980513 | P34: -39.00872305
A35: 15.6308022 | B35: 98.21122675 | C35: 0.274991434909272i | D35: -203.6427062482i | E35: 3.89857012904214-0.0746622542166237i | F35: 3.89857012904214+0.200329180692648i | G35: 0.996385007011867-0.0703507278944692i | H35: -0.009859648631 | I35: -307.617381039578i | J35: 3.5-307.617381039578i | K35: 0.000129436908184969+0.0113762979159201i | L35: -38.87941869 | M35: -0.003456327828 | N35: 38.86955905 | O35: 15.6308022 | P35: -38.87941869
A36: 15.86526424 | B36: 99.68439515 | C36: 0.279116306432911i | D36: -200.633208126306i | E36: 3.89852692751629-0.0757813482588679i | F36: 3.89852692751629+0.203334958174043i | G36: 0.996275942658742-0.0714010908644738i | H36: -0.01015755431 | I36: -303.071311369042i | J36: 3.5-303.071311369042i | K36: 0.000133348617044326+0.0115468972105349i | L36: -38.75011484 | M36: -0.003560778877 | N36: 38.73995729 | O36: 15.86526424 | P36: -38.75011484
A37: 16.1032432 | B37: 101.1796611 | C37: 0.283303051029405i | D37: -197.668185346114i | E37: 3.89848242122562-0.076917190372127i | F37: 3.89848242122562+0.206385860657278i | G37: 0.996163594019179-0.0724669860100089i | H37: -0.0104644579 | I37: -298.59242499413i | J37: 3.5-298.59242499413i | K37: 0.000137378525295572+0.0117200534314635i | L37: -38.6208115 | M37: -0.003668385941 | N37: 38.61034704 | O37: 16.1032432 | P37: -38.6208115
A38: 16.34479185 | B38: 102.697356 | C38: 0.287552596794846i | D38: -194.746980636566i | E38: 3.89843657079502-0.0780700300276998i | F38: 3.89843657079502+0.209482566767146i | G38: 0.996047862571754-0.0735486361507448i | H38: -0.01078063101 | I38: -294.179729058256i | J38: 3.5-294.179729058256i | K38: 0.000141530203551589+0.0118958048383904i | L38: -38.49150869 | M38: -0.003779244348 | N38: 38.48072806 | O38: 16.34479185 | P38: -38.49150869
A39: 16.58996373 | B39: 104.2378163 | C39: 0.291865885746768i | D39: -191.868946439966i | E39: 3.89838933566304-0.0792401203591481i | F39: 3.89838933566304+0.21262576538762i | G39: 0.995928646862878-0.0746462669871661i | H39: -0.01110635337 | I39: -289.832245377592i | J39: 3.5-289.832245377592i | K39: 0.00014580733022657+0.012074190260594i | L39: -38.36220642 | M39: -0.003893452304 | N39: 38.35110007 | O39: 16.58996373 | P39: -38.36220642
A40: 16.83881318 | B40: 105.8013836 | C40: 0.29624387403297i | D40: -189.03344476844i | E40: 3.89834067404624-0.0804277182135901i | F40: 3.89834067404624+0.21581615581938i | G40: 0.99580584242096-0.0757601071229153i | H40: -0.0114419132 | I40: -285.549010224229i | J40: 3.5-285.549010224229i | K40: 0.000150213694786926+0.0122552491052946i | L40: -38.23290471 | M40: -0.004011110977 | N40: 38.2214628 | O40: 16.83881318 | P40: -38.23290471
A41: 17.09139538 | B41: 107.3884043 | C41: 0.300687532143464i | D41: -186.239847062502i | E41: 3.89829054290252-0.0816330842036055i | F41: 3.89829054290252+0.219054447939859i | G41: 0.995679341668147-0.0768903880865349i | H41: -0.01178760735 | I41: -281.329074112541i | J41: 3.5-281.329074112541i | K41: 0.000154753201099996+0.0124390213661182i | L41: -38.10360359 | M41: -0.004132324589 | N41: 38.09181598 | O41: 17.09139538 | P41: -38.10360359
A42: 17.34776631 | B42: 108.9992304 | C42: 0.305197845125616i | D42: -183.487534051726i | E42: 3.89823889789335-0.08285648275974i | F42: 3.89823889789335+0.222341362365876i | G42: 0.995549033829574-0.0780373443525579i | H42: -0.01214374166 | I42: -277.17150158871i | J42: 3.5-277.17150158871i | K42: 0.000159429870883494+0.0126255476316778i | L42: -37.97430306 | M42: -0.004257200507 | N42: 37.96215931 | O42: 17.34776631 | P42: -37.97430306
A43: 17.60798281 | B43: 110.6342189 | C43: 0.309775812802501i | D43: -180.775895617464i | E43: 3.89818569334482-0.0840981821836212i | F43: 3.89818569334482+0.22567763061888i | G43: 0.995414804840065-0.079201213361893i | H43: -0.01251063117 | I43: -273.07537102336i | J43: 3.5-273.07537102336i | K43: 0.000164247847258702+0.0128148690942738i | L43: -37.84500314 | M43: -0.004385849341 | N43: 37.83249251 | O43: 17.60798281 | P43: -37.84500314
A44: 17.87210255 | B44: 112.2937321 | C44: 0.314422449994538i | D44: -178.1043306576i | E44: 3.8981308822076-0.0853584547016791i | F44: 3.8981308822076+0.229063995292859i | G44: 0.995276537248214-0.0803822355414462i | H44: -0.01288860038 | I44: -269.039774407251i | J44: 3.5-269.039774407251i | K44: 0.000169211398410522+0.0130070275587149i | L44: -37.71570385 | M44: -0.004518385035 | N44: 37.70281525 | O44: 17.87210255 | P44: -37.71570385
A45: 18.14018409 | B45: 113.9781381 | C45: 0.319138786744456i | D45: -175.472246953301i | E45: 3.89807441601568-0.0866375765194768i | F45: 3.89807441601568+0.232501210224979i | G45: 0.995134110117781-0.0815806543229264i | H45: -0.01327798361 | I45: -265.063817150001i | J45: 3.5-265.063817150001i | K45: 0.000174324921357571+0.0132020654512605i | L45: -37.58640522 | M45: -0.004654924973 | N45: 37.57312724 | O45: 18.14018409 | P45: -37.58640522
A46: 18.41228685 | B46: 115.6878102 | C46: 0.323925868545623i | D46: -172.879061037735i | E46: 3.89801624484388-0.08793582787665i | F46: 3.89801624484388+0.235990040668973i | G46: 0.994987398926343-0.0827967161607659i | H46: -0.01367912522 | I46: -261.146617881775i | J46: 3.5-261.146617881775i | K46: 0.000179592945835625+0.0134000258286852i | L46: -37.45710726 | M46: -0.004795590082 | N46: 37.44342813 | O46: 18.41228685 | P46: -37.45710726
A47: 18.68847115 | B47: 117.4231273 | C47: 0.328784756573807i | D47: -170.324198066734i | E47: 3.89795631726408-0.0892534931024519i | F47: 3.89795631726408+0.239531263471355i | G47: 0.994836275461112-0.0840306705490969i | H47: -0.01409237995 | I47: -257.287308257906i | J47: 3.5-257.287308257906i | K47: 0.000185020138297787+0.0136009523874695i | L47: -37.32780999 | M47: -0.004940504935 | N47: 37.31371761 | O47: 18.68847115 | P47: -37.32780999
A48: 18.96879822 | B48: 119.1844743 | C48: 0.333716527922414i | D48: -167.807091691363i | E48: 3.89789458030016-0.0905908606719095i | F48: 3.89789458030016+0.243125667250505i | G48: 0.99468060771187-0.0852827700377154i | H48: -0.01451811323 | I48: -253.48503276641i | J48: 3.5-253.48503276641i | K48: 0.000190611306034872+0.0138048894731136i | L48: -37.19851343 | M48: -0.005089797866 | N48: 37.18399532 | O48: 18.96879822 | P48: -37.19851343
A49: 19.25333019 | B49: 120.9722414 | C49: 0.338722275841251i | D49: -165.327183932378i | E49: 3.89783097938164-0.0919482232625829i | F49: 3.89783097938164+0.246774052578668i | G49: 0.994520259760938-0.0865532702469568i | H49: -0.01495670146 | I49: -249.738948538335i | J49: 3.5-249.738948538335i | K49: 0.00019637140141961+0.0140118820895808i | L49: -37.0692176 | M49: -0.005243601078 | N49: 37.0542609 | O49: 19.25333019 | P49: -37.0692176
A50: 19.54213014 | B50: 122.786825 | C50: 0.343803109978869i | D50: -162.88392505653i | E50: 3.8977654582959-0.0933258778119345i | F50: 3.8977654582959+0.250477232166935i | G50: 0.994355091670104-0.0878424298814156i | H50: -0.01540853242 | I50: -246.04822516092i | J50: 3.5-246.04822516092i | K50: 0.000202305526278349+0.0142219759088667i | L50: -36.93992254 | M50: -0.005402050766 | N50: 36.924514 | O50: 19.54213014 | P50: -36.93992254
A51: 19.8352621 | B51: 124.6286274 | C51: 0.348960156628552i | D51: -160.476773454709i | E51: 3.89769795913894-0.094724125575294i | F51: 3.89769795913894+0.254236031053258i | G51: 0.994184959364442-0.0891505107424276i | H51: -0.01587400551 | I51: -242.412044493518i | J51: 3.5-242.412044493518i | K51: 0.000208418936394064+0.0144352172806999i | L51: -36.81062825 | M51: -0.005565287229 | N51: 36.79475424 | O51: 19.8352621 | P51: -36.81062825
A52: 20.13279103 | B52: 126.4980568 | C52: 0.35419455897798i | D52: -158.105195521881i | E52: 3.8976284222648-0.0961432721844299i | F52: 3.8976284222648+0.25805128679355i | G52: 0.994009714512944-0.0904777777392311i | H52: -0.01635353219 | I52: -238.829600486225i | J52: 3.5-238.829600486225i | K52: 0.000214717046144626+0.0146516532423724i | L52: -36.68133476 | M52: -0.005733455 | N52: 36.66498123 | O52: 20.13279103 | P52: -36.68133476
A53: 20.43478289 | B53: 128.3955276 | C53: 0.35950747736265i | D53: -155.768665538799i | E53: 3.89755678623336-0.0975836277067157i | F53: 3.89755678623336+0.261923849655934i | G53: 0.99382920440589-0.0918244988987243i | H53: -0.01684753629 | I53: -235.300099001207i | J53: 3.5-235.300099001207i | K53: 0.0002212054332803+0.0148713315287027i | L53: -36.5520421 | M53: -0.005906702972 | N53: 36.53519456 | O53: 20.43478289 | P53: -36.5520421
A54: 20.74130464 | B54: 130.3214605 | C54: 0.36490008952309i | D54: -153.466665555467i | E54: 3.89748298775665-0.0990455067048888i | F54: 3.89748298775665+0.265854582818201i | G54: 0.993643271828872-0.0931909453737284i | H54: -0.01735645438 | I54: -231.822757636657i | J54: 3.5-231.822757636657i | K54: 0.000227889843844692+0.0150943005821325i | L54: -36.42275029 | M54: -0.006085184527 | N54: 36.40539384 | O54: 20.74130464 | P54: -36.42275029
A55: 21.05242421 | B55: 132.2762825 | C55: 0.370373590865936i | D55: -151.198685276322i | E55: 3.89740696164359-0.100529228297399i | F55: 3.89740696164359+0.269844362568537i | G55: 0.993451754933397-0.09457739144966i | H55: -0.01788073619 | I55: -228.396805553357i | J55: 3.5-228.396805553357i | K55: 0.000234776197243369+0.0153206095629572i | L55: -36.29345936 | M55: -0.006269057672 | N55: 36.27557862 | O55: 21.05242421 | P55: -36.29345936
A56: 21.36821057 | B56: 134.2604267 | C56: 0.375929194728925i | D56: -148.964221947115i | E56: 3.89732864074303-0.102035116219343i | F56: 3.89732864074303+0.273894078509582i | G56: 0.993254487103996-0.0959841145495188i | H56: -0.01842084495 | I56: -225.0214833038i | J56: 3.5-225.0214833038i | K56: 0.000241870591464591+0.0155503083596942i | L56: -36.16416933 | M56: -0.006458485181 | N56: 36.14574849 | O56: 21.36821057 | P56: -36.16416933
A57: 21.68873373 | B57: 136.2743331 | C57: 0.381568132649859i | D57: -146.762780243464i | E57: 3.89724795588516-0.103563498883969i | F57: 3.89724795588516+0.27800463376589i | G57: 0.993051296821744-0.0974113952370822i | H57: -0.01897725783 | I57: -221.696042663842i | J57: 3.5-221.696042663842i | K57: 0.00024917930845665+0.0157834475995863i | L57: -36.03488024 | M57: -0.006653634733 | N57: 36.01590298 | O57: 21.68873373 | P57: -36.03488024
A58: 22.01406473 | B58: 138.3184481 | C58: 0.387291654639607i | D58: -144.593872161048i | E58: 3.89716483582113-0.105114709444767i | F58: 3.89716483582113+0.28217694519484i | G58: 0.992842007524121-0.0988595172182034i | H58: -0.01955046636 | I58: -218.41974646684i | J58: 3.5-218.41974646684i | K58: 0.000256708819666498+0.0160200786592452i | L58: -35.9055921 | M58: -0.006854679065 | N58: 35.88604164 | O58: 22.01406473 | P58: -35.9055921
A59: 22.3442757 | B59: 140.3932248 | C59: 0.393101029459201i | D59: -142.457016907436i | E59: 3.89707920716101-0.106689085858112i | F59: 3.89707920716101+0.286411943601089i | G59: 0.992626437461118-0.100328767340094i | H59: -0.02014097685 | I59: -215.191868440236i | J59: 3.5-215.191868440236i | K59: 0.000264465791744474+0.0162602536754342i | L59: -35.77630495 | M59: -0.007061796121 | N59: 35.75616398 | O59: 22.3442757 | P59: -35.77630495
A60: 22.67943984 | B60: 142.4991232 | C60: 0.398997544901089i | D60: -140.351740795504i | E60: 3.89699099430975-0.108286970946461i | F60: 3.89699099430975+0.290710573954628i | G60: 0.992404399547526-0.101819435588483i | H60: -0.0207493108 | I60: -212.011693044568i | J60: 3.5-212.011693044568i | K60: 0.000272457092420023+0.0165040255559913i | L60: -35.64701882 | M60: -0.007275169207 | N60: 35.62626951 | O60: 22.67943984 | P60: -35.64701882
A61: 23.01963144 | B61: 144.63661 | C61: 0.404982508074605i | D61: -138.277577138427i | E61: 3.89690011940133-0.109908712462114i | F61: 3.89690011940133+0.295073795612491i | G61: 0.992175701211298-0.103331815082517i | H61: -0.02137600543 | I61: -208.878515314845i | J61: 3.5-208.878515314845i | K61: 0.000280689796553561+0.0167514479908953i | L61: -35.51773374 | M61: -0.007494987157 | N61: 35.49635774 | O61: 23.01963144 | P61: -35.51773374
A62: 23.36492591 | B62: 146.8061592 | C62: 0.411057245695724i | D62: -136.234066146234i | E62: 3.89680650223107-0.111554663151492i | F62: 3.89680650223107+0.299502582544232i | G62: 0.991940144237911-0.104866202067277i | H62: -0.02202161407 | I62: -205.791640704281i | J62: 3.5-205.791640704281i | K62: 0.000289171192369631+0.0170025754634742i | L62: -35.38844974 | M62: -0.007721444496 | N62: 35.36642813 | O62: 23.36492591 | P62: -35.38844974
A63: 23.7153998 | B63: 149.0082516 | C63: 0.41722310438116i | D63: -134.220754823876i | E63: 3.89671006018572-0.113225180819956i | F63: 3.89671006018572+0.303997923561204i | G63: 0.991697524610651-0.106422895903786i | H63: -0.02268670669 | I63: -202.750384930326i | J63: 3.5-202.750384930326i | K63: 0.000297908787876828+0.0172574632617582i | L63: -35.25916686 | M63: -0.007954741609 | N63: 35.23648015 | O63: 23.7153998 | P63: -35.25916686
A64: 24.07113079 | B64: 151.2433753 | C64: 0.423481450946877i | D64: -132.237196870814i | E64: 3.89661070817172-0.114920628397136i | F64: 3.89661070817172+0.308560822549741i | G64: 0.991447632346717-0.108002199056341i | H64: -0.02337187037 | I64: -199.754073822981i | J64: 3.5-199.754073822981i | K64: 0.000306910317479947+0.0175161674899783i | L64: -35.12988512 | M64: -0.008195084921 | N64: 35.10651325 | O64: 24.07113079 | P64: -35.12988512
A65: 24.43219776 | B65: 153.512026 | C65: 0.429833672711081i | D65: -130.282952582082i | E65: 3.8965083585412-0.116641374002762i | F65: 3.8965083585412+0.313192298708319i | G65: 0.991190251329064-0.109604417077057i | H65: -0.02407770984 | I65: -196.802043175351i | J65: 3.5-196.802043175351i | K65: 0.000316183748790124+0.0177787450802109i | L65: -35.00060456 | M65: -0.008442687077 | N65: 34.97652685 | O65: 24.43219776 | P65: -35.00060456
A66: 24.79868072 | B66: 155.8147064 | C66: 0.436281177801747i | D66: -128.35758875082i | E66: 3.89640292101586-0.118387791012978i | F66: 3.89640292101586+0.317893386788769i | G66: 0.990925159133908-0.111229858587433i | H66: -0.02480484797 | I66: -193.893638596405i | J66: 3.5-193.893638596405i | K66: 0.000325737289638796+0.0180452538041706i | L66: -34.87132522 | M66: -0.008697767129 | N66: 34.84652037 | O66: 24.79868072 | P66: -34.87132522
A67: 25.17066093 | B67: 158.151927 | C67: 0.442825395468773i | D67: -126.460678572237i | E67: 3.89629430260863-0.120160258127143i | F67: 3.89629430260863+0.32266513734163i | G67: 0.990652126853786-0.112878835256808i | H67: -0.02555392636 | I67: -191.028215365916i | J67: 3.5-191.028215365916i | K67: 0.000335579395301537+0.0183157522851502i | L67: -34.74204713 | M67: -0.008960550725 | N67: 34.7164932 | O67: 25.17066093 | P67: -34.74204713
A68: 25.54822085 | B68: 160.5242059 | C68: 0.449467776400804i | D68: -124.591801549002i | E68: 3.89618240754301-0.121959159435073i | F68: 3.89618240754301+0.327508616965731i | G68: 0.990370918916104-0.114551661777514i | H68: -0.02632560583 | I68: -188.205138291543i | J68: 3.5-188.205138291543i | K68: 0.00034571877593797+0.018590300010111i | L68: -34.61277033 | M68: -0.009231270312 | N68: 34.58644473 | O68: 25.54822085 | P68: -34.61277033
A69: 25.93144416 | B69: =2*PI()*$A69 -> 162.9320689 | C69: =COMPLEX(0,$C$3*$B69) -> 0.456209793046816i | D69: =IF($D$3>0,COMPLEX(0,-1/($B69*$D$3)),"") -> -122.750543398031i | E69: 3.89606713717002-0.12378488448473i | F69: =IMSUM($C69,$E69) -> 3.89606713717002+0.332424908562086i | G69: =IMDIV($E69,$F69) -> 0.99008129289707-0.116248655836576i | H69: =20*LOG(IMABS($G69)) -> -0.02712056707 | I69: =COMPLEX(0,-1/($B69*$I$3)) -> -185.423781568023i | J69: =IMSUM($J$3,$I69) -> 3.5-185.423781568023i | K69: =IMDIV($J$3,$J69) -> 0.000356164404254175+0.0188689573419232i | L69: =20*LOG(IMABS($K69)) -> -34.48349487 | M69: =20*LOG(IMABS(IMSUB($G69,$K69))) -> -0.009510165339 | N69: =ABS(H69-L69) -> 34.4563743 | O69: =A69 -> 25.93144416 | P69: =L69 -> -34.48349487
A70: =$A69*1.015 -> 26.32041582 | B70: 165.37605 | C70: 0.463052939942519i | D70: -120.936495958651i | E70: 3.89594838988279-0.125637828350326i | F70: 3.89594838988279+0.337415111592193i | G70: 0.989782999330935-0.117970138083748i | H70: -0.02793951116 | I70: -182.683528638446i | J70: 3.5-182.683528638446i | K70: 0.000366925523394138+0.0191517855317571i | L70: -34.35422078 | M70: -0.009797482461 | N70: 34.32628126 | O70: 26.32041582 | P70: -34.35422078
A71: 26.71522206 | B71: 167.8566907 | C71: 0.469998734041656i | D71: -119.14925710212i | E71: =ImPara($D71,$E$3) -> 3.89582606102859-0.127518391700834i | F71: 3.89582606102859+0.342480342340822i | G71: 0.98947578151445-0.119716432095717i | H71: -0.02878316024 | I71: -179.983772057582i | J71: 3.5-179.983772057582i | K71: 0.000378011655067017+0.0194388467316261i | L71: -34.2249481 | M71: -0.01009347576 | N71: 34.19616494 | O71: 26.71522206 | P71: -34.2249481
A72: 27.11595039 | B72: 170.3745411 | C72: 0.477048715052281i | D72: -117.388430642482i | E72: 3.89570004281831-0.129426980868872i | F72: 3.89570004281831+0.347621734183409i | G72: 0.989159375306458-0.121487864336262i | H72: -0.02965225809 | I72: -177.323913357224i | J72: 3.5-177.323913357224i | K72: 0.000389432607917212+0.0197302040070827i | L72: -34.09567687 | M72: -0.01039840698 | N72: 34.06602461 | O72: 27.11595039 | P72: -34.09567687
A73: 27.52268965 | B73: 172.9301592 | C73: 0.484204445778065i | D73: -115.653626248751i | E73: 3.8955702242333-0.131364007919933i | F73: 3.8955702242333+0.352840437858132i | G73: 0.988833508922527-0.123284764112158i | H73: -0.03054757078 | I73: -174.703362913521i | J73: 3.5-174.703362913521i | K73: 0.000401198486144379+0.0200259213500676i | L73: -33.96640714 | M73: -0.01071254573 | N73: 33.93585957 | O73: 27.52268965 | P73: -33.96640714
A74: 27.93552999 | B74: 175.5241116 | C74: 0.491467512464736i | D74: -113.944459358375i | E74: 3.8954364909295-0.133329890721961i | F74: 3.8954364909295+0.358137621742775i | G74: 0.988497902724557-0.125107463524625i | H74: -0.03146988738 | I74: -172.121539816277i | J74: 3.5-172.121539816277i | K74: 0.000413319698380746+0.0203260636919123i | L74: -33.83713896 | M74: -0.01103616974 | N74: 33.80566907 | O74: 27.93552999 | P74: -33.83713896
A75: 28.35456294 | B75: 178.1569733 | C75: 0.498839525151707i | D75: -112.260551091996i | E75: 3.89529872513874-0.13532505301521i | F75: 3.89529872513874+0.363514472136497i | G75: 0.988152269005258-0.126956297416066i | H75: -0.03242002057 | I75: -169.577871740175i | J75: 3.5-169.577871740175i | K75: 0.000425806966833346+0.0206306969164966i | L75: -33.70787237 | M75: -0.01136956508 | N75: 33.67545235 | O75: 28.35456294 | P75: -33.70787237
A76: 28.77988139 | B76: 180.8293279 | C76: 0.506322118028983i | D76: -110.601528169454i | E76: 3.89515680556728-0.137349924482399i | F76: 3.89515680556728+0.368972193546584i | G76: 0.987796311767431-0.12883160331189i | H76: -0.0333988074 | I76: -167.071794817906i | J76: 3.5-167.071794817906i | K76: 0.000438671336698951+0.0209398878735611i | L76: -33.57860742 | M76: -0.01171302646 | N76: 33.54520861 | O76: 28.77988139 | P76: -33.57860742
A77: 29.21157961 | B77: 183.5417678 | C77: 0.513916949799417i | D77: -108.967022827048i | E77: 3.89501060729118-0.139404940819077i | F77: 3.89501060729118+0.37451200898034i | G77: 0.987429726497974-0.130733721357148i | H77: -0.03440710998 | I77: -164.602753515178i | J77: 3.5-164.602753515178i | K77: 0.000451924185859686+0.0212537043921741i | L77: -33.44934416 | M77: -0.01206685744 | N77: 33.41493705 | O77: 29.21157961 | P77: -33.44934416
A78: 29.6497533 | B78: 186.2948943 | C78: 0.521625704046409i | D78: -107.356672736008i | E78: 3.89486000164896-0.141490543804234i | F78: 3.89486000164896+0.380135160242175i | G78: 0.987052199936527-0.132662994247737i | H78: -0.03544581624 | I78: -162.170200507565i | J78: 3.5-162.170200507565i | K78: 0.000465577234867645+0.0215722152943553i | L78: -33.32008263 | M78: -0.01243137071 | N78: 33.28463682 | O78: 29.6497533 | P78: -33.32008263
A79: 30.0944996 | B79: 189.0893177 | C79: 0.529450089607105i | D79: -105.770120922175i | E79: 3.89470485613078-0.143607181371063i | F79: 3.89470485613078+0.385842908236042i | G79: 0.986663409838686-0.134619767155908i | H79: -0.0365158407 | I79: -159.773596559177i | J79: 3.5-159.773596559177i | K79: 0.000479642557226958+0.0218954904088549i | L79: -33.1908229 | M79: -0.01280688835 | N79: 33.15430706 | O79: 30.0944996 | P79: -33.1908229
A80: 30.54591709 | B80: 191.9256575 | C80: 0.537391840951211i | D80: -104.207015686872i | E80: 3.89454503426476-0.145755307677869i | F80: 3.89454503426476+0.391636533273342i | G80: 0.986263024733725-0.136604387649789i | H80: -0.03761812522 | I80: -157.41241040313i | J80: 3.5-157.41241040313i | K80: 0.000494132589981992+0.0222236005850877i | L80: -33.06156502 | M80: -0.01319374215 | N80: 33.02394689 | O80: 30.54591709 | P80: -33.06156502
A81: 31.00410585 | B81: 194.8045423 | C81: 0.545452718565479i | D81: -102.667010528938i | E81: 3.89438039549972-0.147935383179078i | F81: 3.89438039549972+0.397517335386401i | G81: 0.98585070367673-0.138617205606642i | H81: -0.03875363987 | I81: -155.086118623774i | J81: 3.5-155.086118623774i | K81: 0.00050906014462074+0.0225566177072251i | L81: -32.93230903 | M81: -0.01359227387 | N81: 32.89355539 | O81: 31.00410585 | P81: -32.93230903
A82: 31.46916744 | B82: 197.7266105 | C82: 0.553634509343962i | D82: -101.149764067919i | E82: 3.89421079508478-0.150147874696304i | F82: 3.89421079508478+0.403486634647658i | G82: 0.985426095995116-0.140658573119545i | H82: -0.03992338371 | I82: -152.794205540664i | J82: 3.5-152.794205540664i | K82: 0.000524438418302584+0.0228946147084416i | L82: -32.80305501 | M82: -0.01400283554 | N82: 32.76313163 | O82: 31.46916744 | P82: -32.80305501
A83: 31.94120495 | B83: 200.6925096 | C83: 0.561939026984121i | D83: -99.6549399683935i | E83: 3.89403608394529-0.152393255489424i | F83: 3.89403608394529+0.409545771494697i | G83: 0.984988841029441-0.142728844397196i | H83: -0.04112838569 | I83: -150.53616309425i | J83: 3.5-150.53616309425i | K83: 0.000540281005419877+0.0232376655853177i | L83: -32.67380301 | M83: -0.01442578975 | N83: 32.63267462 | O83: 31.94120495 | P83: -32.67380301
A84: 32.42032302 | B84: 203.7028973 | C84: 0.570368112388883i | D84: -98.1822068654123i | E84: 3.89385610855535-0.154672005327633i | F84: 3.89385610855535+0.41569610706125i | G84: 0.98453856786846-0.1448283756565i | H84: -0.04236970548 | I84: -148.311490733251i | J84: 3.5-148.311490733251i | K84: 0.000556601909503193+0.0235858454123979i | L84: -32.54455308 | M84: -0.01486151001 | N84: 32.50218338 | O84: 32.42032302 | P84: -32.54455308
A85: 32.90662787 | B85: 206.7584407 | C85: 0.578923634074716i | D85: -96.7312382910466i | E85: 3.89367071080654-0.156984610560403i | F85: 3.89367071080654+0.421939023514313i | G85: 0.984074895078391-0.146957525007605i | H85: -0.04364843445 | I85: -146.119695303696i | J85: 3.5-146.119695303696i | K85: 0.000573415555480186+0.0239392303569041i | L85: -32.4153053 | M85: -0.01531038105 | N85: 32.37165686 | O85: 32.90662787 | P85: -32.4153053
A86: 33.40022729 | B86: 209.8598174 | C86: 0.587607488585836i | D86: -95.3017126020164i | E86: 3.893479727873-0.159331564188317i | F86: 3.893479727873+0.428275924397519i | G86: 0.983597430426323-0.149116652331036i | H86: -0.04496569654 | I86: -143.960290939602i | J86: 3.5-143.960290939602i | K86: 0.00059073680229845+0.0242978976936043i | L86: -32.28605972 | M86: -0.01577279913 | N86: 32.24109403 | O86: 33.40022729 | P86: -32.28605972
A87: 33.9012307 | B87: 213.0077146 | C87: 0.596421600914624i | D87: -93.8933129083905i | E87: 3.89328299207254-0.16171336593371i | F87: 3.89328299207254+0.434708234980914i | G87: 0.983105770597734-0.15130611914656i | H87: -0.04632264925 | I87: -141.832798955273i | J87: 3.5-141.832798955273i | K87: 0.000608580955922871+0.0246619258198333i | L87: -32.15681642 | M87: -0.01624917245 | N87: 32.11049377 | O87: 33.9012307 | P87: -32.15681642
A88: 34.40974916 | B88: 216.2028303 | C88: 0.605367924928343i | D88: -92.5057270033404i | E88: 3.89308033072385-0.164130522311065i | F88: 3.89308033072385+0.441237402617278i | G88: 0.982599500908096-0.153526288473389i | H88: -0.04772048463 | I88: -139.736747739185i | J88: 3.5-139.736747739185i | K88: 0.000626963782718497+0.0250313942706685i | L88: -32.02757546 | M88: -0.01673992141 | N88: 31.97985498 | O88: 34.40974916 | P88: -32.02757546
A89: 34.9258954 | B89: 219.4458728 | C89: 0.614448443802268i | D89: -91.1386472939315i | E89: 3.89287156599962-0.166583546697093i | F89: 3.89287156599962+0.447864897105175i | G89: 0.982078195008523-0.155777524681347i | H89: -0.04916043029 | I89: -137.671672649443i | J89: 3.5-137.671672649443i | K89: 0.000645901523230004+0.0254063837342565i | L89: -31.89833691 | M89: -0.01724547908 | N89: 31.84917648 | O89: 34.9258954 | P89: -31.89833691
A90: 35.44978383 | B90: 222.7375609 | C90: 0.623665170459302i | D90: -89.7917707329374i | E90: 3.89265651477547-0.169072959400449i | F90: 3.89265651477547+0.454592211058853i | G90: 0.981541414585462-0.158060193332567i | H90: -0.05064375044 | I90: -135.637115910782i | J90: 3.5-135.637115910782i | K90: 0.000665410906369353+0.025786976067291i | L90: -31.76910085 | M90: -0.0177662915 | N90: 31.7184571 | O90: 35.44978383 | P90: -31.76910085
A91: 35.98153058 | B91: 226.0786243 | C91: 0.633020148016192i | D91: -88.4647987516625i | E91: 3.89243498847458-0.171599287730992i | F91: 3.89243498847458+0.4614208602852i | G91: 0.980988709054404-0.160374661013306i | H91: -0.052171747 | I91: -133.632626513085i | J91: 3.5-133.632626513085i | K91: 0.000685509164023462+0.0261732543106413i | L91: -31.63986735 | M91: -0.01830281809 | N91: 31.5876956 | O91: 35.98153058 | P91: -31.63986735
A92: 36.52125354 | B92: 229.4698037 | C92: 0.642515450236435i | D92: -87.1574371937562i | E92: 3.8922067929079-0.17416306606854i | F92: 3.8922067929079+0.468352384167895i | G92: 0.980419615247628-0.16272129515543i | H92: -0.05374576064 | I92: -131.657760111414i | J92: 3.5-131.657760111414i | K92: 0.000706214046093913+0.0265653027051267i | L92: -31.51063649 | M92: -0.01885553204 | N92: 31.45689073 | O92: 36.52125354 | P92: -31.51063649
A93: 37.06907235 | B93: 232.9118507 | C93: 0.652153181989981i | D93: -85.8693962500061i | E93: 3.89197172810993-0.176764835931028i | F93: 3.89197172810993+0.475388346058953i | G93: 0.979833657095973-0.165100463847108i | H93: -0.05536717198 | I93: -129.712078927502i | J93: 3.5-129.712078927502i | K93: 0.000727543835981435+0.0269632067074404i | L93: -31.38140834 | M93: -0.01942492075 | N93: 31.32604117 | O93: 37.06907235 | P93: -31.38140834
A94: 37.62510843 | B94: 236.4055285 | C94: 0.661935479719831i | D94: -84.6003903940946i | E94: 3.89172958816969-0.179405146041989i | F94: 3.89172958816969+0.482530333677842i | G94: 0.979230345304679-0.167512535632242i | H94: -0.05703740275 | I94: -127.795151652711i | J94: 3.5-127.795151652711i | K94: 0.000749517366527762+0.027367053006216i | L94: -31.252183 | M94: -0.0200114862 | N94: 31.1951456 | O94: 37.62510843 | P94: -31.252183
A95: 38.18948506 | B95: 239.9516114 | C95: 0.671864511915628i | D95: -83.3501383193051i | E95: 3.8914801610571-0.182084552397288i | F95: 3.8914801610571+0.48977995951834i | G95: 0.978609177023312-0.169957879298138i | H95: -0.05875791697 | I95: -125.906553352425i | J95: 3.5-125.906553352425i | K95: 0.000772154036428118+0.0277769295382363i | L95: -31.12296054 | M95: -0.02061574545 | N95: 31.06420262 | O95: 38.18948506 | P95: -31.12296054
A96: 38.76232733 | B96: 243.5508856 | C96: 0.681942479594362i | D96: -82.1183628761627i | E96: 3.89122322844432-0.184803618330999i | F96: 3.89122322844432+0.497138861263363i | G96: 0.977969635509832-0.172436863650909i | H96: -0.06053022218 | I96: -124.045865371847i | J96: 3.5-124.045865371847i | K96: 0.000795473827127993+0.0281929255047848i | L96: -30.99374105 | M96: -0.021238231 | N96: 30.93321083 | O96: 38.76232733 | P96: -30.99374105
A97: 39.34376224 | B97: 247.2041489 | C97: 0.692171616788278i | D97: -80.9047910109977i | E97: 3.89095856552223-0.187562914580349i | F97: 3.89095856552223+0.504608702207929i | G97: 0.977311189788859-0.174949857278068i | H97: -0.06235587076 | I97: -122.212675243199i | J97: 3.5-122.212675243199i | K97: 0.000819497320217897+0.0286151313881319i | L97: -30.86452462 | M97: -0.02187949134 | N97: 30.80216875 | O97: 39.34376224 | P97: -30.86452462
A98: 39.93391868 | B98: 250.9122111 | C98: 0.702554191040102i | D98: -79.7091537054165i | E98: 3.89068594081167-0.190363019349613i | F98: 3.89068594081167+0.512191171690489i | G98: 0.97663329430422-0.177497228297785i | H98: -0.0642364612 | I98: -120.406576594285i | J98: 3.5-120.406576594285i | K98: 0.000844245715340592+0.0290436389681583i | L98: -30.73531135 | M98: -0.02254009134 | N98: 30.67107489 | O98: 39.93391868 | P98: -30.73531135
A99: 40.53292746 | B99: 254.6758943 | C99: 0.713092503905704i | D99: -78.5311859166664i | E99: 3.89040511596942-0.193204518372881i | F99: 3.89040511596942+0.519887985532823i | G99: 0.975935388565854-0.180079344094221i | H99: -0.06617363944 | I99: -118.627169058409i | J99: 3.5-118.627169058409i | K99: 0.00086974084862534+0.0294785413391093i | L99: -30.60610132 | M99: -0.0232206128 | N99: 30.53992768 | O99: 40.53292746 | P99: -30.60610132
A100: 41.14092137 | B100: 258.4960327 | C100: 0.723788891464289i | D100: -77.3706265188832i | E100: 3.89011584558878-0.196088004975551i | F100: 3.89011584558878+0.527700886488738i | G100: 0.975216896791205-0.182696571038361i | H100: -0.06816910028 | I100: -116.874058185624i | J100: 3.5-116.874058185624i | K100: 0.000896005211664281+0.0299199329264782i | L100: -30.47689464 | M100: -0.0239216549 | N100: 30.40872554 | O100: 41.14092137 | P100: -30.47689464
A101: 41.75803519 | B101: 262.3734732 | C101: 0.734645724836253i | D101: -76.2272182452052i | E101: 3.8898178769947-0.199014080134474i | F101: 3.8898178769947+0.535631644701779i | G101: 0.974477227541209-0.18534927419374i | H101: -0.07022458878 | I101: -115.146855355295i | J101: 3.5-115.146855355295i | K101: 0.000923061971046349+0.0303679095040136i | L101: -30.34769141 | M101: -0.02464383476 | N101: 30.27746682 | O101: 41.75803519 | P101: -30.34769141
A102: 42.38440572 | B102: 266.3090753 | C102: 0.745665410708797i | D102: -75.100707630744i | E102: 3.88951095003305-0.201983352536603i | F102: 3.88951095003305+0.543682058172194i | G102: 0.973715773351044-0.188037817006432i | H102: -0.07234190173 | I102: -113.445177689946i | J102: 3.5-113.445177689946i | K102: 0.000950934988464795+0.0308225682108501i | L102: -30.21849173 | M102: -0.02538778793 | N102: 30.14614983 | O102: 42.38440572 | P102: -30.21849173
A103: 43.0201718 | B103: 270.3037114 | C103: 0.756850391869429i | D103: -73.990844956398i | E103: 3.88919479685423-0.20499643863602i | F103: 3.88919479685423+0.551853953233409i | G103: 0.972931910355801-0.190762560978662i | H103: -0.07452288914 | I103: -111.76864797039i | J103: 3.5-111.76864797039i | K103: 0.000979648841414324+0.0312840075687537i | L103: -30.08929571 | M103: -0.02615416895 | N103: 30.01477282 | O103: 43.0201718 | P103: -30.08929571
A104: 43.66547438 | B104: 274.3582671 | C104: 0.76820314774747i | D104: -72.8973841934956i | E104: 3.88886914169084-0.208053962709235i | F104: 3.88886914169084+0.560149185038235i | G104: 0.972124997911265-0.19352386532536i | H104: -0.07676945579 | I104: -110.116894552108i | J104: 3.5-110.116894552108i | K104: 0.00100922884449481+0.0317523274994803i | L104: -29.96010346 | M104: -0.02694365189 | N104: 29.883334 | O104: 43.66547438 | P104: -29.96010346
A105: 44.3204565 | B105: 278.4736411 | C105: 0.779726194963682i | D105: -71.8200829492568i | E105: 3.88853370062903-0.211156556908574i | F105: 3.88853370062903+0.568569638055108i | G105: 0.97129437821004-0.196322086612989i | H105: -0.07908356282 | I105: -108.489551282865i | J105: 3.5-108.489551282865i | K105: 0.00103970107133867+0.0322276293422419i | L105: -29.83091509 | M105: -0.02775693097 | N105: 29.75183152 | O105: 44.3204565 | P105: -29.83091509
A106: 44.98526334 | B106: 282.6507457 | C106: 0.791422087888137i | D106: -70.7587024130609i | E106: 3.88818818137387-0.214304861313555i | F106: 3.88818818137387+0.577117226574582i | G106: 0.970439375893243-0.199157578379917i | H106: -0.08146722935 | I106: -106.886257421542i | J106: 3.5-106.886257421542i | K106: 0.00107109237717954+0.0327100158712754i | L106: -29.70173071 | M106: -0.0285947211 | N106: 29.62026349 | O106: 44.98526334 | P106: -29.70173071
A107: 45.66004229 | B107: 286.8905069 | C107: 0.803293419206459i | D107: -69.7130073035082i | E107: 3.88783228300812-0.217499523980062i | F107: 3.88783228300812+0.585793895226397i | G107: 0.969559297658051-0.202030690737618i | H107: -0.08392253413 | I107: -105.30665755817i | J107: 3.5-105.30665755817i | K107: 0.00110343042208029+0.0331995913135074i | L107: -29.57255047 | M107: -0.02945775851 | N107: 29.48862793 | O107: 45.66004229 | P107: -29.57255047
A108: 46.34494293 | B108: 291.1938645 | C108: 0.815342820494556i | D108: -68.6827658162643i | E108: 3.88746569574451-0.220741200987182i | F108: 3.88746569574451+0.594601619507374i | G108: 0.968653431861398-0.204941769951944i | H108: -0.08645161732 | I108: -103.750401535142i | J108: 3.5-103.750401535142i | K108: 0.00113674369483898+0.03369646136631i | L108: -29.44337446 | M108: -0.03034680139 | N108: 29.35692284 | O108: 46.34494293 | P108: -29.44337446
A109: 47.04011707 | B109: 295.5617724 | C109: 0.827572962801974i | D109: -67.6677495726742i | E109: 3.88708810067136-0.224030556481519i | F109: 3.88708810067136+0.603542406320455i | G109: 0.967721048120155-0.207891158003684i | H109: -0.08905668219 | I109: -102.217144369598i | J109: 3.5-102.217144369598i | K109: 0.00117106153759163+0.0342007332153392i | L109: -29.31420283 | M109: -0.03126263048 | N109: 29.22514615 | O109: 47.04011707 | P109: -29.31420283
A110: 47.74571883 | B110: 299.995199 | C110: 0.839986557244004i | D110: -66.6677335691371i | E110: 3.88669916949129-0.227368262718822i | F110: 3.88669916949129+0.612618294525182i | G110: 0.966761396908166-0.210879192127638i | H110: -0.09173999696 | I110: -100.706546176944i | J110: 3.5-100.706546176944i | K110: 0.00120641417113163+0.0347125155524534i | L110: -29.1850357 | M110: -0.0322060498 | N110: 29.0932957 | O110: 47.74571883 | P110: -29.1850357
A111: 48.46190461 | B111: 304.495127 | C111: 0.852586355602664i | D111: -65.6824961272287i | E111: 3.88629856425284-0.230755000102728i | F111: 3.88629856425284+0.621831355499936i | G111: 0.965773709150534-0.21390620432937i | H111: -0.09450389668 | I111: -99.2182720955116i | J111: 3.5-99.2182720955116i | K111: 0.00124283272096539+0.0352319185936998i | L111: -29.05587321 | M111: -0.03317788726 | N111: 28.96136932 | O111: 48.46190461 | P111: -29.05587321
A112: 49.18883318 | B112: 309.0625539 | C112: 0.865375150936704i | D112: -64.7118188445603i | E112: 3.88588593707505-0.23419145722044i | F112: 3.88588593707505+0.631183693716264i | G112: 0.964757195815609-0.216972520878808i | H112: -0.09735078509 | I112: -97.7519922123267i | J112: 3.5-97.7519922123267i | K112: 0.00128034924412504+0.0357590540973626i | L112: -28.92671551 | M112: -0.03417899542 | N112: 28.82936472 | O112: 49.18883318 | P112: -28.92671551
A113: 49.92666568 | B113: 313.6984922 | C113: 0.878355778200754i | D113: -63.7554865463649i | E113: 3.88546092986462-0.237678330875133i | F113: 3.88546092986462+0.640677447325621i | G113: 0.963711047505151-0.22007846177983i | H113: -0.1002831366 | I113: -96.3073814899771i | J113: 3.5-96.3073814899771i | K113: 0.00131899675675899+0.0362940353820659i | L113: -28.79756272 | M113: -0.03521025215 | N113: 28.69727959 | O113: 49.92666568 | P113: -28.79756272
A114: 50.67556566 | B114: 318.4039696 | C114: 0.891531114873765i | D114: -62.8132872377979i | E114: 3.88502317402548-0.241216326114866i | F114: 3.88502317402548+0.650314788758899i | G114: 0.9626344340432-0.223224340214972i | H114: -0.1033034985 | I114: -94.8841196945587i | J114: 3.5-94.8841196945587i | K114: 0.00135880926252209+0.0368369773449204i | L114: -28.66841501 | M114: -0.03627256139 | N114: 28.56511152 | O114: 50.67556566 | P114: -28.66841501
A115: 51.43569915 | B115: 323.1800291 | C115: 0.904904081596872i | D115: -61.8850120569437i | E115: 3.88457229016087-0.24480615625779i | F115: 3.88457229016087+0.660097925339082i | G115: 0.961526504064229-0.226410461964322i | H115: -0.1064144925 | I115: -93.4818913246884i | J115: 3.5-93.4818913246884i | K115: 0.0013998217817873+0.0373879964797064i | L115: -28.53927253 | M115: -0.03736685391 | N115: 28.43285804 | O115: 51.43569915 | P115: -28.53927253
A116: 52.20723463 | B116: 328.0277296 | C116: 0.918477642820825i | D116: -60.970455228516i | E116: 3.88410788776743-0.248448542913424i | F116: 3.88410788776743+0.670029099907401i | G116: 0.96038638460118-0.229637124797725i | H116: -0.1096188175 | I116: -92.100385541565i | J116: 3.5-92.100385541565i | K116: 0.00144207038170154+0.0379472108950811i | L116: -28.41013543 | M116: -0.0384940881 | N116: 28.30051661 | O116: 52.20723463 | P116: -28.41013543
A117: 52.99034315 | B117: 332.9481455 | C117: 0.932254807463137i | D117: -60.0694140182424i | E117: 3.88362956492133-0.252144215999734i | F117: 3.88362956492133+0.680110591463403i | G117: 0.959213180674078-0.232904617839316i | H117: -0.1129192514 | I117: -90.739296100064i | J117: 3.5-90.739296100064i | K117: 0.00148559220710892+0.0385147403328011i | L117: -28.28100387 | M117: -0.0396552507 | N117: 28.16808462 | O117: 52.99034315 | P117: -28.28100387
A118: 53.7851983 | B118: 337.9423677 | C118: 0.946238629575084i | D118: -59.1816886879235i | E118: 3.88313690795628-0.25589391375579i | F118: 3.88313690795628+0.690344715819294i | G118: 0.958005974879937-0.236213220903463i | H118: -0.1163186533 | I118: -89.3983212808512i | J118: 3.5-89.3983212808512i | K118: 0.001530425512365+0.0390907061859478i | L118: -28.15187803 | M118: -0.04085135771 | N118: 28.03555938 | O118: 53.7851983 | P118: -28.15187803
A119: 54.59197627 | B119: 343.0115032 | C119: 0.96043220901871i | D119: -58.3070824511562i | E119: 3.88262949113305-0.259698382749703i | F119: 3.88262949113305+0.700733826269007i | G119: 0.956763826984732-0.239563203801106i | H119: -0.1198199659 | I119: -88.0771638234988i | J119: 3.5-88.0771638234988i | K119: 0.00157660969406643+0.0396752315171444i | L119: -28.02275807 | M119: -0.04208345516 | N119: 27.90293811 | O119: 54.59197627 | P119: -28.02275807
A120: 55.41085592 | B120: 348.1566758 | C120: 0.974838692153991i | D120: -57.4454014297105i | E120: 3.88210687630069-0.263558377881615i | F120: 3.88210687630069+0.711280314272376i | G120: 0.955485773518302-0.242954825615533i | H120: -0.1234262181 | I120: -86.7755308605899i | J120: 3.5-86.7755308605899i | K120: 0.00162418532472083+0.0402684410767513i | L120: -27.89364418 | M120: -0.04335262 | N120: 27.77021796 | O120: 55.41085592 | P120: -27.89364418
A121: 56.24201876 | B121: 353.3790259 | C121: 0.9894612725363i | D121: -56.5964546105523i | E121: 3.88156861254887-0.26747466238138i | F121: 3.88156861254887+0.72198661015492i | G121: 0.954170827373065-0.24638833394656i | H121: -0.1271405268 | I121: -85.493133852798i | J121: 3.5-85.493133852798i | K121: 0.00167319418738225+0.040870461321027i | L121: -27.76453653 | M121: -0.04465996099 | N121: 27.637396 | O121: 56.24201876 | P121: -27.76453653
A122: 57.08564904 | B122: 358.6797113 | C122: 1.00430319162434i | D122: -55.7600538034998i | E122: 3.88101423585146-0.271448007800715i | F122: 3.88101423585146+0.732855183823625i | G122: 0.952817977407539-0.249863964122106i | H122: -0.1309661001 | I122: -84.2296885249241i | J122: 3.5-84.2296885249241i | K122: 0.00172367931127845+0.0414814204302398i | L122: -27.63543531 | M122: -0.0460066196 | N122: 27.50446921 | O122: 57.08564904 | P122: -27.63543531
A123: 57.94193377 | B123: 364.059907 | C123: 1.01936773949871i | D123: -54.9360135995072i | E123: 3.88044326870111-0.275479193999436i | F123: 3.88044326870111+0.743888545499274i | G123: 0.951426188055701-0.253381938376134i | H123: -0.134906239 | I123: -82.9849148028809i | J123: 3.5-82.9849148028809i | K123: 0.00177568500845638+0.0421014483267158i | L123: -27.50634072 | M123: -0.04739377093 | N123: 27.37143448 | O123: 57.94193377 | P123: -27.50634072
A124: 58.81106278 | B124: 369.5208056 | C124: 1.03465825559119i | D124: -54.1241513295637i | E124: 3.87985521973452-0.279569009125498i | F124: 3.87985521973452+0.755089246465692i | G124: 0.94999439894331-0.256942464991888i | H124: -0.138964341 | I124: -81.7585367516068i | J124: 3.5-81.7585367516068i | K124: 0.00182925691147332+0.0427306766928064i | L124: -27.37725295 | M124: -0.04882262467 | N124: 27.23828861 | O124: 58.81106278 | P124: -27.37725295
A125: 59.69322872 | B125: 375.0636177 | C125: 1.05017812942506i | D125: -53.3242870242007i | E125: 3.87924958334853-0.283718249588468i | F125: 3.87924958334853+0.766459879836592i | G125: 0.948521524512386-0.2605457374094i | H125: -0.1431439018 | I125: -80.5502825138984i | J125: 3.5-80.5502825138984i | K125: 0.00188444201216142+0.0433692389887605i | L125: -27.24817222 | M125: -0.05029442611 | N125: 27.10502832 | O125: 59.69322872 | P125: -27.24817222
A126: 60.58862715 | B126: 380.6895719 | C126: 1.06593080136643i | D126: -52.5362433735968i | E126: 3.87862583930646-0.287927720026084i | F126: 3.87862583930646+0.778003081340346i | G126: 0.947006453655128-0.264191933296199i | H126: -0.1474485188 | I126: -79.3598842501462i | J126: 3.5-79.3598842501462i | K126: 0.00194128870149405+0.0440172704704813i | L126: -27.11909873 | M126: -0.05181045711 | N126: 26.97165021 | O126: 60.58862715 | P126: -27.11909873
A127: 61.49745656 | B127: 386.3999155 | C127: 1.08191976338693i | D127: -51.7598456882727i | E127: 3.87798345233503-0.292198233263538i | F127: 3.87798345233503+0.789721530123392i | G127: 0.945448049358633-0.267881213580141i | H127: -0.1518818933 | I127: -78.1870780789617i | J127: 3.5-78.1870780789617i | K127: 0.00199984681058316+0.044674908207151i | L127: -26.9900327 | M127: -0.05337203711 | N127: 26.83815081 | O127: 61.49745656 | P127: -26.9900327
A128: 62.41991841 | B128: 392.1959142 | C128: 1.09814855983773i | D128: -50.9949218603672i | E128: 3.87732187171106-0.296530610265048i | F128: 3.87732187171106+0.801617949572682i | G128: 0.943845148361873-0.271613721443319i | H128: -0.1564478338 | I128: -77.0316040186815i | J128: 3.5-77.0316040186815i | K128: 0.00206016765283731+0.0453422910987029i | L128: -26.86097436 | M128: -0.05498052427 | N128: 26.70452653 | O128: 62.41991841 | P128: -26.86097436
A129: 63.35621719 | B129: 398.0788529 | C129: 1.1146207882353i | D129: -50.2413023254849i | E129: 3.87664053083858-0.300925680077393i | F129: 3.87664053083858+0.813695108157907i | G129: 0.942196560826484-0.275389581275974i | H129: -0.1611502587 | I129: -75.8932059297355i | J129: 3.5-75.8932059297355i | K129: 0.00212230406731065+0.0460195598931208i | L129: -26.73192394 | M129: -0.05663731644 | N129: 26.57077368 | O129: 63.35621719 | P129: -26.73192394
A130: 64.30656044 | B130: 404.0500357 | C130: 1.13134010005883i | D130: -49.4988200251083i | E130: 3.87593884681535-0.305384279764895i | F130: 3.87593884681535+0.825955820293935i | G130: 0.940501070023005-0.279208897589355i | H130: -0.1659931993 | I130: -74.7716314578675i | J130: 3.5-74.7716314578675i | K130: 0.00218631046327395+0.0467068572035427i | L130: -26.60288167 | M130: -0.05834385236 | N130: 26.43688847 | O130: 64.30656044 | P130: -26.60288167
A131: 65.27115885 | B131: 410.1107863 | C131: 1.14831020155971i | D131: -48.7673103695648i | E131: 3.8752162199894-0.309907254335493i | F131: 3.8752162199894+0.838402947224217i | G131: 0.938757432034335-0.283071753886475i | H131: -0.1709808032 | I131: -73.6666319781946i | J131: 3.5-73.6666319781946i | K131: 0.00225224286603911+0.0474043275251478i | L131: -26.4738478 | M131: -0.06010161274 | N131: 26.302867 | O131: 65.27115885 | P131: -26.4738478
A132: 66.25022623 | B132: 416.2624481 | C132: 1.16553485458311i | D132: -48.0466112015417i | E132: 3.87447203350475-0.314495456657381i | F132: 3.87447203350475+0.851039397925729i | G132: 0.936964375478247-0.286978211489749i | H132: -0.1761173368 | I132: -72.5779625400932i | J132: 3.5-72.5779625400932i | K132: 0.00232015896406956+0.0481121172518006i | L132: -26.34482259 | M132: -0.06191212143 | N132: 26.16870525 | O132: 66.25022623 | P132: -26.34482259
A133: 67.24397963 | B133: =2*PI()*$A133 -> 422.5063848 | C133: =COMPLEX(0,$C$3*$B133) -> 1.18301787740185i | D133: =IF($D$3>0,COMPLEX(0,-1/($B133*$D$3)),"") -> -47.3365627601396i | E133: 3.87370565283681-0.319149747365793i | F133: =IMSUM($C133,$E133) -> 3.87370565283681+0.863868130036057i | G133: =IMDIV($E133,$F133) -> 0.935120601250964-0.290928308324446i | H133: =20*LOG(IMABS($G133)) -> -0.1814071893 | I133: =COMPLEX(0,-1/($B133*$I$3)) -> -71.5053818128997i | J133: =IMSUM($J$3,$I133) -> 3.5-71.5053818128997i | K133: =IMDIV($J$3,$J133) -> 0.00239011815740936+0.0488303746924287i | L133: =20*LOG(IMABS($K133)) -> -26.21580629 | M133: =20*LOG(IMABS(IMSUB($G133,$K133))) -> -0.06377694663 | N133: =ABS(H133-L133) -> 26.0343991 | O133: =A133 -> 67.24397963 | P133: =L133 -> -26.21580629
A134: =$A133*1.015 -> 68.25263932 | B134: 428.8439806 | C134: 1.20076314556288i | D134: -46.6370076454577i | E134: 3.87291642531691-0.323870994759396i | F134: 3.87291642531691+0.876892150803484i | G134: 0.93322478229385-0.294922057657028i | H134: -0.1868548753 | I134: -70.4486520324135i | J134: 3.5-70.4486520324135i | K134: 0.00246218160746443+0.0495592500871058i | L134: -26.08679917 | M134: -0.06569770205 | N134: 25.8999443 | O134: 68.25263932 | P134: -26.08679917
A135: 69.27642891 | B135: 435.2766403 | C135: 1.21877459274632i | D135: -45.9477907837022i | E135: =ImPara($D135,$E$3) -> 3.87210367964571-0.328660074685782i | F135: 3.87210367964571+0.890114518060538i | G135: 0.931275563385451-0.298959446787359i | H135: -0.1924650388 | I135: -69.4075389481906i | J135: 3.5-69.4075389481906i | K135: 0.00253641228817027+0.0502988956228135i | L135: -25.95780151 | M135: -0.06767604824 | N135: 25.76533648 | O135: 69.27642891 | P135: -25.95780151
A136: 70.31557534 | B136: 441.8057899 | C136: 1.23705621163752i | D136: -45.2687593928101i | E136: 3.87126672539589-0.33351787041555i | F136: 3.87126672539589+0.90353834122197i | G136: 0.929271560961217-0.303040435693882i | H136: -0.198242456 | I136: -68.3818117716164i | J136: 3.5-68.3818117716164i | K136: 0.00261287503858068+0.0510494654488511i | L136: -25.8288136 | M136: -0.06971369377 | N136: 25.63057114 | O136: 70.31557534 | P136: -25.8288136
A137: 71.37030897 | B137: 448.4328767 | C137: 1.25561205481208i | D137: -44.5997629485814i | E137: 3.8704048525036-0.338445272504395i | F137: 3.8704048525036+0.917166782307685i | G137: 0.92721136296339-0.307164955630838i | H137: -0.2041920393 | I137: -67.3712431247452i | J137: 3.5-67.3712431247452i | K137: 0.00269163661691312+0.051811115691863i | L137: -25.69983572 | M137: -0.07181239656 | N137: 25.49564368 | O137: 71.37030897 | P137: -25.69983572
A138: 72.44086361 | B138: 455.1593699 | C138: 1.27444623563426i | D138: -43.9406531513117i | E138: 3.86951733074851-0.343443178642616i | F138: 3.86951733074851+0.931003056991644i | G138: 0.925093528723625-0.311332907676747i | H138: -0.2103188408 | I138: -66.3756089898968i | J138: 3.5-66.3756089898968i | K138: 0.00277276575608663+0.0525840044704518i | L138: -25.57086818 | M138: -0.07397396523 | N138: 25.36054934 | O138: 72.44086361 | P138: -25.57086818
A139: 73.52747656 | B139: 461.9867604 | C139: 1.29356292916878i | D139: -43.2912838929179i | E139: 3.86860340922255-0.34851249349147i | F139: 3.86860340922255+0.94505043567731i | G139: 0.922916588881132-0.315544161233296i | H139: -0.2166280558 | I139: -65.3946886599968i | J139: 3.5-65.3946886599968i | K139: 0.00285633322078891+0.0533682919093419i | L139: -25.44191129 | M139: -0.07620026041 | N139: 25.22528323 | O139: 73.52747656 | P139: -25.44191129
A140: 74.63038871 | B140: 468.9165618 | C140: 1.31296637310631i | D140: -42.6515112245497i | E140: 3.86766231578734-0.353654128505733i | F140: 3.86766231578734+0.959312244600577i | G140: 0.920679045339215-0.319798552473944i | H140: -0.2231250268 | I140: -64.4282646896521i | J140: 3.5-64.4282646896521i | K140: 0.0029424118661099+0.0541641401530577i | L140: -25.31296537 | M140: -0.07849319614 | N140: 25.08984034 | O140: 74.63038871 | P140: -25.31296537
A141: 75.74984454 | B141: 475.9503103 | C141: 1.3326608687029i | D141: -42.0211933246795i | E141: 3.86669325651989-0.358869001741816i | F141: 3.86669325651989+0.973791866961084i | G141: 0.918379371263241-0.324095882741597i | H141: -0.229815247 | I141: -63.4761228469479i | J141: 3.5-63.4761228469479i | K141: 0.00303107669777968+0.0549717133790813i | L141: -25.18403074 | M141: -0.08085474128 | N141: 24.95421549 | O141: 75.74984454 | P141: -25.18403074
A142: 76.88609221 | B142: 483.0895649 | C142: 1.35265078173345i | D142: -41.4001904676645i | E142: 3.86569541514678-0.364158037650761i | F142: 3.86569541514678+0.988492744082689i | G142: 0.91601601112324-0.328435916894773i | H142: -0.2367043646 | I142: -62.5380520659585i | J142: 3.5-62.5380520659585i | K142: 0.00312240493404899+0.0557911778104461i | L142: -25.05510775 | M142: -0.08328692093 | N142: 24.81840339 | O142: 76.88609221 | P142: -25.05510775
A143: 78.03938359 | B143: 490.3359084 | C143: 1.37294054345945i | D143: -40.7883649927729i | E143: 3.86466795246655-0.369522166855428i | F143: 3.86466795246655+1.00341837660402i | G143: 0.913587380784504-0.332818381601767i | H143: -0.2437981865 | I143: -61.6138443999591i | J143: 3.5-61.6138443999591i | K143: 0.00321647606925149+0.0566227017277295i | L143: -24.92619675 | M143: -0.08579181789 | N143: 24.68239857 | O143: 78.03938359 | P143: -24.92619675
A144: 79.20997435 | B144: 497.690947 | C144: 1.39353465161134i | D144: -40.1855812736679i | E144: 3.86361000576066-0.374962325911162i | F144: 3.86361000576066+1.01857232570018i | G144: 0.911091867649673-0.33724296358247i | H144: -0.2511026823 | I144: -60.7032949753292i | J144: 3.5-60.7032949753292i | K144: 0.00331337193908724+0.0574664554803975i | L144: -24.7972981 | M144: -0.08837157414 | N144: 24.54619542 | O144: 79.20997435 | P144: -24.7972981
A145: 80.39812396 | B145: 505.1563112 | C145: 1.41443767138551i | D145: -39.5917056883428i | E145: 3.86252068819231-0.38047945704914i | F145: 3.86252068819231+1.03395821433637i | G145: 0.908527830856014-0.341709307797552i | H145: -0.2586239889 | I145: -59.8062019461371i | J145: 3.5-59.8062019461371i | K145: 0.00341317678766747+0.0583226114974596i | L145: -24.66841217 | M145: -0.09102839237 | N145: 24.40978818 | O145: 80.39812396 | P145: -24.66841217
A146: 81.60409582 | B146: 512.7336559 | C146: 1.43565423645629i | D146: -39.0066065895003i | E146: 3.86139908819389-0.386074507901691i | F146: 3.86139908819389+1.0495797285546i | G146: 0.905893601531733-0.346217015584893i | H146: -0.2663684141 | I146: -58.9223664493962i | J146: 3.5-58.9223664493962i | K146: 0.00351597733636105+0.0591913442973823i | L146: -24.53953933 | M146: -0.09376453752 | N146: 24.27317092 | O146: 81.60409582 | P146: -24.53953933
A147: 82.82815726 | B147: 520.4246607 | C147: 1.45718905000314i | D147: -38.4301542753697i | E147: 3.86024426884247-0.391748431208732i | F147: 3.86024426884247+1.06544061879441i | G147: 0.903187483115347-0.350765642743259i | H147: -0.2743424414 | I147: -58.0515925609815i | J147: 3.5-58.0515925609815i | K147: 0.00362186285448398+0.0600728304972163i | L147: -24.41067999 | M147: -0.09658233828 | N147: 24.13633755 | O147: 82.82815726 | P147: -24.41067999
A148: 84.07057962 | B148: 528.2310306 | C148: 1.47904688575318i | D148: -37.8622209609554i | E148: 3.85905526722359-0.397502184504504i | F148: 3.85905526722359+1.08154470124868i | G148: 0.900407751742302-0.355354697563385i | H148: -0.282552734 | I148: -57.1936872521985i | J148: 3.5-57.1936872521985i | K148: 0.00373092523187306+0.0609672488208811i | L148: -24.28183454 | M148: -0.09948418876 | N148: 23.99928181 | O148: 84.07057962 | P148: -24.28183454
A149: 85.33163831 | B149: 536.1544961 | C149: 1.50123258903948i | D149: -37.3026807497098i | E149: 3.85783109378354-0.403336729783767i | F149: 3.85783109378354+1.09789585925571i | G149: 0.897552656703232-0.359983638806798i | H149: -0.2910061396 | I149: -56.3484603469936i | J149: 3.5-56.3484603469936i | K149: 0.00384325905338594+0.0618747801065548i | L149: -24.15300341 | M149: -0.10247255 | N149: 23.86199727 | O149: 85.33163831 | P149: -24.15300341
A150: 86.61161289 | B150: 544.1968135 | C150: 1.52375107787507i | D150: -36.7514096056254i | E150: 3.85657073166992-0.409253033146529i | F150: 3.85657073166992+1.11449804472854i | G150: 0.894620420978388-0.364651873632881i | H150: -0.2997096944 | I150: -55.5157244797967i | J150: 3.5-55.5157244797967i | K150: 0.00395896167536955+0.0627956073131115i | L150: -24.02418702 | M150: -0.1055499517 | N150: 23.72447733 | O150: 86.61161289 | P150: -24.02418702
A151: 87.91078708 | B151: 552.3597657 | C151: 1.5466073440432i | D151: -36.2082853257393i | E151: 3.85527313606069-0.415252064420416i | F151: 3.85527313606069+1.13135527962278i | G151: 0.891609241852983-0.369358755474916i | H151: -0.3086706284 | I151: -54.6952950539869i | J151: 3.5-54.6952950539869i | K151: 0.00407813330413982+0.063729915525548i | L151: -23.89538582 | M151: -0.1087189938 | N151: 23.58671519 | O151: 87.91078708 | P151: -23.89538582
A152: 89.22944889 | B152: 560.6451622 | C152: 1.56980645420385i | D152: -35.6731875130437i | E152: 3.85393723348208-0.421334796759733i | F152: 3.85393723348208+1.14847165744412i | G152: 0.888517291618357-0.37410358186601i | H152: -0.3178963693 | I152: -53.8869902009723i | J152: 3.5-53.8869902009723i | K152: 0.00420087707651532+0.0646778919593344i | L152: -23.76660026 | M152: -0.1119823481 | N152: 23.44870389 | O152: 89.22944889 | P152: -23.76660026
A153: 90.56789062 | B153: 569.0548396 | C153: 1.5933535510169i | D153: -35.1459975497967i | E153: 3.85256192111501-0.42750220622022i | F153: 3.85256192111501+1.16585134479668i | G153: 0.885342718364046-0.378885592216109i | H153: -0.3273945477 | I153: -53.0906307398742i | J153: 3.5-53.0906307398742i | K153: 0.00432729914244822+0.0656397259636266i | L153: -23.63783081 | M153: -0.11534276 | N153: 23.31043627 | O153: 90.56789062 | P153: -23.63783081
A154: 91.92640898 | B154: 577.5906622 | C154: 1.61725385428216i | D154: -34.6265985712283i | E154: 3.85114606609068-0.4337552713085i | F154: 3.85114606609068+1.18349858297366i | G154: 0.882083646865998-0.383703965541527i | H154: -0.337173002 | I154: -52.3060401378071i | J154: 3.5-52.3060401378071i | K154: 0.0044575087497959+0.0666156090232717i | L154: -23.50907796 | M154: -0.1188030501 | N154: 23.17190495 | O154: 91.92640898 | P154: -23.50907796
A155: 93.30530511 | B155: 586.2545222 | C155: 1.64151266209639i | D155: -34.1148754396338i | E155: 3.84968850477537-0.440094972505199i | F155: 3.84968850477537+1.20141768959119i | G155: 0.87873817957643-0.388557818148657i | H155: -0.3472397826 | I155: -51.5330444707459i | J155: 3.5-51.5330444707459i | K155: 0.00459161833127662+0.0676057347595343i | L155: -23.38034219 | M155: -0.1223661162 | N155: 23.03310241 | O155: 93.30530511 | P155: -23.38034219
A156: 94.70488469 | B156: 595.04834 | C156: 1.66613535202784i | D156: -33.610714718851i | E156: 3.84818804204453-0.446522291760618i | F156: 3.84818804204453+1.21961306026722i | G156: 0.875304397720831-0.393446201273954i | H156: -0.3576031576 | I156: -50.7714723849713i | J156: 3.5-50.7714723849713i | K156: 0.00472974359365294+0.0686102989294701i | L156: -23.25162402 | M156: -0.1260349346 | N156: 22.89402087 | O156: 94.70488469 | P156: -23.25162402
A157: 96.12545796 | B157: 603.9740651 | C157: 1.69112738230825i | D157: -33.1140046491143i | E157: 3.84664345054688-0.453038211961902i | F157: 3.84664345054688+1.23808917034635i | G157: 0.871780362507973-0.398368098682445i | H157: -0.3682716172 | I157: -50.0211550590851i | J157: 3.5-50.0211550590851i | K157: 0.00487200360918655+0.0696294994238694i | L157: -23.12292399 | M157: -0.1298125621 | N157: 22.75465237 | O157: 96.12545796 | P157: -23.12292399
A158: 97.56733983 | B158: 613.0336761 | C158: 1.71649429304288i | D158: -32.6246351222801i | E158: 3.84505346995831-0.459643716370532i | F158: 3.84505346995831+1.25685057667235i | G158: 0.868164116458768-0.403322424227508i | H158: -0.3792538789 | I158: -49.2819261665863i | J158: 3.5-49.2819261665863i | K158: 0.00501852090940802+0.0706635362636902i | L158: -22.99424262 | M158: -0.1337021374 | N158: 22.61498874 | O158: 97.56733983 | P158: -22.99424262
A159: 99.03084993 | B159: 622.2291812 | C159: 1.74224170743852i | D159: -32.1424976574188i | E159: 3.84341680622652-0.466339788029003i | F159: 3.84341680622652+1.27590191940952i | G159: 0.864453684860101-0.408308019374922i | H159: -0.3905588929 | I159: -48.5536218390013i | J159: 3.5-48.5536218390013i | K159: 0.0051694215812447+0.0717126115948936i | L159: -22.86558048 | M159: -0.1377068834 | N159: 22.47502159 | O159: 99.03084993 | P159: -22.86558048
A160: 100.5163127 | B160: 631.5626189 | C160: 1.7683753330501i | D160: -31.6674853767673i | E160: 3.84173213080624-0.47312740913544i | F160: 3.84173213080624+1.29524792391466i | G160: 0.860647077349773-0.413323650694697i | H160: -0.4021958465 | I160: -47.8360806295579i | J160: 3.5-47.8360806295579i | K160: 0.00532483536555044+0.0727769296815977i | L160: -22.73693815 | M160: -0.1418301082 | N160: 22.33474231 | O160: 100.5163127 | P160: -22.73693815
A161: 102.0240574 | B161: 641.0360582 | C161: 1.79490096304585i | D161: -31.1994929820368i | E161: 3.83999807988614-0.480007560384986i | F161: 3.83999807988614+1.31489340266086i | G161: 0.856742289638946-0.418368007324481i | H161: -0.41417417 | I161: -47.1291434773969i | J161: 3.5-47.1291434773969i | K161: 0.00548489575807938+0.073856696897454i | L161: -22.60831622 | M161: -0.1460752075 | N161: 22.19414205 | O161: 102.0240574 | P161: -22.60831622
A162: 103.5544182 | B162: 650.6515991 | C162: 1.82182447749154i | D162: -30.7384167310707i | E162: 3.83821325360721-0.486981220276621i | F162: 3.83821325360721+1.33484325721492i | G162: 0.852737305378459-0.423439698408952i | H162: -0.4265035414 | I162: -46.4326536723123i | J162: 3.5-46.4326536723123i | K162: 0.00564974011294691+0.0749521217151528i | L162: -22.47971529 | M162: -0.1504456655 | N162: 22.05321175 | O162: 103.5544182 | P162: -22.47971529
A163: 105.1077345 | B163: 660.4113731 | C163: 1.84915184465391i | D163: -30.284154414848i | E163: 3.83637621527402-0.494049364384202i | F163: 3.83637621527402+1.35510248026971i | G163: 0.848630098175602-0.428537250519905i | H163: -0.4391938919 | I163: -45.7464568200121i | J163: 3.5-45.7464568200121i | K163: 0.00581950974861933+0.0760634146939582i | L163: -22.351136 | M163: -0.1549450575 | N163: 21.91194211 | O163: 105.1077345 | P163: -22.351136
A164: 106.6843505 | B164: 670.3175437 | C164: 1.87688912232372i | D164: -29.8366053348256i | E164: 3.83448549055879-0.501212964590319i | F164: 3.83448549055879+1.3756761577334i | G164: 0.844418633767877-0.43365910506243i | H164: -0.4522554108 | I164: -45.0704008078937i | J164: 3.5-45.0704008078937i | K164: 0.00599435005647346+0.0771907884651654i | L164: -22.22257899 | M164: -0.1595770508 | N164: 21.77032358 | O164: 106.6843505 | P164: -22.22257899
A165: 108.2846158 | B165: 680.3723068 | C165: 1.90504245915857i | D165: -29.3956702806164i | E165: 3.83253956669918-0.50847298828164i | F165: 3.83253956669918+1.39656947087693i | G165: 0.840100872360444-0.438803615672969i | H165: -0.4656985512 | I165: -44.4043357713238i | J165: 3.5-44.4043357713238i | K165: 0.00617441061196718+0.0783344577153758i | L165: -22.09404492 | M165: -0.1643454066 | N165: 21.62834637 | O165: 108.2846158 | P165: -22.09404492
A166: 109.908885 | B166: 690.5778914 | C166: 1.93361809604595i | D166: -28.9612515079964i | E166: 3.8305368916909-0.515830397504394i | F166: 3.8305368916909+1.41778769854156i | G166: 0.835674771133907-0.443969045615659i | H166: -0.4795340348 | I166: -43.7481140604176i | J166: 3.5-43.7481140604176i | K166: 0.00635984528846003+0.0794946391674739i | L166: -21.96553449 | M166: -0.1692539816 | N166: 21.48600046 | O166: 109.908885 | P166: -21.96553449
A167: 111.5575183 | B167: 700.9365598 | C167: 1.96262236748664i | D167: -28.5332527172379i | E167: 3.8284758734754-0.523286148078509i | F167: 3.8284758734754+1.43933621940813i | G167: 0.831138286929112-0.449153565184i | H167: -0.4937728578 | I167: -43.101590207308i | J167: 3.5-43.101590207308i | K167: 0.00655081237372294+0.080671551559191i | L167: -21.83704839 | M167: -0.1743067296 | N167: 21.34327554 | O167: 111.5575183 | P167: -21.83704839
A168: 113.2308811 | B168: 711.4506082 | C168: 1.99206170299894i | D168: -28.1115790317615i | E168: 3.82635487912401-0.530841188669029i | F168: 3.82635487912401+1.46122051432991i | G168: 0.826489379115572-0.454355249115446i | H168: -0.5084262953 | I168: -42.4646208938995i | J168: 3.5-42.4646208938995i | K168: 0.006747474689174+0.0818654156191304i | L168: -21.70858736 | M168: -0.1795077027 | N168: 21.20016106 | O168: 113.2308811 | P168: -21.70858736
A169: 114.9293443 | B169: 722.1223673 | C169: 2.02194262854392i | D169: -27.6961369771049i | E169: 3.82417223401921-0.538496459813289i | F169: 3.82417223401921+1.48344616873063i | G169: 0.821726012650137-0.459572074027198i | H169: -0.5235059071 | I169: -41.837064920098i | J169: 3.5-41.837064920098i | K169: 0.00694999971187682+0.0830764540401294i | L169: -21.58015213 | M169: -0.184861053 | N169: 21.05664623 | O169: 114.9293443 | P169: -21.58015213
A170: 116.6532844 | B170: 732.9542028 | C170: 2.05227176797208i | D170: -27.2868344602018i | E170: 3.8219262210343-0.546252892902387i | F170: 3.8219262210343+1.50601887506969i | G170: 0.816846161332314-0.464801915882178i | H170: -0.5390235428 | I170: -41.2187831725103i | J170: 3.5-41.2187831725103i | K170: 0.00715855969933561+0.0843048914498243i | L170: -21.45174349 | M170: -0.1903710341 | N170: 20.91271995 | O170: 116.6532844 | P170: -21.45174349
A171: 118.4030837 | B171: 743.9485159 | C171: 2.08305584449166i | D171: -26.8835807489673i | E171: 3.81961507971241-0.554111409115419i | F171: 3.81961507971241+1.52894443537624i | G171: 0.811847811262589-0.470042547494842i | H171: -0.5549913469 | I171: -40.6096385936063i | J171: 3.5-40.6096385936063i | K171: 0.00737333181712002+0.0855509543782807i | L171: -21.32336221 | M171: -0.1960420019 | N171: 20.76837087 | O171: 118.4030837 | P171: -21.32336221
A172: 120.17913 | B172: 755.1077436 | C172: 2.11430168215904i | D172: -26.4862864521846i | E172: 3.81723700544632-0.562072918304965i | F172: 3.81723700544632+1.55222876385408i | G172: 0.806728964509858-0.475291636087252i | H172: -0.571421764 | I172: -40.0094961513362i | J172: 3.5-40.0094961513362i | K172: 0.00759449826935072+0.0868148712225478i | L172: -21.19500913 | M172: -0.2018784162 | N172: 20.62358736 | O172: 120.17913 | P172: -21.19500913
A173: 121.9818169 | B173: 766.4343598 | C173: 2.14601620739142i | D173: -26.0948634996892i | E173: 3.81479014866002-0.570138317832216i | F173: 3.81479014866002+1.5758778895592i | G173: 0.80148764299383-0.480546740906583i | H173: -0.5883275436 | I173: -39.4182228091983i | J173: 3.5-39.4182228091983i | K173: 0.00782224643207377+0.088096872207983i | L173: -21.06668506 | M173: -0.2078848416 | N173: 20.47835752 | O173: 121.9818169 | P173: -21.06668506
A174: 123.8115442 | B174: 777.9308752 | C174: 2.17820645050229i | D174: -25.7092251228466i | E174: 3.81227261399406-0.578308491350229i | F174: 3.81227261399406+1.59989795915206i | G174: 0.796121892587982-0.485805310916021i | H174: -0.6057217451 | I174: -38.835687496747i | J174: 3.5-38.835687496747i | K174: 0.00805676898955146+0.0893971893462007i | L174: -20.93839089 | M174: -0.2140659486 | N174: 20.33266914 | O174: 123.8115442 | P174: -20.93839089
A175: 125.6687173 | B175: 789.5998383 | C175: 2.21087954725983i | D175: -25.3292858353168i | E175: 3.80968245949549-0.586584307533699i | F175: 3.80968245949549+1.62429523972613i | G175: 0.790629787448298-0.491064682571838i | H175: -0.623617743 | I175: -38.261761080539i | J175: 3.5-38.261761080539i | K175: 0.00829826407349173+0.0907160563894745i | L175: -20.81012749 | M175: -0.2204265144 | N175: 20.18650975 | O175: 125.6687173 | P175: -20.81012749
